Workbook

Sheet 1. Utility_Info_
AB1: Algoma Power Inc.
AB2: Atikokan Hydro Inc.
AB3: Attawapiskat Power Corporation
AB4: Bluewater Power Distribution Corp.
AB5: Brant County Power
AB6: Brantford Power Inc.
AB7: Burlington Hydro Inc.
AB8: Cambridge and North Dumfries Hydro
AB9: Canadian Niagara Power Inc. – Eastern Ontario Power/Fort Erie/Port Colborne
AB10: Centre Wellington Hydro Ltd.
AB11: Chapleau Public Utilities Corporation
AB12: COLLUS Power Corp.
H13: Version | I13: 4 | AB13: Cooperative Hydro Embrun Inc.
AB14: E.L.K. Energy Inc.
C15: Utility Name | D15: North Bay Hydro Distribution Limited | AB15: Enersource Hydro Mississauga Inc.
AB16: Entegrus Powerlines Inc.
C17: Assigned EB Number | D17: EB-2013-0157 | AB17: ENWIN Utilities Ltd.
AB18: Erie Thames Powerlines Corp.
C19: Name and Title | D19: Melissa Casson, Regulatory Manager | AB19: Espanola Regional Hydro Distribution Corporation
AB20: Essex Powerlines Corporation
C21: Phone Number | D21: 705-474-8100 xt: 300 | AB21: Festival Hydro Inc.
AB22: Fort Albany Power Corporation
C23: Email Address | D23: mcasson@northbayhydro.com | AB23: Fort Frances Power Corporation
AB24: Greater Sudbury Hydro Inc.
C25: Date | D25: 2013-08-30 | AB25: Grimsby Power Inc.
AB26: Guelph Hydro Electric Systems Inc.
C27: Last COS Re-based Year | D27: 2010 | AB27: Haldimand County Hydro Inc.
AB28: Halton Hills Hydro Inc.
AB29: Hearst Power Distribution Co. Ltd.
A30: Note: Drop-down lists are shaded blue; Input cells are shaded green.
AB32: Horizon Utilities Corporation
AB33: Hydro 2000 Inc.
AB34: Hydro Hawkesbury Inc.
AB35: Hydro One Brampton Networks Inc.
AB36: Hydro One Networks Inc.
AB37: Hydro One Remote Communities Inc.
AB38: Hydro Ottawa Limited
AB39: Innisfil Hydro Dist. Systems Limited
AB40: Kashechewan Power Corporation
AB41: Kenora Hydro Electric Corporation Ltd.
AB42: Kingston Hydro Corporation
AB43: Kitchener-Wilmot Hydro Inc.
AB44: Lakefront Utilities Inc.
AB45: Lakeland Power Distribution Ltd.
AB46: London Hydro Inc.
AB47: Midland Power Utility Corporation
AB48: Milton Hydro Distribution Inc.
AB49: Newmarket – Tay Power Distribution Ltd.
AB50: Niagara Peninsula Energy Inc.
AB51: Niagara-on-the-Lake Hydro Inc.
AB52: Norfolk Power Distribution Ltd.
AB53: North Bay Hydro Distribution Limited
AB54: Northern Ontario Wires Inc.
AB55: Oakville Hydro Distribution Inc.
AB56: Orangeville Hydro Limited
AB57: Orillia Power Distribution Corp.
AB58: Oshawa PUC Networks Inc.
AB59: Ottawa River Power Corporation
AB60: Parry Sound Power Corporation
AB61: Peterborough Distribution Inc.
AB62: PowerStream Inc.
AB63: PUC Distribution Inc.
AB64: Renfrew Hydro Inc.
AB65: Rideau St. Lawrence Distribution Inc.
AB66: St. Thomas Energy Inc.
AB67: Sioux Lookout Hydro Inc.
AB68: Thunder Bay Hydro Electricity Distribution
AB69: Tillsonburg Hydro Inc.
AB70: Toronto Hydro-Electric System Limited
AB71: Veridian Connections Inc.
AB72: Wasaga Distribution Inc.
AB73: Waterloo North Hydro Inc.
AB74: Welland Hydro Electric System Corp.
AB75: Wellington North Power Inc.
AB76: West Coast Huron Energy Inc.
AB77: Westario Power Inc.
AB78: Whitby Hydro Electric Corporation
AB79: Woodstock Hydro Services Inc.

Sheet 2. Smart_Meter_Costs
B13: Distributors must enter all incremental costs related to their smart meter program and all revenues recovered to date in the applicable tabs except for those costs (and associated revenues) for which the Board has approved on a final basis, i.e. capital costs have been included in rate base and OM&A costs in revenue requirement. For 2014, distributors that have completed their deployments by the end of 2013 are not expected to enter any capital costs. However, for OM&A, regardless of whether a distributor has deployments in 2014, distributors should enter the forecasted OM&A for 2014 for all smart meters in service.
G18: 2006 | I18: 2007 | K18: 2008 | M18: 2009 | O18: 2010 | Q18: 2011 | S18: 2012 | U18: 2013 | W18: 2014 | Y18: Total
B19: Smart Meter Capital Cost and Operational Expense Data | G19: Audited Actual | I19: Audited Actual | K19: Audited Actual | M19: Audited Actual | O19: Audited Actual | Q19: Audited Actual | S19: Audited Actual | U19: Forecast | W19: Forecast
C21: Smart Meter Installation Plan
C23: Actual/Planned number of Smart Meters installed during the Calendar Year
C25: Residential | G25: 0 | I25: 0 | K25: 0 | M25: 18050 | O25: 3005 | Q25: 23 | U25: 174 | Y25: =SUM(G25,I25,K25,M25,O25,Q25,S25,U25,W25) -> 21252
C27: General Service < 50 kW | G27: 0 | I27: 0 | K27: 0 | O27: 1583 | Q27: 160 | S27: 100 | U27: 826 | Y27: =SUM(G27,I27,K27,M27,O27,Q27,S27,U27,W27) -> 2669
C29: Actual/Planned number of Smart Meters installed (Residential and GS < 50 kW only) | G29: =G25+G27 -> 0 | I29: =I25+I27 -> 0 | K29: =K25+K27 -> 0 | M29: =M25+M27 -> 18050 | O29: =O25+O27 -> 4588 | Q29: =Q25+Q27 -> 183 | S29: =S25+S27 -> 100 | U29: =U25+U27 -> 1000 | W29: =W25+W27 -> 0 | Y29: =SUM(G29,I29,K29,M29,O29,Q29,S29,U29,W29) -> 23921
C31: Percentage of Residential and GS < 50 kW Smart Meter Installations Completed | G31: =IF($Y29=0,0,G29/$Y29) -> 0 | I31: =IF(G31=100%, 0, IF(ISERROR(SUM(G29:I29)/$Y29),0,SUM(G29:I29)/$Y29)) -> 0 | K31: =IF(I31=100%, 0, IF(ISERROR(SUM(G29:K29)/$Y29), 0, SUM(G29:K29)/$Y29)) -> 0 | M31: =IF(K31=100%,0,IF(ISERROR(SUM(G29:M29)/$Y29),0,SUM(G29:M29)/$Y29)) -> 0.7545671168 | O31: =IF(M31=100%,0,IF(ISERROR(SUM(G29:O29)/$Y29),0,SUM(G29:O29)/$Y29)) -> 0.9463651185 | Q31: =IF(O31=100%,0,IF(ISERROR(SUM(G29:Q29)/$Y29),0,SUM(G29:Q29)/$Y29)) -> 0.9540153004 | S31: =IF(Q31=100%,0,IF(ISERROR(SUM(G29:S29)/$Y29),0,SUM(G29:S29)/$Y29)) -> 0.9581957276 | U31: =IF(S31=100%,0,IF(ISERROR(SUM(I29:U29)/$Y29),0,SUM(I29:U29)/$Y29)) -> 1 | W31: =IF(U31=100%,0,IF(ISERROR(SUM(K29:W29)/$Y29),0,SUM(K29:W29)/$Y29)) -> 0 | Y31: =IF($Y29=0,"",Y29/$Y29) -> 1
C33: Actual/Planned number of GS > 50 kW meters installed | G33: 0 | I33: 0 | K33: 0 | M33: 0 | O33: 0 | Q33: 0 | S33: 0 | U33: 0 | W33: 0 | Y33: =SUM(G33,I33,K33,M33,O33,Q33,S33,U33,W33) -> 0
C35: Other (please identify) | G35: 0 | I35: 0 | K35: 0 | M35: 0 | O35: 0 | Q35: 0 | S35: 0 | U35: 0 | W35: 0 | Y35: =SUM(G35,I35,K35,M35,O35,Q35,S35,U35,W35) -> 0
C37: Total Number of Smart Meters installed or planned to be installed | G37: =SUM(G29,G33,G35) -> 0 | I37: =SUM(I29,I33,I35) -> 0 | K37: =SUM(K29,K33,K35) -> 0 | M37: =SUM(M29,M33,M35) -> 18050 | O37: =SUM(O29,O33,O35) -> 4588 | Q37: =SUM(Q29,Q33,Q35) -> 183 | S37: =SUM(S29,S33,S35) -> 100 | U37: =SUM(U29,U33,U35) -> 1000 | W37: =SUM(W29,W33,W35) -> 0 | Y37: =SUM(G37,I37,K37,M37,O37,Q37,S37,U37,W37) -> 23921
B39: 1 | C39: Capital Costs
E40: Asset Type
C41: 1.1 ADVANCED METERING COMMUNICATION DEVICE (AMCD) | E41: Asset type must be selected to enable calculations | G41: =IF(ISBLANK(G19),"",G19) -> Audited Actual | I41: =IF(ISBLANK(I19),"",I19) -> Audited Actual | K41: =IF(ISBLANK(K19),"",K19) -> Audited Actual | M41: =IF(ISBLANK(M19),"",M19) -> Audited Actual | O41: =IF(ISBLANK(O19),"",O19) -> Audited Actual | Q41: =IF(ISBLANK(Q19),"",Q19) -> Audited Actual | S41: =IF(ISBLANK(S19),"",S19) -> Audited Actual | U41: =IF(ISBLANK(U19),"",U19) -> Forecast | W41: =IF(ISBLANK(W19),"",W19) -> Forecast
C42: 1.1.1 Smart Meters (may include new meters and modules, etc.) | E42: Smart Meter | M42: 1650598.96 | O42: 294264.76 | S42: 30481.07 | U42: =478828.17 -> 478828.17 | Y42: =SUM(G42,I42,K42,M42,O42,Q42,S42,U42,W42) -> 2454172.96
C44: 1.1.2 Installation Costs (may include socket kits, labour, vehicle, benefits, etc.) | E44: Smart Meter | M44: 208464.58 | O44: 51384.95 | Q44: 22827.1 | U44: 7693.788235 | Y44: =SUM(G44,I44,K44,M44,O44,Q44,S44,U44,W44) -> 290370.4182
C46: 1.1.3a Workforce Automation Hardware (may include fieldwork handhelds, barcode hardware, etc.) | E46: Smart Meter | O46: 2700 | Q46: 290.32 | Y46: =SUM(G46,I46,K46,M46,O46,Q46,S46,U46,W46) -> 2990.32
C48: 1.1.3b Workforce Automation Software (may include fieldwork handhelds, barcode hardware, etc.) | E48: Smart Meter | Y48: =SUM(G48,I48,K48,M48,O48,Q48,S48,U48,W48) -> 0
C50: Total Advanced Metering Communications Devices (AMCD) | G50: =SUM(G42,G44,G46,G48) -> 0 | I50: =SUM(I42,I44,I46,I48) -> 0 | K50: =SUM(K42,K44,K46,K48) -> 0 | M50: =SUM(M42,M44,M46,M48) -> 1859063.54 | O50: =SUM(O42,O44,O46,O48) -> 348349.71 | Q50: =SUM(Q42,Q44,Q46,Q48) -> 23117.42 | S50: =SUM(S42,S44,S46,S48) -> 30481.07 | U50: =SUM(U42,U44,U46,U48) -> 486521.9582 | W50: =SUM(W42,W44,W46,W48) -> 0 | Y50: =Y42+Y44+Y46+Y48 -> 2747533.698
E52: =E40 -> Asset Type
C53: 1.2 ADVANCED METERING REGIONAL COLLECTOR (AMRC) (includes LAN) | G53: =G41 -> Audited Actual | I53: =I41 -> Audited Actual | K53: =K41 -> Audited Actual | M53: =M41 -> Audited Actual | O53: =O41 -> Audited Actual | Q53: =Q41 -> Audited Actual | S53: =S41 -> Audited Actual | U53: =U41 -> Forecast | W53: =W41 -> Forecast
C54: 1.2.1 Collectors | E54: Smart Meter | M54: 289648.25 | O54: 2620.95 | Q54: 1284.75 | S54: 578.84 | Y54: =SUM(G54,I54,K54,M54,O54,Q54,S54,U54,W54) -> 294132.79
C56: 1.2.2 Repeaters (may include radio licence, etc.) | E56: Smart Meter | Y56: =SUM(G56,I56,K56,M56,O56,Q56,S56,U56,W56) -> 0
C58: 1.2.3 Installation (may include meter seals and rings, collector computer hardware, etc.) | E58: Smart Meter | Y58: =SUM(G58,I58,K58,M58,O58,Q58,S58,U58,W58) -> 0
C60: Total Advanced Metering Regional Collector (AMRC) (Includes LAN) | G60: =G54+G56+G58 -> 0 | I60: =I54+I56+I58 -> 0 | K60: =K54+K56+K58 -> 0 | M60: =M54+M56+M58 -> 289648.25 | O60: =O54+O56+O58 -> 2620.95 | Q60: =Q54+Q56+Q58 -> 1284.75 | S60: =S54+S56+S58 -> 578.84 | U60: =U54+U56+U58 -> 0 | W60: =W54+W56+W58 -> 0 | Y60: =Y54+Y56+Y58 -> 294132.79
E62: =E52 -> Asset Type
C63: 1.3 ADVANCED METERING CONTROL COMPUTER (AMCC) | G63: =G53 -> Audited Actual | I63: =I53 -> Audited Actual | K63: =K53 -> Audited Actual | M63: =M53 -> Audited Actual | O63: =O53 -> Audited Actual | Q63: =Q53 -> Audited Actual | S63: =S53 -> Audited Actual | U63: =U53 -> Forecast | W63: =W53 -> Forecast
C64: 1.3.1 Computer Hardware | E64: Computer Hardware | M64: 2333.4 | O64: 1929.62 | U64: 4774.43 | Y64: =SUM(G64,I64,K64,M64,O64,Q64,S64,U64,W64) -> 9037.45
C66: 1.3.2 Computer Software | E66: Computer Software | M66: 29952.65 | O66: 1241.58 | Q66: 30287.55 | S66: 13643.95 | Y66: =SUM(G66,I66,K66,M66,O66,Q66,S66,U66,W66) -> 75125.73
C68: 1.3.3 Computer Software Licences & Installation (includes hardware and software) | E68: Computer Hardware | Y68: =SUM(G68,I68,K68,M68,O68,Q68,S68,U68,W68) -> 0
C69: (may include AS/400 disk space, backup and recovery computer, UPS, etc.)
C70: Total Advanced Metering Control Computer (AMCC) | G70: =G64+G66+G68 -> 0 | I70: =I64+I66+I68 -> 0 | K70: =K64+K66+K68 -> 0 | M70: =M64+M66+M68 -> 32286.05 | O70: =O64+O66+O68 -> 3171.2 | Q70: =Q64+Q66+Q68 -> 30287.55 | S70: =S64+S66+S68 -> 13643.95 | U70: =U64+U66+U68 -> 4774.43 | W70: =W64+W66+W68 -> 0 | Y70: =Y64+Y66+Y68 -> 84163.18
E72: =E62 -> Asset Type
C73: 1.4 WIDE AREA NETWORK (WAN) | G73: =G63 -> Audited Actual | I73: =I63 -> Audited Actual | K73: =K63 -> Audited Actual | M73: =M63 -> Audited Actual | O73: =O63 -> Audited Actual | Q73: =Q63 -> Audited Actual | S73: =S63 -> Audited Actual | U73: =U63 -> Forecast | W73: =W63 -> Forecast
C75: 1.4.1 Activiation Fees | Y75: =SUM(G75,I75,K75,M75,O75,Q75,S75,U75,W75) -> 0
C77: Total Wide Area Network (WAN) | G77: =G75 -> 0 | I77: =I75 -> 0 | K77: =K75 -> 0 | M77: =M75 -> 0 | O77: =O75 -> 0 | Q77: =Q75 -> 0 | S77: =S75 -> 0 | U77: =U75 -> 0 | W77: =W75 -> 0 | Y77: =Y75 -> 0
E79: =E72 -> Asset Type
C80: 1.5 OTHER AMI CAPITAL COSTS RELATED TO MINIMUM FUNCTIONALITY | G80: =G73 -> Audited Actual | I80: =I73 -> Audited Actual | K80: =K73 -> Audited Actual | M80: =M73 -> Audited Actual | O80: =O73 -> Audited Actual | Q80: =Q73 -> Audited Actual | S80: =S73 -> Audited Actual | U80: =U73 -> Forecast | W80: =W73 -> Forecast
C82: 1.5.1 Customer Equipment (including repair of damaged equipment) | E82: Smart Meter | O82: 5897.01 | Y82: =SUM(G82,I82,K82,M82,O82,Q82,S82,U82,W82) -> 5897.01
C84: 1.5.2 AMI Interface to CIS | E84: Smart Meter | O84: 16400.63 | Y84: =SUM(G84,I84,K84,M84,O84,Q84,S84,U84,W84) -> 16400.63
C86: 1.5.3 Professional Fees | E86: Smart Meter | G86: 6520.86 | I86: 29892.14 | K86: 29617.88 | M86: 37931.88 | O86: 34067.21 | Q86: 15800.09 | Y86: =SUM(G86,I86,K86,M86,O86,Q86,S86,U86,W86) -> 153830.06
C88: 1.5.4 Integration | E88: Smart Meter | Q88: 30750.38 | Y88: =SUM(G88,I88,K88,M88,O88,Q88,S88,U88,W88) -> 30750.38
C90: 1.5.5 Program Management | E90: Smart Meter | M90: 31076.74 | Q90: 34500 | Y90: =SUM(G90,I90,K90,M90,O90,Q90,S90,U90,W90) -> 65576.74
C92: 1.5.6 Other AMI Capital | E92: Other Equipment | S92: 31394.65 | Y92: =SUM(G92,I92,K92,M92,O92,Q92,S92,U92,W92) -> 31394.65
C94: Total Other AMI Capital Costs Related to Minimum Functionality | G94: =SUM(G82,G84,G86,G88,G90,G92) -> 6520.86 | I94: =SUM(I82,I84,I86,I88,I90,I92) -> 29892.14 | K94: =SUM(K82,K84,K86,K88,K90,K92) -> 29617.88 | M94: =SUM(M82,M84,M86,M88,M90,M92) -> 69008.62 | O94: =SUM(O82,O84,O86,O88,O90,O92) -> 56364.85 | Q94: =SUM(Q82,Q84,Q86,Q88,Q90,Q92) -> 81050.47 | S94: =SUM(S82,S84,S86,S88,S90,S92) -> 31394.65 | U94: =SUM(U82,U84,U86,U88,U90,U92) -> 0 | W94: =SUM(W82,W84,W86,W88,W90,W92) -> 0 | Y94: =SUM(Y82,Y84,Y86,Y88,Y90,Y92) -> 303849.47
C96: Total Capital Costs Related to Minimum Functionality | G96: =SUM(G50,G60,G70,G77,G94) -> 6520.86 | I96: =SUM(I50,I60,I70,I77,I94) -> 29892.14 | K96: =SUM(K50,K60,K70,K77,K94) -> 29617.88 | M96: =SUM(M50,M60,M70,M77,M94) -> 2250006.46 | O96: =SUM(O50,O60,O70,O77,O94) -> 410506.71 | Q96: =SUM(Q50,Q60,Q70,Q77,Q94) -> 135740.19 | S96: =SUM(S50,S60,S70,S77,S94) -> 76098.51 | U96: =SUM(U50,U60,U70,U77,U94) -> 491296.3882 | W96: =SUM(W50,W60,W70,W77,W94) -> 0 | Y96: =SUM(Y50,Y60,Y70,Y77,Y94) -> 3429679.138
E98: =E79 -> Asset Type
C99: 1.6 CAPITAL COSTS BEYOND MINIMUM FUNCTIONALITY | G99: =G80 -> Audited Actual | I99: =I80 -> Audited Actual | K99: =K80 -> Audited Actual | M99: =M80 -> Audited Actual | O99: =O80 -> Audited Actual | Q99: =Q80 -> Audited Actual | S99: =S80 -> Audited Actual | U99: =U80 -> Forecast | W99: =W80 -> Forecast
C100: (Please provide a descriptive title and identify nature of beyond minimum functionality costs)
C101: 1.6.1 Costs related to technical capabilities in the smart meters or related communications infrastructure that exceed those specified in O.Reg 425/06 | Y101: =SUM(G101,I101,K101,M101,O101,Q101,S101,U101,W101) -> 0
C103: 1.6.2 Costs for deployment of smart meters to customers other than residential and small general service | Y103: =SUM(G103,I103,K103,M103,O103,Q103,S103,U103,W103) -> 0
C105: 1.6.3 Costs for TOU rate implementation, CIS system upgrades, web presentation, integration with the MDM/R, etc. | Y105: =SUM(G105,I105,K105,M105,O105,Q105,S105,U105,W105) -> 0
C107: Total Capital Costs Beyond Minimum Functionality | G107: =SUM(G101,G103,G105) -> 0 | I107: =SUM(I101,I103,I105) -> 0 | K107: =SUM(K101,K103,K105) -> 0 | M107: =SUM(M101,M103,M105) -> 0 | O107: =SUM(O101,O103,O105) -> 0 | Q107: =SUM(Q101,Q103,Q105) -> 0 | S107: =SUM(S101,S103,S105) -> 0 | U107: =SUM(U101,U103,U105) -> 0 | W107: =SUM(W101,W103,W105) -> 0 | Y107: =SUM(Y101,Y103,Y105) -> 0
C109: Total Smart Meter Capital Costs | G109: =G96+G107 -> 6520.86 | I109: =I96+I107 -> 29892.14 | K109: =K96+K107 -> 29617.88 | M109: =M96+M107 -> 2250006.46 | O109: =O96+O107 -> 410506.71 | Q109: =Q96+Q107 -> 135740.19 | S109: =S96+S107 -> 76098.51 | U109: =U96+U107 -> 491296.3882 | W109: =W96+W107 -> 0 | Y109: =Y96+Y107 -> 3429679.138
B111: 2 | C111: OM&A Expenses
C112: 2.1 ADVANCED METERING COMMUNICATION DEVICE (AMCD) | G112: =G99 -> Audited Actual | I112: =I99 -> Audited Actual | K112: =K99 -> Audited Actual | M112: =M99 -> Audited Actual | O112: =O99 -> Audited Actual | Q112: =Q99 -> Audited Actual | S112: =S99 -> Audited Actual | U112: =U99 -> Forecast | W112: =W99 -> Forecast
C114: 2.1.1 Maintenance (may include meter reverification costs, etc.) | M114: 3987.67 | Q114: 637.46 | S114: 2990.84 | Y114: =SUM(G114,I114,K114,M114,O114,Q114,S114,U114,W114) -> 7615.97
C116: 2.1.2 Other (please specifiy) | Y116: =SUM(G116,I116,K116,M116,O116,Q116,S116,U116,W116) -> 0
C118: Total Incremental AMCD OM&A Costs | G118: =SUM(G114,G116) -> 0 | I118: =SUM(I114,I116) -> 0 | K118: =SUM(K114,K116) -> 0 | M118: =SUM(M114,M116) -> 3987.67 | O118: =SUM(O114,O116) -> 0 | Q118: =SUM(Q114,Q116) -> 637.46 | S118: =SUM(S114,S116) -> 2990.84 | U118: =SUM(U114,U116) -> 0 | W118: =SUM(W114,W116) -> 0 | Y118: =SUM(Y114,Y116) -> 7615.97
C120: 2.2 ADVANCED METERING REGIONAL COLLECTOR (AMRC) (includes LAN)
C122: 2.2.1 Maintenance | Q122: 19750.32 | Y122: =SUM(G122,I122,K122,M122,O122,Q122,S122,U122,W122) -> 19750.32
C124: 2.2.2 Other (please specifiy) | Y124: =SUM(G124,I124,K124,M124,O124,Q124,S124,U124,W124) -> 0
C126: Total Incremental AMRC OM&A Costs | G126: =SUM(G122,G124) -> 0 | I126: =SUM(I122,I124) -> 0 | K126: =SUM(K122,K124) -> 0 | M126: =SUM(M122,M124) -> 0 | O126: =SUM(O122,O124) -> 0 | Q126: =SUM(Q122,Q124) -> 19750.32 | S126: =SUM(S122,S124) -> 0 | U126: =SUM(U122,U124) -> 0 | W126: =SUM(W122,W124) -> 0 | Y126: =SUM(Y122,Y124) -> 19750.32
C128: 2.3 ADVANCED METERING CONTROL COMPUTER (AMCC)
C130: 2.3.1 Hardware Maintenance (may include server support, etc.) | Y130: =SUM(G130,I130,K130,M130,O130,Q130,S130,U130,W130) -> 0
C132: 2.3.2 Software Maintenance (may include maintenance support, etc.) | O132: =27899.73+54028.56 -> 81928.29 | Q132: =16762.85+32822.88+57611.91 -> 107197.64 | Y132: =SUM(G132,I132,K132,M132,O132,Q132,S132,U132,W132) -> 189125.93
C134: 2.3.2 Other (please specifiy) | Y134: =SUM(G134,I134,K134,M134,O134,Q134,S134,U134,W134) -> 0
C136: Total Incremental AMCC OM&A Costs | G136: =SUM(G130,G132,G134) -> 0 | I136: =SUM(I130,I132,I134) -> 0 | K136: =SUM(K130,K132,K134) -> 0 | M136: =SUM(M130,M132,M134) -> 0 | O136: =SUM(O130,O132,O134) -> 81928.29 | Q136: =SUM(Q130,Q132,Q134) -> 107197.64 | S136: =SUM(S130,S132,S134) -> 0 | U136: =SUM(U130,U132,U134) -> 0 | W136: =SUM(W130,W132,W134) -> 0 | Y136: =SUM(Y130,Y132,Y134) -> 189125.93
C138: 2.4 WIDE AREA NETWORK (WAN)
C140: 2.4.1 WAN Maintenance | M140: 8363.12 | O140: 6402.4 | Q140: 2824.14 | Y140: =SUM(G140,I140,K140,M140,O140,Q140,S140,U140,W140) -> 17589.66
C142: 2.4.2 Other (please specifiy) | Y142: =SUM(G142,I142,K142,M142,O142,Q142,S142,U142,W142) -> 0
C144: Total Incremental AMRC OM&A Costs | G144: =SUM(G140,G142) -> 0 | I144: =SUM(I140,I142) -> 0 | K144: =SUM(K140,K142) -> 0 | M144: =SUM(M140,M142) -> 8363.12 | O144: =SUM(O140,O142) -> 6402.4 | Q144: =SUM(Q140,Q142) -> 2824.14 | S144: =SUM(S140,S142) -> 0 | U144: =SUM(U140,U142) -> 0 | W144: =SUM(W140,W142) -> 0 | Y144: =SUM(Y140,Y142) -> 17589.66
C146: 2.5 OTHER AMI OM&A COSTS RELATED TO MINIMUM FUNCTIONALITY
C148: 2.5.1 Business Process Redesign | M148: 24780.9 | Y148: =SUM(G148,I148,K148,M148,O148,Q148,S148,U148,W148) -> 24780.9
C150: 2.5.2 Customer Communication (may include project communication, etc.) | K150: 1390.32 | M150: 50885.59 | O150: 11640 | Q150: 13406.34 | Y150: =SUM(G150,I150,K150,M150,O150,Q150,S150,U150,W150) -> 77322.25
C152: 2.5.3 Program Management | Q152: 388.28 | Y152: =SUM(G152,I152,K152,M152,O152,Q152,S152,U152,W152) -> 388.28
C154: 2.5.4 Change Management (may include training, etc.) | I154: 7734.33 | K154: 272.05 | M154: 5593.64 | O154: 891.01 | Q154: 5334.14 | Y154: =SUM(G154,I154,K154,M154,O154,Q154,S154,U154,W154) -> 19825.17
C156: 2.5.5 Administration Costs | M156: 29713.92 | Q156: 16693.16 | Y156: =SUM(G156,I156,K156,M156,O156,Q156,S156,U156,W156) -> 46407.08
C158: 2.5.6 Other AMI Expenses | Q158: 9731.53 | Y158: =SUM(G158,I158,K158,M158,O158,Q158,S158,U158,W158) -> 9731.53
C159: (please specify)
C160: Total Other AMI OM&A Costs Related to Minimum Functionality | G160: =SUM(G158,G156,G154,G152,G150,G148) -> 0 | I160: =SUM(I158,I156,I154,I152,I150,I148) -> 7734.33 | K160: =SUM(K158,K156,K154,K152,K150,K148) -> 1662.37 | M160: =SUM(M158,M156,M154,M152,M150,M148) -> 110974.05 | O160: =SUM(O158,O156,O154,O152,O150,O148) -> 12531.01 | Q160: =SUM(Q158,Q156,Q154,Q152,Q150,Q148) -> 45553.45 | S160: =SUM(S158,S156,S154,S152,S150,S148) -> 0 | U160: =SUM(U158,U156,U154,U152,U150,U148) -> 0 | W160: =SUM(W158,W156,W154,W152,W150,W148) -> 0 | Y160: =SUM(Y154,Y156,Y158,Y152,Y150,Y148) -> 178455.21
C162: TOTAL OM&A COSTS RELATED TO MINIMUM FUNCTIONALITY | G162: =SUM(G118,G126,G136,G144,G160) -> 0 | I162: =SUM(I118,I126,I136,I144,I160) -> 7734.33 | K162: =SUM(K118,K126,K136,K144,K160) -> 1662.37 | M162: =SUM(M118,M126,M136,M144,M160) -> 123324.84 | O162: =SUM(O118,O126,O136,O144,O160) -> 100861.7 | Q162: =SUM(Q118,Q126,Q136,Q144,Q160) -> 175963.01 | S162: =SUM(S118,S126,S136,S144,S160) -> 2990.84 | U162: =SUM(U118,U126,U136,U144,U160) -> 0 | W162: =SUM(W118,W126,W136,W144,W160) -> 0 | Y162: =SUM(Y118,Y126,Y136,Y144,Y160) -> 412537.09
C164: 2.6 OM&A COSTS RELATED TO BEYOND MINIMUM FUNCTIONALITY | G164: =G112 -> Audited Actual | I164: =I112 -> Audited Actual | K164: =K112 -> Audited Actual | M164: =M112 -> Audited Actual | O164: =O112 -> Audited Actual | Q164: =Q112 -> Audited Actual | S164: =S112 -> Audited Actual | U164: Forecast | W164: Forecast
C165: (Please provide a descriptive title and identify nature of beyond minimum functionality costs)
C166: 2.6.1 Costs related to technical capabilities in the smart meters or related communications infrastructure that exceed those specified in O.Reg 425/06 | Y166: =SUM(G166,I166,K166,M166,O166,Q166,S166,U166,W166) -> 0
C168: 2.6.2 Costs for deployment of smart meters to customers other than residential and small general service | Y168: =SUM(G168,I168,K168,M168,O168,Q168,S168,U168,W168) -> 0
C170: 2.6.3 Costs for TOU rate implementation, CIS system upgrades, web presentation, integration with the MDM/R, etc. | Y170: =SUM(G170,I170,K170,M170,O170,Q170,S170,U170,W170) -> 0
C172: Total OM&A Costs Beyond Minimum Functionality | G172: =SUM(G166,G168,G170) -> 0 | I172: =SUM(I166,I168,I170) -> 0 | K172: =SUM(K166,K168,K170) -> 0 | M172: =SUM(M166,M168,M170) -> 0 | O172: =SUM(O166,O168,O170) -> 0 | Q172: =SUM(Q166,Q168,Q170) -> 0 | S172: =SUM(S166,S168,S170) -> 0 | U172: =SUM(U166,U168,U170) -> 0 | W172: =SUM(W166,W168,W170) -> 0 | Y172: =SUM(Y166,Y168,Y170) -> 0
C174: Total Smart Meter OM&A Costs | G174: =G162+G172 -> 0 | I174: =I162+I172 -> 7734.33 | K174: =K162+K172 -> 1662.37 | M174: =M162+M172 -> 123324.84 | O174: =O162+O172 -> 100861.7 | Q174: =Q162+Q172 -> 175963.01 | S174: =S162+S172 -> 2990.84 | U174: =U162+U172 -> 0 | W174: =W162+W172 -> 0 | Y174: =Y162+Y172 -> 412537.09
B177: 3 | C177: Aggregate Smart Meter Costs by Category
C179: 3.1 | D179: Capital
C181: 3.1.1 | D181: Smart Meter | G181: =SUMIF($E$42:$E$105,$D181,G$42:G$105) -> 6520.86 | I181: =SUMIF($E$42:$E$105,$D181,I$42:I$105) -> 29892.14 | K181: =SUMIF($E$42:$E$105,$D181,K$42:K$105) -> 29617.88 | M181: =SUMIF($E$42:$E$105,$D181,M$42:M$105) -> 2217720.41 | O181: =SUMIF($E$42:$E$105,$D181,O$42:O$105) -> 407335.51 | Q181: =SUMIF($E$42:$E$105,$D181,Q$42:Q$105) -> 105452.64 | S181: =SUMIF($E$42:$E$105,$D181,S$42:S$105) -> 31059.91 | U181: =SUMIF($E$42:$E$105,$D181,U$42:U$105) -> 486521.9582 | W181: =SUMIF($E$42:$E$105,$D181,W$42:W$105) -> 0 | Y181: =SUM(G181:W181) -> 3314121.308
C183: 3.1.2 | D183: Computer Hardware | G183: =SUMIF($E$42:$E$105,$D183,G$42:G$105) -> 0 | I183: =SUMIF($E$42:$E$105,$D183,I$42:I$105) -> 0 | K183: =SUMIF($E$42:$E$105,$D183,K$42:K$105) -> 0 | M183: =SUMIF($E$42:$E$105,$D183,M$42:M$105) -> 2333.4 | O183: =SUMIF($E$42:$E$105,$D183,O$42:O$105) -> 1929.62 | Q183: =SUMIF($E$42:$E$105,$D183,Q$42:Q$105) -> 0 | S183: =SUMIF($E$42:$E$105,$D183,S$42:S$105) -> 0 | U183: =SUMIF($E$42:$E$105,$D183,U$42:U$105) -> 4774.43 | W183: =SUMIF($E$42:$E$105,$D183,W$42:W$105) -> 0 | Y183: =SUM(G183:W183) -> 9037.45
C185: 3.1.3 | D185: Computer Software | G185: =SUMIF($E$42:$E$105,$D185,G$42:G$105) -> 0 | I185: =SUMIF($E$42:$E$105,$D185,I$42:I$105) -> 0 | K185: =SUMIF($E$42:$E$105,$D185,K$42:K$105) -> 0 | M185: =SUMIF($E$42:$E$105,$D185,M$42:M$105) -> 29952.65 | O185: =SUMIF($E$42:$E$105,$D185,O$42:O$105) -> 1241.58 | Q185: =SUMIF($E$42:$E$105,$D185,Q$42:Q$105) -> 30287.55 | S185: =SUMIF($E$42:$E$105,$D185,S$42:S$105) -> 13643.95 | U185: =SUMIF($E$42:$E$105,$D185,U$42:U$105) -> 0 | W185: =SUMIF($E$42:$E$105,$D185,W$42:W$105) -> 0 | Y185: =SUM(G185:W185) -> 75125.73
C187: 3.1.4 | D187: Tools & Equipment | G187: =SUMIF($E$42:$E$105,$D187,G$42:G$105) -> 0 | I187: =SUMIF($E$42:$E$105,$D187,I$42:I$105) -> 0 | K187: =SUMIF($E$42:$E$105,$D187,K$42:K$105) -> 0 | M187: =SUMIF($E$42:$E$105,$D187,M$42:M$105) -> 0 | O187: =SUMIF($E$42:$E$105,$D187,O$42:O$105) -> 0 | Q187: =SUMIF($E$42:$E$105,$D187,Q$42:Q$105) -> 0 | S187: =SUMIF($E$42:$E$105,$D187,S$42:S$105) -> 0 | U187: =SUMIF($E$42:$E$105,$D187,U$42:U$105) -> 0 | W187: =SUMIF($E$42:$E$105,$D187,W$42:W$105) -> 0 | Y187: =SUM(G187:W187) -> 0
C189: 3.1.5 | D189: Other Equipment | G189: =SUMIF($E$42:$E$105,$D189,G$42:G$105) -> 0 | I189: =SUMIF($E$42:$E$105,$D189,I$42:I$105) -> 0 | K189: =SUMIF($E$42:$E$105,$D189,K$42:K$105) -> 0 | M189: =SUMIF($E$42:$E$105,$D189,M$42:M$105) -> 0 | O189: =SUMIF($E$42:$E$105,$D189,O$42:O$105) -> 0 | Q189: =SUMIF($E$42:$E$105,$D189,Q$42:Q$105) -> 0 | S189: =SUMIF($E$42:$E$105,$D189,S$42:S$105) -> 31394.65 | U189: =SUMIF($E$42:$E$105,$D189,U$42:U$105) -> 0 | W189: =SUMIF($E$42:$E$105,$D189,W$42:W$105) -> 0 | Y189: =SUM(G189:W189) -> 31394.65
C191: 3.1.6 | D191: Applications Software | G191: =SUMIF($E$42:$E$105,$D191,G$42:G$105) -> 0 | I191: =SUMIF($E$42:$E$105,$D191,I$42:I$105) -> 0 | K191: =SUMIF($E$42:$E$105,$D191,K$42:K$105) -> 0 | M191: =SUMIF($E$42:$E$105,$D191,M$42:M$105) -> 0 | O191: =SUMIF($E$42:$E$105,$D191,O$42:O$105) -> 0 | Q191: =SUMIF($E$42:$E$105,$D191,Q$42:Q$105) -> 0 | S191: =SUMIF($E$42:$E$105,$D191,S$42:S$105) -> 0 | U191: =SUMIF($E$42:$E$105,$D191,U$42:U$105) -> 0 | W191: =SUMIF($E$42:$E$105,$D191,W$42:W$105) -> 0 | Y191: =SUM(G191:W191) -> 0
C193: 3.1.7 | D193: Total Capital Costs | G193: =SUM(G181:G191) -> 6520.86 | I193: =SUM(I181:I191) -> 29892.14 | K193: =SUM(K181:K191) -> 29617.88 | M193: =SUM(M181:M191) -> 2250006.46 | O193: =SUM(O181:O191) -> 410506.71 | Q193: =SUM(Q181:Q191) -> 135740.19 | S193: =SUM(S181:S191) -> 76098.51 | U193: =SUM(U181:U191) -> 491296.3882 | W193: =SUM(W181:W191) -> 0 | Y193: =SUM(Y181:Y191) -> 3429679.138
G194: =IF(G193=G109,"","Error") ->  | I194: =IF(I193=I109,"","Error") ->  | K194: =IF(K193=K109,"","Error") ->  | M194: =IF(M193=M109,"","Error") ->  | O194: =IF(O193=O109,"","Error") ->  | Q194: =IF(Q193=Q109,"","Error") ->  | S194: =IF(S193=S109,"","Error") ->  | U194: =IF(U193=U109,"","Error") ->  | W194: =IF(W193=W109,"","Error") ->  | Y194: =IF(Y193=Y109,"","Error") -> 
C195: 3.2 | D195: OM&A Costs
C197: 3.2.1 | D197: Total OM&A Costs | G197: =G174 -> 0 | I197: =I174 -> 7734.33 | K197: =K174 -> 1662.37 | M197: =M174 -> 123324.84 | O197: =O174 -> 100861.7 | Q197: =Q174 -> 175963.01 | S197: =S174 -> 2990.84 | U197: =U174 -> 0 | W197: =W174 -> 0 | Y197: =Y174 -> 412537.09

Sheet 3. Cost_of_Service_Parameters
G19: 2006 | I19: 2007 | K19: 2008 | M19: 2009 | O19: 2010 | Q19: 2011 | S19: 2012 | U19: 2013 | W19: 2014
B20: Cost of Capital
C21: Capital Structure1
D22: Deemed Short-term Debt Capitalization | O22: 0.04 | Q22: 0.04 | S22: 0.04 | U22: 0.04 | W22: 0.04
D23: Deemed Long-term Debt Capitalization | G23: 0.5 | I23: =G23 -> 0.5 | K23: =IF(I23=50%,53.3%-K22,IF(I23=55%,57.5%-K22,IF(I23=65%,62.5%-K22,60%-K22))) -> 0.533 | M23: =IF(I23=50%,56.7%-M22,60%-M22) -> 0.567 | O23: =60%-O22 -> 0.56 | Q23: =O23-(Q22-O22) -> 0.56 | S23: =Q23-(S22-Q22) -> 0.56 | U23: =S23-(U22-S22) -> 0.56 | W23: =U23-(W22-U22) -> 0.56
D24: Deemed Equity Capitalization | G24: =100%-G23-G25 -> 0.5 | I24: =100%-I23-I25-I22 -> 0.5 | K24: =100%-K23-K25-K22 -> 0.467 | M24: =100%-M23-M25-M22 -> 0.433 | O24: =100%-O23-O25-O22 -> 0.4 | Q24: =100%-Q23-Q25-Q22 -> 0.4 | S24: =100%-S23-S25-S22 -> 0.4 | U24: =100%-U23-U25-U22 -> 0.4 | W24: =100%-W23-W25-W22 -> 0.4
D25: Preferred Shares
C26: Total | G26: =SUM(G22:G25) -> 1 | I26: =SUM(I22:I25) -> 1 | K26: =SUM(K22:K25) -> 1 | M26: =SUM(M22:M25) -> 1 | O26: =SUM(O22:O25) -> 1 | Q26: =SUM(Q22:Q25) -> 1 | S26: =SUM(S22:S25) -> 1 | U26: =SUM(U22:U25) -> 1 | W26: =SUM(W22:W25) -> 1
C28: Cost of Capital Parameters
D29: Deemed Short-term Debt Rate | O29: 0.0207 | Q29: 0.0207 | S29: 0.0207 | U29: 0.0207 | W29: 0.0207
D30: Long-term Debt Rate (actual/embedded/deemed)2 | G30: 0.05 | I30: =G30 -> 0.05 | K30: 0.05 | M30: 0.05 | O30: 0.0496 | Q30: 0.0496 | S30: 0.0496 | U30: 0.0496 | W30: 0.0496
D31: Target Return on Equity (ROE) | G31: 0.09 | I31: =G31 -> 0.09 | K31: 0.09 | M31: 0.09 | O31: 0.0985 | Q31: 0.0985 | S31: 0.0985 | U31: 0.0985 | W31: 0.0985
D32: Return on Preferred Shares
C33: WACC | G33: =SUMPRODUCT(G22:G25,G29:G32) -> 0.07 | I33: =SUMPRODUCT(I22:I25,I29:I32) -> 0.07 | K33: =SUMPRODUCT(K22:K25,K29:K32) -> 0.06868 | M33: =SUMPRODUCT(M22:M25,M29:M32) -> 0.06732 | O33: =SUMPRODUCT(O22:O25,O29:O32) -> 0.068004 | Q33: =SUMPRODUCT(Q22:Q25,Q29:Q32) -> 0.068004 | S33: =SUMPRODUCT(S22:S25,S29:S32) -> 0.068004 | U33: =SUMPRODUCT(U22:U25,U29:U32) -> 0.068004 | W33: =SUMPRODUCT(W22:W25,W29:W32) -> 0.068004
B35: Working Capital Allowance
C36: Working Capital Allowance Rate | G36: 0.15 | I36: 0.15 | K36: 0.15 | M36: 0.15 | O36: 0.15 | Q36: 0.15 | S36: 0.15 | U36: 0.15 | W36: 0.15
C37: (% of the sum of Cost of Power + controllable expenses)
B39: Taxes/PILs
C40: Aggregate Corporate Income Tax Rate | G40: 0.3612 | I40: 0.3612 | K40: 0.335 | M40: 0.33 | O40: 0.2872 | Q40: 0.2825 | S40: 0.2479 | U40: 0.265 | W40: 0.265
C41: Capital Tax (until July 1st, 2010) | G41: 0.003 | I41: 0.00225 | K41: 0.00225 | M41: 0.00225 | O41: 0.00075 | Q41: 0 | S41: 0 | U41: 0 | W41: 0
B43: Depreciation Rates
B44: (expressed as expected useful life in years)
C45: Smart Meters - years | G45: 15 | I45: 15 | K45: 15 | M45: 15 | O45: 15 | Q45: 15 | S45: 15 | U45: 15 | W45: 15
C46: - rate (%) | G46: =IF(G45=0,0,1/G45) -> 0.06666666667 | I46: =IF(I45=0,0,1/I45) -> 0.06666666667 | K46: =IF(K45=0,0,1/K45) -> 0.06666666667 | M46: =IF(M45=0,0,1/M45) -> 0.06666666667 | O46: =IF(O45=0,0,1/O45) -> 0.06666666667 | Q46: =IF(Q45=0,0,1/Q45) -> 0.06666666667 | S46: =IF(S45=0,0,1/S45) -> 0.06666666667 | U46: =IF(U45=0,0,1/U45) -> 0.06666666667 | W46: =IF(W45=0,0,1/W45) -> 0.06666666667
C47: Computer Hardware - years | G47: 5 | I47: 5 | K47: 5 | M47: 5 | O47: 5 | Q47: 5 | S47: 5 | U47: 5 | W47: 5
C48: - rate (%) | G48: =IF(G47=0,0,1/G47) -> 0.2 | I48: =IF(I47=0,0,1/I47) -> 0.2 | K48: =IF(K47=0,0,1/K47) -> 0.2 | M48: =IF(M47=0,0,1/M47) -> 0.2 | O48: =IF(O47=0,0,1/O47) -> 0.2 | Q48: =IF(Q47=0,0,1/Q47) -> 0.2 | S48: =IF(S47=0,0,1/S47) -> 0.2 | U48: =IF(U47=0,0,1/U47) -> 0.2 | W48: =IF(W47=0,0,1/W47) -> 0.2
C49: Computer Software - years | G49: 5 | I49: 5 | K49: 5 | M49: 5 | O49: 5 | Q49: 5 | S49: 5 | U49: 5 | W49: 5
C50: - rate (%) | G50: =IF(G49=0,0,1/G49) -> 0.2 | I50: =IF(I49=0,0,1/I49) -> 0.2 | K50: =IF(K49=0,0,1/K49) -> 0.2 | M50: =IF(M49=0,0,1/M49) -> 0.2 | O50: =IF(O49=0,0,1/O49) -> 0.2 | Q50: =IF(Q49=0,0,1/Q49) -> 0.2 | S50: =IF(S49=0,0,1/S49) -> 0.2 | U50: =IF(U49=0,0,1/U49) -> 0.2 | W50: =IF(W49=0,0,1/W49) -> 0.2
C51: Tools & Equipment - years
C52: - rate (%) | G52: =IF(G51=0,0,1/G51) -> 0 | I52: =IF(I51=0,0,1/I51) -> 0 | K52: =IF(K51=0,0,1/K51) -> 0 | M52: =IF(M51=0,0,1/M51) -> 0 | O52: =IF(O51=0,0,1/O51) -> 0 | Q52: =IF(Q51=0,0,1/Q51) -> 0 | S52: =IF(S51=0,0,1/S51) -> 0 | U52: =IF(U51=0,0,1/U51) -> 0 | W52: =IF(W51=0,0,1/W51) -> 0
C53: Other Equipment - years | G53: 45 | I53: 45 | K53: 45 | M53: 45 | O53: 45 | Q53: 45 | S53: 45 | U53: 45 | W53: 45
C54: - rate (%) | G54: =IF(G53=0,0,1/G53) -> 0.02222222222 | I54: =IF(I53=0,0,1/I53) -> 0.02222222222 | K54: =IF(K53=0,0,1/K53) -> 0.02222222222 | M54: =IF(M53=0,0,1/M53) -> 0.02222222222 | O54: =IF(O53=0,0,1/O53) -> 0.02222222222 | Q54: =IF(Q53=0,0,1/Q53) -> 0.02222222222 | S54: =IF(S53=0,0,1/S53) -> 0.02222222222 | U54: =IF(U53=0,0,1/U53) -> 0.02222222222 | W54: =IF(W53=0,0,1/W53) -> 0.02222222222
B56: CCA Rates
C57: Smart Meters - CCA Class | G57: 47 | I57: 47 | K57: 47 | M57: 47 | O57: 47 | Q57: 47 | S57: 47 | U57: 47 | W57: 47
C58: Smart Meters - CCA Rate | G58: 0.08 | I58: 0.08 | K58: 0.08 | M58: 0.08 | O58: 0.08 | Q58: 0.08 | S58: 0.08 | U58: 0.08 | W58: 0.08
C60: Computer Equipment - CCA Class | G60: 52 | I60: 52 | K60: 52 | M60: 52 | O60: 52 | Q60: 52 | S60: 52 | U60: 52 | W60: 52
C61: Computer Equipment - CCA Rate | G61: 1 | I61: 1 | K61: 1 | M61: 1 | O61: 1 | Q61: 1 | S61: 1 | U61: 1 | W61: 1
C63: General Equipment - CCA Class | G63: 8 | I63: 8 | K63: 8 | M63: 8 | O63: 8 | Q63: 8 | S63: 8 | U63: 8 | W63: 8
C64: General Equipment - CCA Rate | G64: 0.2 | I64: 0.2 | K64: 0.2 | M64: 0.2 | O64: 0.2 | Q64: 0.2 | S64: 0.2 | U64: 0.2 | W64: 0.2
C66: Applications Software - CCA Class
C67: Applications Software - CCA Rate
B69: Assumptions
B70: 1 | C70: Planned smart meter installations occur evenly throughout the year.
B71: 2 | C71: Fiscal calendar year (January 1 to December 31) used.
B72: 3 | C72: Amortization is done on a striaght line basis and has the "half-year" rule applied.

Sheet 4. SM_Assets_and_Rate_Base
G18: 2006 | I18: 2007 | K18: 2008 | M18: 2009 | O18: 2010 | Q18: 2011 | S18: 2012 | U18: 2013 | W18: 2014
B19: Net Fixed Assets - Smart Meters
C21: Gross Book Value
D22: Opening Balance | I22: =G25 -> 6520.86 | K22: =I25 -> 36413 | M22: =K25 -> 66030.88 | O22: =M25 -> 2283751.29 | Q22: =O25 -> 2691086.8 | S22: =Q25 -> 2796539.44 | U22: =S25 -> 2827599.35 | W22: =U25 -> 3314121.308
D23: Capital Additions during year (from Smart Meter Costs) | G23: ='2. Smart_Meter_Costs'!G181 -> 6520.86 | I23: ='2. Smart_Meter_Costs'!I181 -> 29892.14 | K23: ='2. Smart_Meter_Costs'!K181 -> 29617.88 | M23: ='2. Smart_Meter_Costs'!M181 -> 2217720.41 | O23: ='2. Smart_Meter_Costs'!O181 -> 407335.51 | Q23: ='2. Smart_Meter_Costs'!Q181 -> 105452.64 | S23: ='2. Smart_Meter_Costs'!S181 -> 31059.91 | U23: ='2. Smart_Meter_Costs'!U181 -> 486521.9582 | W23: ='2. Smart_Meter_Costs'!W181 -> 0
D24: Retirements/Removals (if applicable)
D25: Closing Balance | G25: =G22+G23-G24 -> 6520.86 | I25: =I22+I23-I24 -> 36413 | K25: =K22+K23-K24 -> 66030.88 | M25: =M22+M23-M24 -> 2283751.29 | O25: =O22+O23-O24 -> 2691086.8 | Q25: =Q22+Q23-Q24 -> 2796539.44 | S25: =S22+S23-S24 -> 2827599.35 | U25: =U22+U23-U24 -> 3314121.308 | W25: =W22+W23-W24 -> 3314121.308
C27: Accumulated Depreciation
D28: Opening Balance | I28: =G31 -> -217.362 | K28: =I31 -> -1648.490667 | M28: =K31 -> -5063.286667 | O28: =M31 -> -83389.359 | Q28: =O31 -> -249217.2953 | S28: =Q31 -> -432138.17 | U28: =S31 -> -619609.463 | W28: =U31 -> -824333.4849
D29: Amortization expense during year | G29: =IF(ISERROR(-G23/('3. Cost_of_Service_Parameters'!G45*2)), 0, -G23/('3. Cost_of_Service_Parameters'!G45*2)) -> -217.362 | I29: =IF(ISERROR(-(I23/('3. Cost_of_Service_Parameters'!I45*2)+MIN((I22/'3. Cost_of_Service_Parameters'!I45),(I22+I28)))), 0, -(I23/('3. Cost_of_Service_Parameters'!I45*2)+MIN((I22/'3. Cost_of_Service_Parameters'!I45),(I22+I28)))) -> -1431.128667 | K29: =IF(ISERROR(-(K23/('3. Cost_of_Service_Parameters'!K45*2)+MIN((K22/'3. Cost_of_Service_Parameters'!K45),(K22+K28)))), 0, -(K23/('3. Cost_of_Service_Parameters'!K45*2)+MIN((K22/'3. Cost_of_Service_Parameters'!K45),(K22+K28)))) -> -3414.796 | M29: =IF(ISERROR(-(M23/('3. Cost_of_Service_Parameters'!M45*2)+MIN((M22/'3. Cost_of_Service_Parameters'!M45),(M22+M28)))), 0,-(M23/('3. Cost_of_Service_Parameters'!M45*2)+MIN((M22/'3. Cost_of_Service_Parameters'!M45),(M22+M28)))) -> -78326.07233 | O29: =IF(ISERROR(-(O23/('3. Cost_of_Service_Parameters'!O45*2)+MIN((O22/'3. Cost_of_Service_Parameters'!O45),(O22+O28)))), 0, -(O23/('3. Cost_of_Service_Parameters'!O45*2)+MIN((O22/'3. Cost_of_Service_Parameters'!O45),(O22+O28)))) -> -165827.9363 | Q29: =IF(ISERROR(-(Q23/('3. Cost_of_Service_Parameters'!Q45*2)+MIN((Q22/'3. Cost_of_Service_Parameters'!Q45),(Q22+Q28)))), 0, -(Q23/('3. Cost_of_Service_Parameters'!Q45*2)+MIN((Q22/'3. Cost_of_Service_Parameters'!Q45),(Q22+Q28)))) -> -182920.8747 | S29: =IF(ISERROR(-(S23/('3. Cost_of_Service_Parameters'!S45*2)+MIN((S22/'3. Cost_of_Service_Parameters'!S45),(S22+S28)))), 0, -(S23/('3. Cost_of_Service_Parameters'!S45*2)+MIN((S22/'3. Cost_of_Service_Parameters'!S45),(S22+S28)))) -> -187471.293 | U29: =IF(ISERROR(-(U23/('3. Cost_of_Service_Parameters'!U45*2)+MIN((U22/'3. Cost_of_Service_Parameters'!U45),(U22+U28)))), 0, -(U23/('3. Cost_of_Service_Parameters'!U45*2)+MIN((U22/'3. Cost_of_Service_Parameters'!U45),(U22+U28)))) -> -204724.0219 | W29: =IF(ISERROR(-(W23/('3. Cost_of_Service_Parameters'!W45*2)+MIN((W22/'3. Cost_of_Service_Parameters'!W45),(W22+W28)))), 0, -(W23/('3. Cost_of_Service_Parameters'!W45*2)+MIN((W22/'3. Cost_of_Service_Parameters'!W45),(W22+W28)))) -> -220941.4205
D30: Retirements/Removals (if applicable)
D31: Closing Balance | G31: =G28+G29-G30 -> -217.362 | I31: =I28+I29-I30 -> -1648.490667 | K31: =K28+K29-K30 -> -5063.286667 | M31: =M28+M29-M30 -> -83389.359 | O31: =O28+O29-O30 -> -249217.2953 | Q31: =Q28+Q29-Q30 -> -432138.17 | S31: =S28+S29-S30 -> -619609.463 | U31: =U28+U29-U30 -> -824333.4849 | W31: =W28+W29-W30 -> -1045274.905
C33: Net Book Value
D34: Opening Balance | G34: =G22+G28 -> 0 | I34: =G35 -> 6303.498 | K34: =I35 -> 34764.50933 | M34: =K35 -> 60967.59333 | O34: =M35 -> 2200361.931 | Q34: =O35 -> 2441869.505 | S34: =Q35 -> 2364401.27 | U34: =S35 -> 2207989.887 | W34: =U35 -> 2489787.823
D35: Closing Balance | G35: =G25+G31 -> 6303.498 | I35: =I25+I31 -> 34764.50933 | K35: =K25+K31 -> 60967.59333 | M35: =M25+M31 -> 2200361.931 | O35: =O25+O31 -> 2441869.505 | Q35: =Q25+Q31 -> 2364401.27 | S35: =S25+S31 -> 2207989.887 | U35: =U25+U31 -> 2489787.823 | W35: =W25+W31 -> 2268846.403
D36: Average Net Book Value | G36: =AVERAGE(G34:G35) -> 3151.749 | I36: =AVERAGE(I34:I35) -> 20534.00367 | K36: =AVERAGE(K34:K35) -> 47866.05133 | M36: =AVERAGE(M34:M35) -> 1130664.762 | O36: =AVERAGE(O34:O35) -> 2321115.718 | Q36: =AVERAGE(Q34:Q35) -> 2403135.387 | S36: =AVERAGE(S34:S35) -> 2286195.579 | U36: =AVERAGE(U34:U35) -> 2348888.855 | W36: =AVERAGE(W34:W35) -> 2379317.113
B38: Net Fixed Assets - Computer Hardware
C40: Gross Book Value
D41: Opening Balance | I41: =G44 -> 0 | K41: =I44 -> 0 | M41: =K44 -> 0 | O41: =M44 -> 2333.4 | Q41: =O44 -> 4263.02 | S41: =Q44 -> 4263.02 | U41: =S44 -> 4263.02 | W41: =U44 -> 9037.45
D42: Capital Additions during year (from Smart Meter Costs) | G42: ='2. Smart_Meter_Costs'!G183 -> 0 | I42: ='2. Smart_Meter_Costs'!I183 -> 0 | K42: ='2. Smart_Meter_Costs'!K183 -> 0 | M42: ='2. Smart_Meter_Costs'!M183 -> 2333.4 | O42: ='2. Smart_Meter_Costs'!O183 -> 1929.62 | Q42: ='2. Smart_Meter_Costs'!Q183 -> 0 | S42: ='2. Smart_Meter_Costs'!S183 -> 0 | U42: ='2. Smart_Meter_Costs'!U183 -> 4774.43 | W42: ='2. Smart_Meter_Costs'!W183 -> 0
D43: Retirements/Removals (if applicable)
D44: Closing Balance | G44: =G41+G42-G43 -> 0 | I44: =I41+I42-I43 -> 0 | K44: =K41+K42-K43 -> 0 | M44: =M41+M42-M43 -> 2333.4 | O44: =O41+O42-O43 -> 4263.02 | Q44: =Q41+Q42-Q43 -> 4263.02 | S44: =S41+S42-S43 -> 4263.02 | U44: =U41+U42-U43 -> 9037.45 | W44: =W41+W42-W43 -> 9037.45
C46: Accumulated Depreciation
D47: Opening Balance | G47: 0 | I47: =G50 -> 0 | K47: =I50 -> 0 | M47: =K50 -> 0 | O47: =M50 -> -233.34 | Q47: =O50 -> -892.982 | S47: =Q50 -> -1745.586 | U47: =S50 -> -2598.19 | W47: =U50 -> -3928.237
D48: Amortization expense during year | G48: =IF(ISERROR(-G42/('3. Cost_of_Service_Parameters'!G47*2)), 0, -G42/('3. Cost_of_Service_Parameters'!G47*2)) -> 0 | I48: =IF(ISERROR(-(I42/('3. Cost_of_Service_Parameters'!I47*2)+MIN((I41/'3. Cost_of_Service_Parameters'!I47),(I41+I47)))), 0, -(I42/('3. Cost_of_Service_Parameters'!I47*2)+MIN((I41/'3. Cost_of_Service_Parameters'!I47),(I41+I47)))) -> 0 | K48: =IF(ISERROR(-(K42/('3. Cost_of_Service_Parameters'!K47*2)+MIN((K41/'3. Cost_of_Service_Parameters'!K47),(K41+K47)))), 0, -(K42/('3. Cost_of_Service_Parameters'!K47*2)+MIN((K41/'3. Cost_of_Service_Parameters'!K47),(K41+K47)))) -> 0 | M48: =IF(ISERROR(-(M42/('3. Cost_of_Service_Parameters'!M47*2)+MIN((M41/'3. Cost_of_Service_Parameters'!M47),(M41+M47)))), 0,-(M42/('3. Cost_of_Service_Parameters'!M47*2)+MIN((M41/'3. Cost_of_Service_Parameters'!M47),(M41+M47)))) -> -233.34 | O48: =IF(ISERROR(-(O42/('3. Cost_of_Service_Parameters'!O47*2)+MIN((O41/'3. Cost_of_Service_Parameters'!O47),(O41+O47)))), 0, -(O42/('3. Cost_of_Service_Parameters'!O47*2)+MIN((O41/'3. Cost_of_Service_Parameters'!O47),(O41+O47)))) -> -659.642 | Q48: =IF(ISERROR(-(Q42/('3. Cost_of_Service_Parameters'!Q47*2)+MIN((Q41/'3. Cost_of_Service_Parameters'!Q47),(Q41+Q47)))), 0, -(Q42/('3. Cost_of_Service_Parameters'!Q47*2)+MIN((Q41/'3. Cost_of_Service_Parameters'!Q47),(Q41+Q47)))) -> -852.604 | S48: =IF(ISERROR(-(S42/('3. Cost_of_Service_Parameters'!S47*2)+MIN((S41/'3. Cost_of_Service_Parameters'!S47),(S41+S47)))), 0, -(S42/('3. Cost_of_Service_Parameters'!S47*2)+MIN((S41/'3. Cost_of_Service_Parameters'!S47),(S41+S47)))) -> -852.604 | U48: =IF(ISERROR(-(U42/('3. Cost_of_Service_Parameters'!U47*2)+MIN((U41/'3. Cost_of_Service_Parameters'!U47),(U41+U47)))), 0, -(U42/('3. Cost_of_Service_Parameters'!U47*2)+MIN((U41/'3. Cost_of_Service_Parameters'!U47),(U41+U47)))) -> -1330.047 | W48: =IF(ISERROR(-(W42/('3. Cost_of_Service_Parameters'!W47*2)+MIN((W41/'3. Cost_of_Service_Parameters'!W47),(W41+W47)))), 0, -(W42/('3. Cost_of_Service_Parameters'!W47*2)+MIN((W41/'3. Cost_of_Service_Parameters'!W47),(W41+W47)))) -> -1807.49
D49: Retirements/Removals (if applicable)
D50: Closing Balance | G50: =G47+G48-G49 -> 0 | I50: =I47+I48-I49 -> 0 | K50: =K47+K48-K49 -> 0 | M50: =M47+M48-M49 -> -233.34 | O50: =O47+O48-O49 -> -892.982 | Q50: =Q47+Q48-Q49 -> -1745.586 | S50: =S47+S48-S49 -> -2598.19 | U50: =U47+U48-U49 -> -3928.237 | W50: =W47+W48-W49 -> -5735.727
C52: Net Book Value
D53: Opening Balance | G53: =G41+G47 -> 0 | I53: =G54 -> 0 | K53: =I54 -> 0 | M53: =K54 -> 0 | O53: =M54 -> 2100.06 | Q53: =O54 -> 3370.038 | S53: =Q54 -> 2517.434 | U53: =S54 -> 1664.83 | W53: =U54 -> 5109.213
D54: Closing Balance | G54: =G44+G50 -> 0 | I54: =I44+I50 -> 0 | K54: =K44+K50 -> 0 | M54: =M44+M50 -> 2100.06 | O54: =O44+O50 -> 3370.038 | Q54: =Q44+Q50 -> 2517.434 | S54: =S44+S50 -> 1664.83 | U54: =U44+U50 -> 5109.213 | W54: =W44+W50 -> 3301.723
D55: Average Net Book Value | G55: =AVERAGE(G53:G54) -> 0 | I55: =AVERAGE(I53:I54) -> 0 | K55: =AVERAGE(K53:K54) -> 0 | M55: =AVERAGE(M53:M54) -> 1050.03 | O55: =AVERAGE(O53:O54) -> 2735.049 | Q55: =AVERAGE(Q53:Q54) -> 2943.736 | S55: =AVERAGE(S53:S54) -> 2091.132 | U55: =AVERAGE(U53:U54) -> 3387.0215 | W55: =AVERAGE(W53:W54) -> 4205.468
B57: Net Fixed Assets - Computer Software (including Applications Software)
C59: Gross Book Value
D60: Opening Balance | I60: =G63 -> 0 | K60: =I63 -> 0 | M60: =K63 -> 0 | O60: =M63 -> 29952.65 | Q60: =O63 -> 31194.23 | S60: =Q63 -> 61481.78 | U60: =S63 -> 75125.73 | W60: =U63 -> 75125.73
D61: Capital Additions during year (from Smart Meter Costs) | G61: ='2. Smart_Meter_Costs'!G185+'2. Smart_Meter_Costs'!G191 -> 0 | I61: ='2. Smart_Meter_Costs'!I185+'2. Smart_Meter_Costs'!I191 -> 0 | K61: ='2. Smart_Meter_Costs'!K185+'2. Smart_Meter_Costs'!K191 -> 0 | M61: ='2. Smart_Meter_Costs'!M185+'2. Smart_Meter_Costs'!M191 -> 29952.65 | O61: ='2. Smart_Meter_Costs'!O185+'2. Smart_Meter_Costs'!O191 -> 1241.58 | Q61: ='2. Smart_Meter_Costs'!Q185+'2. Smart_Meter_Costs'!Q191 -> 30287.55 | S61: ='2. Smart_Meter_Costs'!S185+'2. Smart_Meter_Costs'!S191 -> 13643.95 | U61: ='2. Smart_Meter_Costs'!U185+'2. Smart_Meter_Costs'!U191 -> 0 | W61: ='2. Smart_Meter_Costs'!W185+'2. Smart_Meter_Costs'!W191 -> 0
D62: Retirements/Removals (if applicable)
D63: Closing Balance | G63: =G60+G61-G62 -> 0 | I63: =I60+I61-I62 -> 0 | K63: =K60+K61-K62 -> 0 | M63: =M60+M61-M62 -> 29952.65 | O63: =O60+O61-O62 -> 31194.23 | Q63: =Q60+Q61-Q62 -> 61481.78 | S63: =S60+S61-S62 -> 75125.73 | U63: =U60+U61-U62 -> 75125.73 | W63: =W60+W61-W62 -> 75125.73
C65: Accumulated Depreciation
D66: Opening Balance | G66: 0 | I66: =G69 -> 0 | K66: =I69 -> 0 | M66: =K69 -> 0 | O66: =M69 -> -2995.265 | Q66: =O69 -> -9109.953 | S66: =Q69 -> -18377.554 | U66: =S69 -> -32038.305 | W66: =U69 -> -47063.451
D67: Amortization expense during year | G67: =IF(ISERROR(-G61/('3. Cost_of_Service_Parameters'!G49*2)), 0, -G61/('3. Cost_of_Service_Parameters'!G49*2)) -> 0 | I67: =IF(ISERROR(-(I61/('3. Cost_of_Service_Parameters'!I49*2)+MIN((I60/'3. Cost_of_Service_Parameters'!I49),(I60+I66)))), 0, -(I61/('3. Cost_of_Service_Parameters'!I49*2)+MIN((I60/'3. Cost_of_Service_Parameters'!I49),(I60+I66)))) -> 0 | K67: =IF(ISERROR(-(K61/('3. Cost_of_Service_Parameters'!K49*2)+MIN((K60/'3. Cost_of_Service_Parameters'!K49),(K60+K66)))), 0, -(K61/('3. Cost_of_Service_Parameters'!K49*2)+MIN((K60/'3. Cost_of_Service_Parameters'!K49),(K60+K66)))) -> 0 | M67: =IF(ISERROR(-(M61/('3. Cost_of_Service_Parameters'!M49*2)+MIN((M60/'3. Cost_of_Service_Parameters'!M49),(M60+M66)))), 0,-(M61/('3. Cost_of_Service_Parameters'!M49*2)+MIN((M60/'3. Cost_of_Service_Parameters'!M49),(M60+M66)))) -> -2995.265 | O67: =IF(ISERROR(-(O61/('3. Cost_of_Service_Parameters'!O49*2)+MIN((O60/'3. Cost_of_Service_Parameters'!O49),(O60+O66)))), 0, -(O61/('3. Cost_of_Service_Parameters'!O49*2)+MIN((O60/'3. Cost_of_Service_Parameters'!O49),(O60+O66)))) -> -6114.688 | Q67: =IF(ISERROR(-(Q61/('3. Cost_of_Service_Parameters'!Q49*2)+MIN((Q60/'3. Cost_of_Service_Parameters'!Q49),(Q60+Q66)))), 0, -(Q61/('3. Cost_of_Service_Parameters'!Q49*2)+MIN((Q60/'3. Cost_of_Service_Parameters'!Q49),(Q60+Q66)))) -> -9267.601 | S67: =IF(ISERROR(-(S61/('3. Cost_of_Service_Parameters'!S49*2)+MIN((S60/'3. Cost_of_Service_Parameters'!S49),(S60+S66)))), 0, -(S61/('3. Cost_of_Service_Parameters'!S49*2)+MIN((S60/'3. Cost_of_Service_Parameters'!S49),(S60+S66)))) -> -13660.751 | U67: =IF(ISERROR(-(U61/('3. Cost_of_Service_Parameters'!U49*2)+MIN((U60/'3. Cost_of_Service_Parameters'!U49),(U60+U66)))), 0, -(U61/('3. Cost_of_Service_Parameters'!U49*2)+MIN((U60/'3. Cost_of_Service_Parameters'!U49),(U60+U66)))) -> -15025.146 | W67: =IF(ISERROR(-(W61/('3. Cost_of_Service_Parameters'!W49*2)+MIN((W60/'3. Cost_of_Service_Parameters'!W49),(W60+W66)))), 0, -(W61/('3. Cost_of_Service_Parameters'!W49*2)+MIN((W60/'3. Cost_of_Service_Parameters'!W49),(W60+W66)))) -> -15025.146
D68: Retirements/Removals (if applicable)
D69: Closing Balance | G69: =G66+G67-G68 -> 0 | I69: =I66+I67-I68 -> 0 | K69: =K66+K67-K68 -> 0 | M69: =M66+M67-M68 -> -2995.265 | O69: =O66+O67-O68 -> -9109.953 | Q69: =Q66+Q67-Q68 -> -18377.554 | S69: =S66+S67-S68 -> -32038.305 | U69: =U66+U67-U68 -> -47063.451 | W69: =W66+W67-W68 -> -62088.597
C71: Net Book Value
D72: Opening Balance | G72: =G60+G66 -> 0 | I72: =G73 -> 0 | K72: =I73 -> 0 | M72: =K73 -> 0 | O72: =M73 -> 26957.385 | Q72: =O73 -> 22084.277 | S72: =Q73 -> 43104.226 | U72: =S73 -> 43087.425 | W72: =U73 -> 28062.279
D73: Closing Balance | G73: =G63+G69 -> 0 | I73: =I63+I69 -> 0 | K73: =K63+K69 -> 0 | M73: =M63+M69 -> 26957.385 | O73: =O63+O69 -> 22084.277 | Q73: =Q63+Q69 -> 43104.226 | S73: =S63+S69 -> 43087.425 | U73: =U63+U69 -> 28062.279 | W73: =W63+W69 -> 13037.133
D74: Average Net Book Value | G74: =AVERAGE(G72:G73) -> 0 | I74: =AVERAGE(I72:I73) -> 0 | K74: =AVERAGE(K72:K73) -> 0 | M74: =AVERAGE(M72:M73) -> 13478.6925 | O74: =AVERAGE(O72:O73) -> 24520.831 | Q74: =AVERAGE(Q72:Q73) -> 32594.2515 | S74: =AVERAGE(S72:S73) -> 43095.8255 | U74: =AVERAGE(U72:U73) -> 35574.852 | W74: =AVERAGE(W72:W73) -> 20549.706
B76: Net Fixed Assets - Tools and Equipment
C78: Gross Book Value
D79: Opening Balance | I79: =G82 -> 0 | K79: =I82 -> 0 | M79: =K82 -> 0 | O79: =M82 -> 0 | Q79: =O82 -> 0 | S79: =Q82 -> 0 | U79: =S82 -> 0 | W79: =U82 -> 0
D80: Capital Additions during year (from Smart Meter Costs) | G80: ='2. Smart_Meter_Costs'!G187 -> 0 | I80: ='2. Smart_Meter_Costs'!I187 -> 0 | K80: ='2. Smart_Meter_Costs'!K187 -> 0 | M80: ='2. Smart_Meter_Costs'!M187 -> 0 | O80: ='2. Smart_Meter_Costs'!O187 -> 0 | Q80: ='2. Smart_Meter_Costs'!Q187 -> 0 | S80: ='2. Smart_Meter_Costs'!S187 -> 0 | U80: ='2. Smart_Meter_Costs'!U187 -> 0 | W80: ='2. Smart_Meter_Costs'!W187 -> 0
D81: Retirements/Removals (if applicable)
D82: Closing Balance | G82: =G79+G80-G81 -> 0 | I82: =I79+I80-I81 -> 0 | K82: =K79+K80-K81 -> 0 | M82: =M79+M80-M81 -> 0 | O82: =O79+O80-O81 -> 0 | Q82: =Q79+Q80-Q81 -> 0 | S82: =S79+S80-S81 -> 0 | U82: =U79+U80-U81 -> 0 | W82: =W79+W80-W81 -> 0
C84: Accumulated Depreciation
D85: Opening Balance | G85: 0 | I85: =G88 -> 0 | K85: =I88 -> 0 | M85: =K88 -> 0 | O85: =M88 -> 0 | Q85: =O88 -> 0 | S85: =Q88 -> 0 | U85: =S88 -> 0 | W85: =U88 -> 0
D86: Amortization expense during year | G86: =IF(ISERROR(-G80/('3. Cost_of_Service_Parameters'!G51*2)), 0, -G80/('3. Cost_of_Service_Parameters'!G51*2)) -> 0 | I86: =IF(ISERROR(-(I80/('3. Cost_of_Service_Parameters'!I51*2)+MIN((I79/'3. Cost_of_Service_Parameters'!I51),(I79+I85)))), 0, -(I80/('3. Cost_of_Service_Parameters'!I51*2)+MIN((I79/'3. Cost_of_Service_Parameters'!I51),(I79+I85)))) -> 0 | K86: =IF(ISERROR(-(K80/('3. Cost_of_Service_Parameters'!K51*2)+MIN((K79/'3. Cost_of_Service_Parameters'!K51),(K79+K85)))), 0, -(K80/('3. Cost_of_Service_Parameters'!K51*2)+MIN((K79/'3. Cost_of_Service_Parameters'!K51),(K79+K85)))) -> 0 | M86: =IF(ISERROR(-(M80/('3. Cost_of_Service_Parameters'!M51*2)+MIN((M79/'3. Cost_of_Service_Parameters'!M51),(M79+M85)))), 0,-(M80/('3. Cost_of_Service_Parameters'!M51*2)+MIN((M79/'3. Cost_of_Service_Parameters'!M51),(M79+M85)))) -> 0 | O86: =IF(ISERROR(-(O80/('3. Cost_of_Service_Parameters'!O51*2)+MIN((O79/'3. Cost_of_Service_Parameters'!O51),(O79+O85)))), 0, -(O80/('3. Cost_of_Service_Parameters'!O51*2)+MIN((O79/'3. Cost_of_Service_Parameters'!O51),(O79+O85)))) -> 0 | Q86: =IF(ISERROR(-(Q80/('3. Cost_of_Service_Parameters'!Q51*2)+MIN((Q79/'3. Cost_of_Service_Parameters'!Q51),(Q79+Q85)))), 0, -(Q80/('3. Cost_of_Service_Parameters'!Q51*2)+MIN((Q79/'3. Cost_of_Service_Parameters'!Q51),(Q79+Q85)))) -> 0 | S86: =IF(ISERROR(-(S80/('3. Cost_of_Service_Parameters'!S51*2)+MIN((S79/'3. Cost_of_Service_Parameters'!S51),(S79+S85)))), 0, -(S80/('3. Cost_of_Service_Parameters'!S51*2)+MIN((S79/'3. Cost_of_Service_Parameters'!S51),(S79+S85)))) -> 0 | U86: =IF(ISERROR(-(U80/('3. Cost_of_Service_Parameters'!U51*2)+MIN((U79/'3. Cost_of_Service_Parameters'!U51),(U79+U85)))), 0, -(U80/('3. Cost_of_Service_Parameters'!U51*2)+MIN((U79/'3. Cost_of_Service_Parameters'!U51),(U79+U85)))) -> 0 | W86: =IF(ISERROR(-(W80/('3. Cost_of_Service_Parameters'!W51*2)+MIN((W79/'3. Cost_of_Service_Parameters'!W51),(W79+W85)))), 0, -(W80/('3. Cost_of_Service_Parameters'!W51*2)+MIN((W79/'3. Cost_of_Service_Parameters'!W51),(W79+W85)))) -> 0
D87: Retirements/Removals (if applicable)
D88: Closing Balance | G88: =G85+G86-G87 -> 0 | I88: =I85+I86-I87 -> 0 | K88: =K85+K86-K87 -> 0 | M88: =M85+M86-M87 -> 0 | O88: =O85+O86-O87 -> 0 | Q88: =Q85+Q86-Q87 -> 0 | S88: =S85+S86-S87 -> 0 | U88: =U85+U86-U87 -> 0 | W88: =W85+W86-W87 -> 0
C90: Net Book Value
D91: Opening Balance | G91: =G79+G85 -> 0 | I91: =G92 -> 0 | K91: =I92 -> 0 | M91: =K92 -> 0 | O91: =M92 -> 0 | Q91: =O92 -> 0 | S91: =Q92 -> 0 | U91: =S92 -> 0 | W91: =U92 -> 0
D92: Closing Balance | G92: =G82+G88 -> 0 | I92: =I82+I88 -> 0 | K92: =K82+K88 -> 0 | M92: =M82+M88 -> 0 | O92: =O82+O88 -> 0 | Q92: =Q82+Q88 -> 0 | S92: =S82+S88 -> 0 | U92: =U82+U88 -> 0 | W92: =W82+W88 -> 0
D93: Average Net Book Value | G93: =AVERAGE(G91:G92) -> 0 | I93: =AVERAGE(I91:I92) -> 0 | K93: =AVERAGE(K91:K92) -> 0 | M93: =AVERAGE(M91:M92) -> 0 | O93: =AVERAGE(O91:O92) -> 0 | Q93: =AVERAGE(Q91:Q92) -> 0 | S93: =AVERAGE(S91:S92) -> 0 | U93: =AVERAGE(U91:U92) -> 0 | W93: =AVERAGE(W91:W92) -> 0
B95: Net Fixed Assets - Other Equipment
C97: Gross Book Value
D98: Opening Balance | I98: =G101 -> 0 | K98: =I101 -> 0 | M98: =K101 -> 0 | O98: =M101 -> 0 | Q98: =O101 -> 0 | S98: =Q101 -> 0 | U98: =S101 -> 31394.65 | W98: =U101 -> 31394.65
D99: Capital Additions during year (from Smart Meter Costs) | G99: ='2. Smart_Meter_Costs'!G189 -> 0 | I99: ='2. Smart_Meter_Costs'!I189 -> 0 | K99: ='2. Smart_Meter_Costs'!K189 -> 0 | M99: ='2. Smart_Meter_Costs'!M189 -> 0 | O99: ='2. Smart_Meter_Costs'!O189 -> 0 | Q99: ='2. Smart_Meter_Costs'!Q189 -> 0 | S99: ='2. Smart_Meter_Costs'!S189 -> 31394.65 | U99: ='2. Smart_Meter_Costs'!U189 -> 0 | W99: ='2. Smart_Meter_Costs'!W189 -> 0
D100: Retirements/Removals (if applicable)
D101: Closing Balance | G101: =G98+G99-G100 -> 0 | I101: =I98+I99-I100 -> 0 | K101: =K98+K99-K100 -> 0 | M101: =M98+M99-M100 -> 0 | O101: =O98+O99-O100 -> 0 | Q101: =Q98+Q99-Q100 -> 0 | S101: =S98+S99-S100 -> 31394.65 | U101: =U98+U99-U100 -> 31394.65 | W101: =W98+W99-W100 -> 31394.65
C103: Accumulated Depreciation
D104: Opening Balance | G104: 0 | I104: =G107 -> 0 | K104: =I107 -> 0 | M104: =K107 -> 0 | O104: =M107 -> 0 | Q104: =O107 -> 0 | S104: =Q107 -> 0 | U104: =S107 -> -348.8294444 | W104: =U107 -> -1046.488333
D105: Amortization expense during year | G105: =IF(ISERROR(-G99/('3. Cost_of_Service_Parameters'!G53*2)), 0, -G99/('3. Cost_of_Service_Parameters'!G53*2)) -> 0 | I105: =IF(ISERROR(-(I99/('3. Cost_of_Service_Parameters'!I53*2)+MIN((I98/'3. Cost_of_Service_Parameters'!I53),(I98+I104)))), 0, -(I99/('3. Cost_of_Service_Parameters'!I53*2)+MIN((I98/'3. Cost_of_Service_Parameters'!I53),(I98+I104)))) -> 0 | K105: =IF(ISERROR(-(K99/('3. Cost_of_Service_Parameters'!K53*2)+MIN((K98/'3. Cost_of_Service_Parameters'!K53),(K98+K104)))), 0, -(K99/('3. Cost_of_Service_Parameters'!K53*2)+MIN((K98/'3. Cost_of_Service_Parameters'!K53),(K98+K104)))) -> 0 | M105: =IF(ISERROR(-(M99/('3. Cost_of_Service_Parameters'!M53*2)+MIN((M98/'3. Cost_of_Service_Parameters'!M53),(M98+M104)))), 0,-(M99/('3. Cost_of_Service_Parameters'!M53*2)+MIN((M98/'3. Cost_of_Service_Parameters'!M53),(M98+M104)))) -> 0 | O105: =IF(ISERROR(-(O99/('3. Cost_of_Service_Parameters'!O53*2)+MIN((O98/'3. Cost_of_Service_Parameters'!O53),(O98+O104)))), 0, -(O99/('3. Cost_of_Service_Parameters'!O53*2)+MIN((O98/'3. Cost_of_Service_Parameters'!O53),(O98+O104)))) -> 0 | Q105: =IF(ISERROR(-(Q99/('3. Cost_of_Service_Parameters'!Q53*2)+MIN((Q98/'3. Cost_of_Service_Parameters'!Q53),(Q98+Q104)))), 0, -(Q99/('3. Cost_of_Service_Parameters'!Q53*2)+MIN((Q98/'3. Cost_of_Service_Parameters'!Q53),(Q98+Q104)))) -> 0 | S105: =IF(ISERROR(-(S99/('3. Cost_of_Service_Parameters'!S53*2)+MIN((S98/'3. Cost_of_Service_Parameters'!S53),(S98+S104)))), 0, -(S99/('3. Cost_of_Service_Parameters'!S53*2)+MIN((S98/'3. Cost_of_Service_Parameters'!S53),(S98+S104)))) -> -348.8294444 | U105: =IF(ISERROR(-(U99/('3. Cost_of_Service_Parameters'!U53*2)+MIN((U98/'3. Cost_of_Service_Parameters'!U53),(U98+U104)))), 0, -(U99/('3. Cost_of_Service_Parameters'!U53*2)+MIN((U98/'3. Cost_of_Service_Parameters'!U53),(U98+U104)))) -> -697.6588889 | W105: =IF(ISERROR(-(W99/('3. Cost_of_Service_Parameters'!W53*2)+MIN((W98/'3. Cost_of_Service_Parameters'!W53),(W98+W104)))), 0, -(W99/('3. Cost_of_Service_Parameters'!W53*2)+MIN((W98/'3. Cost_of_Service_Parameters'!W53),(W98+W104)))) -> -697.6588889
D106: Retirements/Removals (if applicable)
D107: Closing Balance | G107: =G104+G105-G106 -> 0 | I107: =I104+I105-I106 -> 0 | K107: =K104+K105-K106 -> 0 | M107: =M104+M105-M106 -> 0 | O107: =O104+O105-O106 -> 0 | Q107: =Q104+Q105-Q106 -> 0 | S107: =S104+S105-S106 -> -348.8294444 | U107: =U104+U105-U106 -> -1046.488333 | W107: =W104+W105-W106 -> -1744.147222
C109: Net Book Value
D110: Opening Balance | G110: =G98+G104 -> 0 | I110: =G111 -> 0 | K110: =I111 -> 0 | M110: =K111 -> 0 | O110: =M111 -> 0 | Q110: =O111 -> 0 | S110: =Q111 -> 0 | U110: =S111 -> 31045.82056 | W110: =U111 -> 30348.16167
D111: Closing Balance | G111: =G101+G107 -> 0 | I111: =I101+I107 -> 0 | K111: =K101+K107 -> 0 | M111: =M101+M107 -> 0 | O111: =O101+O107 -> 0 | Q111: =Q101+Q107 -> 0 | S111: =S101+S107 -> 31045.82056 | U111: =U101+U107 -> 30348.16167 | W111: =W101+W107 -> 29650.50278
D112: Average Net Book Value | G112: =AVERAGE(G110:G111) -> 0 | I112: =AVERAGE(I110:I111) -> 0 | K112: =AVERAGE(K110:K111) -> 0 | M112: =AVERAGE(M110:M111) -> 0 | O112: =AVERAGE(O110:O111) -> 0 | Q112: =AVERAGE(Q110:Q111) -> 0 | S112: =AVERAGE(S110:S111) -> 15522.91028 | U112: =AVERAGE(U110:U111) -> 30696.99111 | W112: =AVERAGE(W110:W111) -> 29999.33222

Sheet 5. SM_Rev_Reqt
G18: 2006 | I18: 2007 | K18: 2008 | M18: 2009 | O18: 2010 | Q18: 2011 | S18: 2012 | U18: 2013 | W18: 2014
B19: Average Net Fixed Asset Values (from Sheet 4)
C20: Smart Meters | G20: ='4. SM_Assets_and_Rate_Base'!G36 -> 3151.749 | I20: ='4. SM_Assets_and_Rate_Base'!I36 -> 20534.00367 | K20: ='4. SM_Assets_and_Rate_Base'!K36 -> 47866.05133 | M20: ='4. SM_Assets_and_Rate_Base'!M36 -> 1130664.762 | O20: ='4. SM_Assets_and_Rate_Base'!O36 -> 2321115.718 | Q20: ='4. SM_Assets_and_Rate_Base'!Q36 -> 2403135.387 | S20: ='4. SM_Assets_and_Rate_Base'!S36 -> 2286195.579 | U20: ='4. SM_Assets_and_Rate_Base'!U36 -> 2348888.855 | W20: ='4. SM_Assets_and_Rate_Base'!W36 -> 2379317.113
C21: Computer Hardware | G21: ='4. SM_Assets_and_Rate_Base'!G55 -> 0 | I21: ='4. SM_Assets_and_Rate_Base'!I55 -> 0 | K21: ='4. SM_Assets_and_Rate_Base'!K55 -> 0 | M21: ='4. SM_Assets_and_Rate_Base'!M55 -> 1050.03 | O21: ='4. SM_Assets_and_Rate_Base'!O55 -> 2735.049 | Q21: ='4. SM_Assets_and_Rate_Base'!Q55 -> 2943.736 | S21: ='4. SM_Assets_and_Rate_Base'!S55 -> 2091.132 | U21: ='4. SM_Assets_and_Rate_Base'!U55 -> 3387.0215 | W21: ='4. SM_Assets_and_Rate_Base'!W55 -> 4205.468
C22: Computer Software | G22: ='4. SM_Assets_and_Rate_Base'!G74 -> 0 | I22: ='4. SM_Assets_and_Rate_Base'!I74 -> 0 | K22: ='4. SM_Assets_and_Rate_Base'!K74 -> 0 | M22: ='4. SM_Assets_and_Rate_Base'!M74 -> 13478.6925 | O22: ='4. SM_Assets_and_Rate_Base'!O74 -> 24520.831 | Q22: ='4. SM_Assets_and_Rate_Base'!Q74 -> 32594.2515 | S22: ='4. SM_Assets_and_Rate_Base'!S74 -> 43095.8255 | U22: ='4. SM_Assets_and_Rate_Base'!U74 -> 35574.852 | W22: ='4. SM_Assets_and_Rate_Base'!W74 -> 20549.706
C23: Tools & Equipment | G23: ='4. SM_Assets_and_Rate_Base'!G93 -> 0 | I23: ='4. SM_Assets_and_Rate_Base'!I93 -> 0 | K23: ='4. SM_Assets_and_Rate_Base'!K93 -> 0 | M23: ='4. SM_Assets_and_Rate_Base'!M93 -> 0 | O23: ='4. SM_Assets_and_Rate_Base'!O93 -> 0 | Q23: ='4. SM_Assets_and_Rate_Base'!Q93 -> 0 | S23: ='4. SM_Assets_and_Rate_Base'!S93 -> 0 | U23: ='4. SM_Assets_and_Rate_Base'!U93 -> 0 | W23: ='4. SM_Assets_and_Rate_Base'!W93 -> 0
C24: Other Equipment | G24: ='4. SM_Assets_and_Rate_Base'!G112 -> 0 | I24: ='4. SM_Assets_and_Rate_Base'!I112 -> 0 | K24: ='4. SM_Assets_and_Rate_Base'!K112 -> 0 | M24: ='4. SM_Assets_and_Rate_Base'!M112 -> 0 | O24: ='4. SM_Assets_and_Rate_Base'!O112 -> 0 | Q24: ='4. SM_Assets_and_Rate_Base'!Q112 -> 0 | S24: ='4. SM_Assets_and_Rate_Base'!S112 -> 15522.91028 | U24: ='4. SM_Assets_and_Rate_Base'!U112 -> 30696.99111 | W24: ='4. SM_Assets_and_Rate_Base'!W112 -> 29999.33222
C25: Total Net Fixed Assets | G25: =SUM(G20:G24) -> 3151.749 | I25: =SUM(I20:I24) -> 20534.00367 | K25: =SUM(K20:K24) -> 47866.05133 | M25: =SUM(M20:M24) -> 1145193.485 | O25: =SUM(O20:O24) -> 2348371.598 | Q25: =SUM(Q20:Q24) -> 2438673.375 | S25: =SUM(S20:S24) -> 2346905.446 | U25: =SUM(U20:U24) -> 2418547.72 | W25: =SUM(W20:W24) -> 2434071.619
B27: Working Capital
C28: Operating Expenses (from Sheet 2) | G28: ='2. Smart_Meter_Costs'!G174 -> 0 | I28: ='2. Smart_Meter_Costs'!I174 -> 7734.33 | K28: ='2. Smart_Meter_Costs'!K174 -> 1662.37 | M28: ='2. Smart_Meter_Costs'!M174 -> 123324.84 | O28: ='2. Smart_Meter_Costs'!O174 -> 100861.7 | Q28: ='2. Smart_Meter_Costs'!Q174 -> 175963.01 | S28: ='2. Smart_Meter_Costs'!S174 -> 2990.84 | U28: ='2. Smart_Meter_Costs'!U174 -> 0 | W28: ='2. Smart_Meter_Costs'!W174 -> 0
C29: Working Capital Factor (from Sheet 3) | G29: ='3. Cost_of_Service_Parameters'!G36 -> 0.15 | I29: ='3. Cost_of_Service_Parameters'!I36 -> 0.15 | K29: ='3. Cost_of_Service_Parameters'!K36 -> 0.15 | M29: ='3. Cost_of_Service_Parameters'!M36 -> 0.15 | O29: ='3. Cost_of_Service_Parameters'!O36 -> 0.15 | Q29: ='3. Cost_of_Service_Parameters'!Q36 -> 0.15 | S29: ='3. Cost_of_Service_Parameters'!S36 -> 0.15 | U29: ='3. Cost_of_Service_Parameters'!U36 -> 0.15 | W29: ='3. Cost_of_Service_Parameters'!W36 -> 0.15
C30: Working Capital Allowance | G30: =G28*G29 -> 0 | I30: =I28*I29 -> 1160.1495 | K30: =K28*K29 -> 249.3555 | M30: =M28*M29 -> 18498.726 | O30: =O28*O29 -> 15129.255 | Q30: =Q28*Q29 -> 26394.4515 | S30: =S28*S29 -> 448.626 | U30: =U28*U29 -> 0 | W30: =W28*W29 -> 0
B32: Incremental Smart Meter Rate Base | G32: =G25+G30 -> 3151.749 | I32: =I25+I30 -> 21694.15317 | K32: =K25+K30 -> 48115.40683 | M32: =M25+M30 -> 1163692.211 | O32: =O25+O30 -> 2363500.853 | Q32: =Q25+Q30 -> 2465067.826 | S32: =S25+S30 -> 2347354.072 | U32: =U25+U30 -> 2418547.72 | W32: =W25+W30 -> 2434071.619
B34: Return on Rate Base
C35: Capital Structure
C36: Deemed Short Term Debt | G36: =G$32*'3. Cost_of_Service_Parameters'!G22 -> 0 | I36: =I$32*'3. Cost_of_Service_Parameters'!I22 -> 0 | K36: =K$32*'3. Cost_of_Service_Parameters'!K22 -> 0 | M36: =M$32*'3. Cost_of_Service_Parameters'!M22 -> 0 | O36: =O$32*'3. Cost_of_Service_Parameters'!O22 -> 94540.03411 | Q36: =Q$32*'3. Cost_of_Service_Parameters'!Q22 -> 98602.71305 | S36: =S$32*'3. Cost_of_Service_Parameters'!S22 -> 93894.16289 | U36: =U$32*'3. Cost_of_Service_Parameters'!U22 -> 96741.90879 | W36: =W$32*'3. Cost_of_Service_Parameters'!W22 -> 97362.86477
C37: Deemed Long Term Debt | G37: =G$32*'3. Cost_of_Service_Parameters'!G23 -> 1575.8745 | I37: =I$32*'3. Cost_of_Service_Parameters'!I23 -> 10847.07658 | K37: =K$32*'3. Cost_of_Service_Parameters'!K23 -> 25645.51184 | M37: =M$32*'3. Cost_of_Service_Parameters'!M23 -> 659813.4834 | O37: =O$32*'3. Cost_of_Service_Parameters'!O23 -> 1323560.478 | Q37: =Q$32*'3. Cost_of_Service_Parameters'!Q23 -> 1380437.983 | S37: =S$32*'3. Cost_of_Service_Parameters'!S23 -> 1314518.28 | U37: =U$32*'3. Cost_of_Service_Parameters'!U23 -> 1354386.723 | W37: =W$32*'3. Cost_of_Service_Parameters'!W23 -> 1363080.107
C38: Equity | G38: =G$32*'3. Cost_of_Service_Parameters'!G24 -> 1575.8745 | I38: =I$32*'3. Cost_of_Service_Parameters'!I24 -> 10847.07658 | K38: =K$32*'3. Cost_of_Service_Parameters'!K24 -> 22469.89499 | M38: =M$32*'3. Cost_of_Service_Parameters'!M24 -> 503878.7272 | O38: =O$32*'3. Cost_of_Service_Parameters'!O24 -> 945400.3411 | Q38: =Q$32*'3. Cost_of_Service_Parameters'!Q24 -> 986027.1305 | S38: =S$32*'3. Cost_of_Service_Parameters'!S24 -> 938941.6289 | U38: =U$32*'3. Cost_of_Service_Parameters'!U24 -> 967419.0879 | W38: =W$32*'3. Cost_of_Service_Parameters'!W24 -> 973628.6477
C39: Preferred Shares | G39: =G$32*'3. Cost_of_Service_Parameters'!G25 -> 0 | I39: =I$32*'3. Cost_of_Service_Parameters'!I25 -> 0 | K39: =K$32*'3. Cost_of_Service_Parameters'!K25 -> 0 | M39: =M$32*'3. Cost_of_Service_Parameters'!M25 -> 0 | O39: =O$32*'3. Cost_of_Service_Parameters'!O25 -> 0 | Q39: =Q$32*'3. Cost_of_Service_Parameters'!Q25 -> 0 | S39: =S$32*'3. Cost_of_Service_Parameters'!S25 -> 0 | U39: =U$32*'3. Cost_of_Service_Parameters'!U25 -> 0 | W39: =W$32*'3. Cost_of_Service_Parameters'!W25 -> 0
C40: Total Capitalization | G40: =SUM(G36:G39) -> 3151.749 | I40: =SUM(I36:I39) -> 21694.15317 | K40: =SUM(K36:K39) -> 48115.40683 | M40: =SUM(M36:M39) -> 1163692.211 | O40: =SUM(O36:O39) -> 2363500.853 | Q40: =SUM(Q36:Q39) -> 2465067.826 | S40: =SUM(S36:S39) -> 2347354.072 | U40: =SUM(U36:U39) -> 2418547.72 | W40: =SUM(W36:W39) -> 2434071.619
G41: =IF(G40=G32,"","Error") ->  | I41: =IF(I40=I32,"","Error") ->  | K41: =IF(K40=K32,"","Error") ->  | M41: =IF(M40=M32,"","Error") ->  | O41: =IF(O40=O32,"","Error") ->  | Q41: =IF(Q40=Q32,"","Error") ->  | S41: =IF(S40=S32,"","Error") ->  | U41: =IF(U40=U32,"","Error") ->  | W41: =IF(W40=W32,"","Error") -> 
C42: Return on
C43: Deemed Short Term Debt | G43: =G36*'3. Cost_of_Service_Parameters'!G29 -> 0 | I43: =I36*'3. Cost_of_Service_Parameters'!I29 -> 0 | K43: =K36*'3. Cost_of_Service_Parameters'!K29 -> 0 | M43: =M36*'3. Cost_of_Service_Parameters'!M29 -> 0 | O43: =O36*'3. Cost_of_Service_Parameters'!O29 -> 1956.978706 | Q43: =Q36*'3. Cost_of_Service_Parameters'!Q29 -> 2041.07616 | S43: =S36*'3. Cost_of_Service_Parameters'!S29 -> 1943.609172 | U43: =U36*'3. Cost_of_Service_Parameters'!U29 -> 2002.557512 | W43: =W36*'3. Cost_of_Service_Parameters'!W29 -> 2015.411301
C44: Deemed Long Term Debt | G44: =G37*'3. Cost_of_Service_Parameters'!G30 -> 78.793725 | I44: =I37*'3. Cost_of_Service_Parameters'!I30 -> 542.3538292 | K44: =K37*'3. Cost_of_Service_Parameters'!K30 -> 1282.275592 | M44: =M37*'3. Cost_of_Service_Parameters'!M30 -> 32990.67417 | O44: =O37*'3. Cost_of_Service_Parameters'!O30 -> 65648.59969 | Q44: =Q37*'3. Cost_of_Service_Parameters'!Q30 -> 68469.72394 | S44: =S37*'3. Cost_of_Service_Parameters'!S30 -> 65200.10671 | U44: =U37*'3. Cost_of_Service_Parameters'!U30 -> 67177.58146 | W44: =W37*'3. Cost_of_Service_Parameters'!W30 -> 67608.7733
C45: Equity | G45: =G38*'3. Cost_of_Service_Parameters'!G31 -> 141.828705 | I45: =I38*'3. Cost_of_Service_Parameters'!I31 -> 976.2368925 | K45: =K38*'3. Cost_of_Service_Parameters'!K31 -> 2022.290549 | M45: =M38*'3. Cost_of_Service_Parameters'!M31 -> 45349.08545 | O45: =O38*'3. Cost_of_Service_Parameters'!O31 -> 93121.9336 | Q45: =Q38*'3. Cost_of_Service_Parameters'!Q31 -> 97123.67236 | S45: =S38*'3. Cost_of_Service_Parameters'!S31 -> 92485.75045 | U45: =U38*'3. Cost_of_Service_Parameters'!U31 -> 95290.78016 | W45: =W38*'3. Cost_of_Service_Parameters'!W31 -> 95902.4218
C46: Preferred Shares | G46: =G39*'3. Cost_of_Service_Parameters'!G32 -> 0 | I46: =I39*'3. Cost_of_Service_Parameters'!I32 -> 0 | K46: =K39*'3. Cost_of_Service_Parameters'!K32 -> 0 | M46: =M39*'3. Cost_of_Service_Parameters'!M32 -> 0 | O46: =O39*'3. Cost_of_Service_Parameters'!O32 -> 0 | Q46: =Q39*'3. Cost_of_Service_Parameters'!Q32 -> 0 | S46: =S39*'3. Cost_of_Service_Parameters'!S32 -> 0 | U46: =U39*'3. Cost_of_Service_Parameters'!U32 -> 0 | W46: =W39*'3. Cost_of_Service_Parameters'!W32 -> 0
C47: Total Return on Capital | G47: =SUM(G43:G46) -> 220.62243 | I47: =SUM(I43:I46) -> 1518.590722 | K47: =SUM(K43:K46) -> 3304.566141 | M47: =SUM(M43:M46) -> 78339.75962 | O47: =SUM(O43:O46) -> 160727.512 | Q47: =SUM(Q43:Q46) -> 167634.4725 | S47: =SUM(S43:S46) -> 159629.4663 | U47: =SUM(U43:U46) -> 164470.9191 | W47: =SUM(W43:W46) -> 165526.6064
B50: Operating Expenses | G50: =G28 -> 0 | I50: =I28 -> 7734.33 | K50: =K28 -> 1662.37 | M50: =M28 -> 123324.84 | O50: =O28 -> 100861.7 | Q50: =Q28 -> 175963.01 | S50: =S28 -> 2990.84 | U50: =U28 -> 0 | W50: =W28 -> 0
B52: Amortization Expenses (from Sheet 4)
C53: Smart Meters | G53: =-'4. SM_Assets_and_Rate_Base'!G29 -> 217.362 | I53: =-'4. SM_Assets_and_Rate_Base'!I29 -> 1431.128667 | K53: =-'4. SM_Assets_and_Rate_Base'!K29 -> 3414.796 | M53: =-'4. SM_Assets_and_Rate_Base'!M29 -> 78326.07233 | O53: =-'4. SM_Assets_and_Rate_Base'!O29 -> 165827.9363 | Q53: =-'4. SM_Assets_and_Rate_Base'!Q29 -> 182920.8747 | S53: =-'4. SM_Assets_and_Rate_Base'!S29 -> 187471.293 | U53: =-'4. SM_Assets_and_Rate_Base'!U29 -> 204724.0219 | W53: =-'4. SM_Assets_and_Rate_Base'!W29 -> 220941.4205
C54: Computer Hardware | G54: =-'4. SM_Assets_and_Rate_Base'!G48 -> 0 | I54: =-'4. SM_Assets_and_Rate_Base'!I48 -> 0 | K54: =-'4. SM_Assets_and_Rate_Base'!K48 -> 0 | M54: =-'4. SM_Assets_and_Rate_Base'!M48 -> 233.34 | O54: =-'4. SM_Assets_and_Rate_Base'!O48 -> 659.642 | Q54: =-'4. SM_Assets_and_Rate_Base'!Q48 -> 852.604 | S54: =-'4. SM_Assets_and_Rate_Base'!S48 -> 852.604 | U54: =-'4. SM_Assets_and_Rate_Base'!U48 -> 1330.047 | W54: =-'4. SM_Assets_and_Rate_Base'!W48 -> 1807.49
C55: Computer Software | G55: =-'4. SM_Assets_and_Rate_Base'!G67 -> 0 | I55: =-'4. SM_Assets_and_Rate_Base'!I67 -> 0 | K55: =-'4. SM_Assets_and_Rate_Base'!K67 -> 0 | M55: =-'4. SM_Assets_and_Rate_Base'!M67 -> 2995.265 | O55: =-'4. SM_Assets_and_Rate_Base'!O67 -> 6114.688 | Q55: =-'4. SM_Assets_and_Rate_Base'!Q67 -> 9267.601 | S55: =-'4. SM_Assets_and_Rate_Base'!S67 -> 13660.751 | U55: =-'4. SM_Assets_and_Rate_Base'!U67 -> 15025.146 | W55: =-'4. SM_Assets_and_Rate_Base'!W67 -> 15025.146
C56: Tools & Equipment | G56: =-'4. SM_Assets_and_Rate_Base'!G86 -> 0 | I56: =-'4. SM_Assets_and_Rate_Base'!I86 -> 0 | K56: =-'4. SM_Assets_and_Rate_Base'!K86 -> 0 | M56: =-'4. SM_Assets_and_Rate_Base'!M86 -> 0 | O56: =-'4. SM_Assets_and_Rate_Base'!O86 -> 0 | Q56: =-'4. SM_Assets_and_Rate_Base'!Q86 -> 0 | S56: =-'4. SM_Assets_and_Rate_Base'!S86 -> 0 | U56: =-'4. SM_Assets_and_Rate_Base'!U86 -> 0 | W56: =-'4. SM_Assets_and_Rate_Base'!W86 -> 0
C57: Other Equipment | G57: =-'4. SM_Assets_and_Rate_Base'!G105 -> 0 | I57: =-'4. SM_Assets_and_Rate_Base'!I105 -> 0 | K57: =-'4. SM_Assets_and_Rate_Base'!K105 -> 0 | M57: =-'4. SM_Assets_and_Rate_Base'!M105 -> 0 | O57: =-'4. SM_Assets_and_Rate_Base'!O105 -> 0 | Q57: =-'4. SM_Assets_and_Rate_Base'!Q105 -> 0 | S57: =-'4. SM_Assets_and_Rate_Base'!S105 -> 348.8294444 | U57: =-'4. SM_Assets_and_Rate_Base'!U105 -> 697.6588889 | W57: =-'4. SM_Assets_and_Rate_Base'!W105 -> 697.6588889
C58: Total Amortization Expense in Year | G58: =SUM(G53:G57) -> 217.362 | I58: =SUM(I53:I57) -> 1431.128667 | K58: =SUM(K53:K57) -> 3414.796 | M58: =SUM(M53:M57) -> 81554.67733 | O58: =SUM(O53:O57) -> 172602.2663 | Q58: =SUM(Q53:Q57) -> 193041.0797 | S58: =SUM(S53:S57) -> 202333.4774 | U58: =SUM(U53:U57) -> 221776.8738 | W58: =SUM(W53:W57) -> 238471.7154
B60: Incremental Revenue Requirement before Taxes/PILs | G60: =G47+G50+G58 -> 437.98443 | I60: =I47+I50+I58 -> 10684.04939 | K60: =K47+K50+K58 -> 8381.732141 | M60: =M47+M50+M58 -> 283219.277 | O60: =O47+O50+O58 -> 434191.4783 | Q60: =Q47+Q50+Q58 -> 536638.5621 | S60: =S47+S50+S58 -> 364953.7838 | U60: =U47+U50+U58 -> 386247.793 | W60: =W47+W50+W58 -> 403998.3218
B62: Calculation of Taxable Income
C63: Incremental Operating Expenses | G63: =G50 -> 0 | I63: =I50 -> 7734.33 | K63: =K50 -> 1662.37 | M63: =M50 -> 123324.84 | O63: =O50 -> 100861.7 | Q63: =Q50 -> 175963.01 | S63: =S50 -> 2990.84 | U63: =U50 -> 0 | W63: =W50 -> 0
C64: Amortization Expense | G64: =G58 -> 217.362 | I64: =I58 -> 1431.128667 | K64: =K58 -> 3414.796 | M64: =M58 -> 81554.67733 | O64: =O58 -> 172602.2663 | Q64: =Q58 -> 193041.0797 | S64: =S58 -> 202333.4774 | U64: =U58 -> 221776.8738 | W64: =W58 -> 238471.7154
C65: Interest Expense | G65: =G43+G44 -> 78.793725 | I65: =I43+I44 -> 542.3538292 | K65: =K43+K44 -> 1282.275592 | M65: =M43+M44 -> 32990.67417 | O65: =O43+O44 -> 67605.57839 | Q65: =Q43+Q44 -> 70510.8001 | S65: =S43+S44 -> 67143.71588 | U65: =U43+U44 -> 69180.13898 | W65: =W43+W44 -> 69624.1846
C66: Net Income for Taxes/PILs | G66: =G60-SUM(G63:G65) -> 141.828705 | I66: =I60-SUM(I63:I65) -> 976.2368925 | K66: =K60-SUM(K63:K65) -> 2022.290549 | M66: =M60-SUM(M63:M65) -> 45349.08545 | O66: =O60-SUM(O63:O65) -> 93121.9336 | Q66: =Q60-SUM(Q63:Q65) -> 97123.67236 | S66: =S60-SUM(S63:S65) -> 92485.75045 | U66: =U60-SUM(U63:U65) -> 95290.78016 | W66: =W60-SUM(W63:W65) -> 95902.4218
B68: Grossed-up Taxes/PILs (from Sheet 7) | G68: ='7_Taxes_PILs'!C59 -> 74.5246101 | I68: ='7_Taxes_PILs'!E59 -> 480.1755335 | K68: ='7_Taxes_PILs'!G59 -> 890.7593901 | M68: ='7_Taxes_PILs'!I59 -> 13508.1921 | O68: ='7_Taxes_PILs'!K59 -> 24798.88623 | Q68: ='7_Taxes_PILs'!M59 -> 30382.81266 | S68: ='7_Taxes_PILs'!O59 -> 27583.96694 | U68: ='7_Taxes_PILs'!Q59 -> 39789.26611 | W68: ='7_Taxes_PILs'!S59 -> 47413.21475
B70: Revenue Requirement, including Grossed-up Taxes/PILs | G70: =G60+G68 -> 512.5090401 | I70: =I60+I68 -> 11164.22492 | K70: =K60+K68 -> 9272.491531 | M70: =M60+M68 -> 296727.4691 | O70: =O60+O68 -> 458990.3646 | Q70: =Q60+Q68 -> 567021.3748 | S70: =S60+S68 -> 392537.7507 | U70: =U60+U68 -> 426037.0591 | W70: =W60+W68 -> 451411.5366

Sheet 6. UCC_Calculation
A18: For PILs Calculation
A20: UCC - Smart Meters | B20: ='2. Smart_Meter_Costs'!G18 -> 2006 | D20: ='2. Smart_Meter_Costs'!I18 -> 2007 | F20: ='2. Smart_Meter_Costs'!K18 -> 2008 | H20: ='2. Smart_Meter_Costs'!M18 -> 2009 | J20: ='2. Smart_Meter_Costs'!O18 -> 2010 | L20: ='2. Smart_Meter_Costs'!Q18 -> 2011 | N20: ='2. Smart_Meter_Costs'!S18 -> 2012 | P20: ='2. Smart_Meter_Costs'!U18 -> 2013 | R20: ='2. Smart_Meter_Costs'!W18 -> 2014
B21: ='2. Smart_Meter_Costs'!G19 -> Audited Actual | D21: ='2. Smart_Meter_Costs'!I19 -> Audited Actual | F21: ='2. Smart_Meter_Costs'!K19 -> Audited Actual | H21: ='2. Smart_Meter_Costs'!M19 -> Audited Actual | J21: ='2. Smart_Meter_Costs'!O19 -> Audited Actual | L21: ='2. Smart_Meter_Costs'!Q19 -> Audited Actual | N21: ='2. Smart_Meter_Costs'!S19 -> Audited Actual | P21: ='2. Smart_Meter_Costs'!U19 -> Forecast | R21: ='2. Smart_Meter_Costs'!W19 -> Forecast
A23: Opening UCC | B23: 0 | D23: =B26-B31 -> 6260.0256 | F23: =D26-D31 -> 34455.67795 | H23: =F26-F31 -> 60132.38852 | J23: =H26-H31 -> 2184333.391 | L23: =J26-J31 -> 2400628.809 | N23: =L26-L31 -> 2309813.039 | P23: =N26-N31 -> 2154845.509 | R23: =P26-P31 -> 2449518.949
A24: Capital Additions | B24: ='4. SM_Assets_and_Rate_Base'!G23 -> 6520.86 | D24: ='4. SM_Assets_and_Rate_Base'!I23 -> 29892.14 | F24: ='4. SM_Assets_and_Rate_Base'!K23 -> 29617.88 | H24: ='4. SM_Assets_and_Rate_Base'!M23 -> 2217720.41 | J24: ='4. SM_Assets_and_Rate_Base'!O23 -> 407335.51 | L24: ='4. SM_Assets_and_Rate_Base'!Q23 -> 105452.64 | N24: ='4. SM_Assets_and_Rate_Base'!S23 -> 31059.91 | P24: ='4. SM_Assets_and_Rate_Base'!U23 -> 486521.9582 | R24: ='4. SM_Assets_and_Rate_Base'!W23 -> 0
A25: Retirements/Removals (if applicable)
A26: UCC Before Half Year Rule | B26: =SUM(B23:B24)-B25 -> 6520.86 | D26: =SUM(D23:D24)-D25 -> 36152.1656 | F26: =SUM(F23:F24)-F25 -> 64073.55795 | H26: =SUM(H23:H24)-H25 -> 2277852.799 | J26: =SUM(J23:J24)-J25 -> 2591668.901 | L26: =SUM(L23:L24)-L25 -> 2506081.449 | N26: =SUM(N23:N24)-N25 -> 2340872.949 | P26: =SUM(P23:P24)-P25 -> 2641367.468 | R26: =SUM(R23:R24)-R25 -> 2449518.949
A27: Half Year Rule (1/2 Additions - Disposals) | B27: =IF(((B24-B25)/2)<0, 0, (B24-B25)/2) -> 3260.43 | D27: =IF(((D24-D25)/2)<0, 0, (D24-D25)/2) -> 14946.07 | F27: =IF(((F24-F25)/2)<0, 0, (F24-F25)/2) -> 14808.94 | H27: =IF(((H24-H25)/2)<0, 0, (H24-H25)/2) -> 1108860.205 | J27: =IF(((J24-J25)/2)<0, 0, (J24-J25)/2) -> 203667.755 | L27: =IF(((L24-L25)/2)<0, 0, (L24-L25)/2) -> 52726.32 | N27: =IF(((N24-N25)/2)<0, 0, (N24-N25)/2) -> 15529.955 | P27: =IF(((P24-P25)/2)<0, 0, (P24-P25)/2) -> 243260.9791 | R27: =IF(((R24-R25)/2)<0, 0, (R24-R25)/2) -> 0
A28: Reduced UCC | B28: =B27+B23 -> 3260.43 | D28: =D27+D23 -> 21206.0956 | F28: =F27+F23 -> 49264.61795 | H28: =H27+H23 -> 1168992.594 | J28: =J27+J23 -> 2388001.146 | L28: =L27+L23 -> 2453355.129 | N28: =N27+N23 -> 2325342.994 | P28: =P27+P23 -> 2398106.489 | R28: =R27+R23 -> 2449518.949
A29: CCA Rate Class | B29: ='3. Cost_of_Service_Parameters'!G57 -> 47 | D29: ='3. Cost_of_Service_Parameters'!I57 -> 47 | F29: ='3. Cost_of_Service_Parameters'!K57 -> 47 | H29: ='3. Cost_of_Service_Parameters'!M57 -> 47 | J29: ='3. Cost_of_Service_Parameters'!O57 -> 47 | L29: ='3. Cost_of_Service_Parameters'!Q57 -> 47 | N29: ='3. Cost_of_Service_Parameters'!S57 -> 47 | P29: ='3. Cost_of_Service_Parameters'!U57 -> 47 | R29: ='3. Cost_of_Service_Parameters'!W57 -> 47
A30: CCA Rate | B30: ='3. Cost_of_Service_Parameters'!G58 -> 0.08 | D30: ='3. Cost_of_Service_Parameters'!I58 -> 0.08 | F30: ='3. Cost_of_Service_Parameters'!K58 -> 0.08 | H30: ='3. Cost_of_Service_Parameters'!M58 -> 0.08 | J30: ='3. Cost_of_Service_Parameters'!O58 -> 0.08 | L30: ='3. Cost_of_Service_Parameters'!Q58 -> 0.08 | N30: ='3. Cost_of_Service_Parameters'!S58 -> 0.08 | P30: ='3. Cost_of_Service_Parameters'!U58 -> 0.08 | R30: ='3. Cost_of_Service_Parameters'!W58 -> 0.08
A31: CCA | B31: =B28*B30 -> 260.8344 | D31: =D28*D30 -> 1696.487648 | F31: =F28*F30 -> 3941.169436 | H31: =H28*H30 -> 93519.40748 | J31: =J28*J30 -> 191040.0917 | L31: =L28*L30 -> 196268.4103 | N31: =N28*N30 -> 186027.4395 | P31: =P28*P30 -> 191848.5191 | R31: =R28*R30 -> 195961.5159
A32: Closing UCC | B32: =IF((B26-B31)<0, 0, B26-B31) -> 6260.0256 | D32: =IF((D26-D31)<0, 0, D26-D31) -> 34455.67795 | F32: =IF((F26-F31)<0, 0, F26-F31) -> 60132.38852 | H32: =IF((H26-H31)<0, 0, H26-H31) -> 2184333.391 | J32: =IF((J26-J31)<0, 0, J26-J31) -> 2400628.809 | L32: =IF((L26-L31)<0, 0, L26-L31) -> 2309813.039 | N32: =IF((N26-N31)<0, 0, N26-N31) -> 2154845.509 | P32: =IF((P26-P31)<0, 0, P26-P31) -> 2449518.949 | R32: =IF((R26-R31)<0, 0, R26-R31) -> 2253557.433
A34: UCC - Computer Equipment | B34: =B20 -> 2006 | D34: 2007 | F34: 2008 | H34: 2009 | J34: 2010 | L34: 2011 | N34: =N20 -> 2012 | P34: =P20 -> 2013 | R34: =R20 -> 2014
B35: Audited Actual | D35: Audited Actual | F35: Audited Actual | H35: Audited Actual | J35: Audited Actual | L35: Audited Actual | N35: =N21 -> Audited Actual | P35: =P21 -> Forecast | R35: =R21 -> Forecast
A37: Opening UCC | B37: 0 | D37: =B41-B46 -> 0 | F37: =D41-D46 -> 0 | H37: =F41-F46 -> 0 | J37: =H41-H46 -> 16143.025 | L37: =J41-J46 -> 1585.6 | N37: =L41-L46 -> 15143.775 | P37: =N41-N46 -> 6821.975 | R37: =P41-P46 -> 2387.215
A38: Capital Additions Computer Hardware | B38: ='2. Smart_Meter_Costs'!G183 -> 0 | D38: ='2. Smart_Meter_Costs'!I183 -> 0 | F38: ='2. Smart_Meter_Costs'!K183 -> 0 | H38: ='2. Smart_Meter_Costs'!M183 -> 2333.4 | J38: ='2. Smart_Meter_Costs'!O183 -> 1929.62 | L38: ='2. Smart_Meter_Costs'!Q183 -> 0 | N38: ='2. Smart_Meter_Costs'!S183 -> 0 | P38: ='2. Smart_Meter_Costs'!U183 -> 4774.43 | R38: ='2. Smart_Meter_Costs'!W183 -> 0
A39: Capital Additions Computer Software | B39: ='2. Smart_Meter_Costs'!G185 -> 0 | D39: ='2. Smart_Meter_Costs'!I185 -> 0 | F39: ='2. Smart_Meter_Costs'!K185 -> 0 | H39: ='2. Smart_Meter_Costs'!M185 -> 29952.65 | J39: ='2. Smart_Meter_Costs'!O185 -> 1241.58 | L39: ='2. Smart_Meter_Costs'!Q185 -> 30287.55 | N39: ='2. Smart_Meter_Costs'!S185 -> 13643.95 | P39: ='2. Smart_Meter_Costs'!U185 -> 0 | R39: ='2. Smart_Meter_Costs'!W185 -> 0
A40: Retirements/Removals (if applicable)
A41: UCC Before Half Year Rule | B41: =SUM(B37:B39)-B40 -> 0 | D41: =SUM(D37:D39)-D40 -> 0 | F41: =SUM(F37:F39)-F40 -> 0 | H41: =SUM(H37:H39)-H40 -> 32286.05 | J41: =SUM(J37:J39)-J40 -> 19314.225 | L41: =SUM(L37:L39)-L40 -> 31873.15 | N41: =SUM(N37:N39)-N40 -> 28787.725 | P41: =SUM(P37:P39)-P40 -> 11596.405 | R41: =SUM(R37:R39)-R40 -> 2387.215
A42: Half Year Rule (1/2 Additions - Disposals) | B42: =IF((SUM(B38:B39)/2)<0, 0, SUM(B38:B39)/2) -> 0 | D42: =IF((SUM(D38:D39)/2)<0, 0, SUM(D38:D39)/2) -> 0 | F42: =IF((SUM(F38:F39)/2)<0, 0, SUM(F38:F39)/2) -> 0 | H42: =IF((SUM(H38:H39)/2)<0, 0, SUM(H38:H39)/2) -> 16143.025 | J42: =IF((SUM(J38:J39)/2)<0, 0, SUM(J38:J39)/2) -> 1585.6 | L42: =IF((SUM(L38:L39)/2)<0, 0, SUM(L38:L39)/2) -> 15143.775 | N42: =IF((SUM(N38:N39)/2)<0, 0, SUM(N38:N39)/2) -> 6821.975 | P42: =IF((SUM(P38:P39)/2)<0, 0, SUM(P38:P39)/2) -> 2387.215 | R42: =IF((SUM(R38:R39)/2)<0, 0, SUM(R38:R39)/2) -> 0
A43: Reduced UCC | B43: =B42+B37 -> 0 | D43: =D42+D37 -> 0 | F43: =F42+F37 -> 0 | H43: =H42+H37 -> 16143.025 | J43: =J42+J37 -> 17728.625 | L43: =L42+L37 -> 16729.375 | N43: =N42+N37 -> 21965.75 | P43: =P42+P37 -> 9209.19 | R43: =R42+R37 -> 2387.215
A44: CCA Rate Class | B44: ='3. Cost_of_Service_Parameters'!G60 -> 52 | D44: ='3. Cost_of_Service_Parameters'!I60 -> 52 | F44: ='3. Cost_of_Service_Parameters'!K60 -> 52 | H44: ='3. Cost_of_Service_Parameters'!M60 -> 52 | J44: ='3. Cost_of_Service_Parameters'!O60 -> 52 | L44: ='3. Cost_of_Service_Parameters'!Q60 -> 52 | N44: ='3. Cost_of_Service_Parameters'!S60 -> 52 | P44: ='3. Cost_of_Service_Parameters'!U60 -> 52 | R44: ='3. Cost_of_Service_Parameters'!W60 -> 52
A45: CCA Rate | B45: ='3. Cost_of_Service_Parameters'!G61 -> 1 | D45: ='3. Cost_of_Service_Parameters'!I61 -> 1 | F45: ='3. Cost_of_Service_Parameters'!K61 -> 1 | H45: ='3. Cost_of_Service_Parameters'!M61 -> 1 | J45: ='3. Cost_of_Service_Parameters'!O61 -> 1 | L45: ='3. Cost_of_Service_Parameters'!Q61 -> 1 | N45: ='3. Cost_of_Service_Parameters'!S61 -> 1 | P45: ='3. Cost_of_Service_Parameters'!U61 -> 1 | R45: ='3. Cost_of_Service_Parameters'!W61 -> 1
A46: CCA | B46: =B45*B43 -> 0 | D46: =D45*D43 -> 0 | F46: =F45*F43 -> 0 | H46: =H45*H43 -> 16143.025 | J46: =J45*J43 -> 17728.625 | L46: =L45*L43 -> 16729.375 | N46: =N45*N43 -> 21965.75 | P46: =P45*P43 -> 9209.19 | R46: =R45*R43 -> 2387.215
A47: Closing UCC | B47: =IF((B41-B46)<0, 0, B41-B46) -> 0 | D47: =IF((D41-D46)<0, 0, D41-D46) -> 0 | F47: =IF((F41-F46)<0, 0, F41-F46) -> 0 | H47: =IF((H41-H46)<0, 0, H41-H46) -> 16143.025 | J47: =IF((J41-J46)<0, 0, J41-J46) -> 1585.6 | L47: =IF((L41-L46)<0, 0, L41-L46) -> 15143.775 | N47: =IF((N41-N46)<0, 0, N41-N46) -> 6821.975 | P47: =IF((P41-P46)<0, 0, P41-P46) -> 2387.215 | R47: =IF((R41-R46)<0, 0, R41-R46) -> 0
A49: UCC - General Equipment | B49: =B34 -> 2006 | D49: 2007 | F49: 2008 | H49: 2009 | J49: 2010 | L49: 2011 | N49: =N34 -> 2012 | P49: =P34 -> 2013 | R49: =R34 -> 2014
B50: Audited Actual | D50: Audited Actual | F50: Audited Actual | H50: Audited Actual | J50: Audited Actual | L50: Audited Actual | N50: =N35 -> Audited Actual | P50: =P35 -> Forecast | R50: =R35 -> Forecast
A52: Opening UCC | B52: 0 | D52: =B56-B61 -> 0 | F52: =D56-D61 -> 0 | H52: =F56-F61 -> 0 | J52: =H56-H61 -> 0 | L52: =J56-J61 -> 0 | N52: =L56-L61 -> 0 | P52: =N56-N61 -> 28255.185 | R52: =P56-P61 -> 22604.148
A53: Capital Additions Tools & Equipment | B53: ='2. Smart_Meter_Costs'!G187 -> 0 | D53: ='2. Smart_Meter_Costs'!I187 -> 0 | F53: ='2. Smart_Meter_Costs'!K187 -> 0 | H53: ='2. Smart_Meter_Costs'!M187 -> 0 | J53: ='2. Smart_Meter_Costs'!O187 -> 0 | L53: ='2. Smart_Meter_Costs'!Q187 -> 0 | N53: ='2. Smart_Meter_Costs'!S187 -> 0 | P53: ='2. Smart_Meter_Costs'!U187 -> 0 | R53: ='2. Smart_Meter_Costs'!W187 -> 0
A54: Capital Additions Other Equipment | B54: ='2. Smart_Meter_Costs'!G189 -> 0 | D54: ='2. Smart_Meter_Costs'!I189 -> 0 | F54: ='2. Smart_Meter_Costs'!K189 -> 0 | H54: ='2. Smart_Meter_Costs'!M189 -> 0 | J54: ='2. Smart_Meter_Costs'!O189 -> 0 | L54: ='2. Smart_Meter_Costs'!Q189 -> 0 | N54: ='2. Smart_Meter_Costs'!S189 -> 31394.65 | P54: ='2. Smart_Meter_Costs'!U189 -> 0 | R54: ='2. Smart_Meter_Costs'!W189 -> 0
A55: Retirements/Removals (if applicable)
A56: UCC Before Half Year Rule | B56: =SUM(B52:B54)-B55 -> 0 | D56: =SUM(D52:D54)-D55 -> 0 | F56: =SUM(F52:F54)-F55 -> 0 | H56: =SUM(H52:H54)-H55 -> 0 | J56: =SUM(J52:J54)-J55 -> 0 | L56: =SUM(L52:L54)-L55 -> 0 | N56: =SUM(N52:N54)-N55 -> 31394.65 | P56: =SUM(P52:P54)-P55 -> 28255.185 | R56: =SUM(R52:R54)-R55 -> 22604.148
A57: Half Year Rule (1/2 Additions - Disposals) | B57: =IF(((SUM(B53:B54)-B55)/2)<0, 0, (SUM(B53:B54)-B55)/2) -> 0 | D57: =IF(((SUM(D53:D54)-D55)/2)<0, 0, (SUM(D53:D54)-D55)/2) -> 0 | F57: =IF(((SUM(F53:F54)-F55)/2)<0, 0, (SUM(F53:F54)-F55)/2) -> 0 | H57: =IF(((SUM(H53:H54)-H55)/2)<0, 0, (SUM(H53:H54)-H55)/2) -> 0 | J57: =IF(((SUM(J53:J54)-J55)/2)<0, 0, (SUM(J53:J54)-J55)/2) -> 0 | L57: =IF(((SUM(L53:L54)-L55)/2)<0, 0, (SUM(L53:L54)-L55)/2) -> 0 | N57: =IF(((SUM(N53:N54)-N55)/2)<0, 0, (SUM(N53:N54)-N55)/2) -> 15697.325 | P57: =IF(((SUM(P53:P54)-P55)/2)<0, 0, (SUM(P53:P54)-P55)/2) -> 0 | R57: =IF(((SUM(R53:R54)-R55)/2)<0, 0, (SUM(R53:R54)-R55)/2) -> 0
A58: Reduced UCC | B58: =B57+B52 -> 0 | D58: =D57+D52 -> 0 | F58: =F57+F52 -> 0 | H58: =H57+H52 -> 0 | J58: =J57+J52 -> 0 | L58: =L57+L52 -> 0 | N58: =N57+N52 -> 15697.325 | P58: =P57+P52 -> 28255.185 | R58: =R57+R52 -> 22604.148
A59: CCA Rate Class | B59: ='3. Cost_of_Service_Parameters'!G63 -> 8 | D59: ='3. Cost_of_Service_Parameters'!I63 -> 8 | F59: ='3. Cost_of_Service_Parameters'!K63 -> 8 | H59: ='3. Cost_of_Service_Parameters'!M63 -> 8 | J59: ='3. Cost_of_Service_Parameters'!O63 -> 8 | L59: ='3. Cost_of_Service_Parameters'!Q63 -> 8 | N59: ='3. Cost_of_Service_Parameters'!S63 -> 8 | P59: ='3. Cost_of_Service_Parameters'!U63 -> 8 | R59: ='3. Cost_of_Service_Parameters'!W63 -> 8
A60: CCA Rate | B60: ='3. Cost_of_Service_Parameters'!G64 -> 0.2 | D60: ='3. Cost_of_Service_Parameters'!I64 -> 0.2 | F60: ='3. Cost_of_Service_Parameters'!K64 -> 0.2 | H60: ='3. Cost_of_Service_Parameters'!M64 -> 0.2 | J60: ='3. Cost_of_Service_Parameters'!O64 -> 0.2 | L60: ='3. Cost_of_Service_Parameters'!Q64 -> 0.2 | N60: ='3. Cost_of_Service_Parameters'!S64 -> 0.2 | P60: ='3. Cost_of_Service_Parameters'!U64 -> 0.2 | R60: ='3. Cost_of_Service_Parameters'!W64 -> 0.2
A61: CCA | B61: =B60*B58 -> 0 | D61: =D60*D58 -> 0 | F61: =F60*F58 -> 0 | H61: =H60*H58 -> 0 | J61: =J60*J58 -> 0 | L61: =L60*L58 -> 0 | N61: =N60*N58 -> 3139.465 | P61: =P60*P58 -> 5651.037 | R61: =R60*R58 -> 4520.8296
A62: Closing UCC | B62: =IF((B56-B61)<0, 0, B56-B61) -> 0 | D62: =IF((D56-D61)<0, 0, D56-D61) -> 0 | F62: =IF((F56-F61)<0, 0, F56-F61) -> 0 | H62: =IF((H56-H61)<0, 0, H56-H61) -> 0 | J62: =IF((J56-J61)<0, 0, J56-J61) -> 0 | L62: =IF((L56-L61)<0, 0, L56-L61) -> 0 | N62: =IF((N56-N61)<0, 0, N56-N61) -> 28255.185 | P62: =IF((P56-P61)<0, 0, P56-P61) -> 22604.148 | R62: =IF((R56-R61)<0, 0, R56-R61) -> 18083.3184
A64: UCC - Applications Software | B64: =B49 -> 2006 | D64: =D49 -> 2007 | F64: =F49 -> 2008 | H64: =H49 -> 2009 | J64: =J49 -> 2010 | L64: =L49 -> 2011 | N64: =N49 -> 2012 | P64: =P49 -> 2013 | R64: =R49 -> 2014
B65: =B50 -> Audited Actual | D65: =D50 -> Audited Actual | F65: =F50 -> Audited Actual | H65: =H50 -> Audited Actual | J65: =J50 -> Audited Actual | L65: =L50 -> Audited Actual | N65: =N50 -> Audited Actual | P65: =P50 -> Forecast | R65: =R50 -> Forecast
A67: Opening UCC | B67: 0 | D67: =B70-B75 -> 0 | F67: =D70-D75 -> 0 | H67: =F70-F75 -> 0 | J67: =H70-H75 -> 0 | L67: =J70-J75 -> 0 | N67: =L70-L75 -> 0 | P67: =N70-N75 -> 0 | R67: =P70-P75 -> 0
A68: Capital Additions Applications Software | B68: ='2. Smart_Meter_Costs'!G191 -> 0 | D68: ='2. Smart_Meter_Costs'!I191 -> 0 | F68: ='2. Smart_Meter_Costs'!K191 -> 0 | H68: ='2. Smart_Meter_Costs'!M191 -> 0 | J68: ='2. Smart_Meter_Costs'!O191 -> 0 | L68: ='2. Smart_Meter_Costs'!Q191 -> 0 | N68: ='2. Smart_Meter_Costs'!S191 -> 0 | P68: ='2. Smart_Meter_Costs'!U191 -> 0 | R68: ='2. Smart_Meter_Costs'!W191 -> 0
A69: Retirements/Removals (if applicable)
A70: UCC Before Half Year Rule | B70: =SUM(B67:B68)-B69 -> 0 | D70: =SUM(D67:D68)-D69 -> 0 | F70: =SUM(F67:F68)-F69 -> 0 | H70: =SUM(H67:H68)-H69 -> 0 | J70: =SUM(J67:J68)-J69 -> 0 | L70: =SUM(L67:L68)-L69 -> 0 | N70: =SUM(N67:N68)-N69 -> 0 | P70: =SUM(P67:P68)-P69 -> 0 | R70: =SUM(R67:R68)-R69 -> 0
A71: Half Year Rule (1/2 Additions - Disposals) | B71: =IF(((SUM(B68:B68)-B69)/2)<0, 0, (SUM(B68:B68)-B69)/2) -> 0 | D71: =IF(((SUM(D68:D68)-D69)/2)<0, 0, (SUM(D68:D68)-D69)/2) -> 0 | F71: =IF(((SUM(F68:F68)-F69)/2)<0, 0, (SUM(F68:F68)-F69)/2) -> 0 | H71: =IF(((SUM(H68:H68)-H69)/2)<0, 0, (SUM(H68:H68)-H69)/2) -> 0 | J71: =IF(((SUM(J68:J68)-J69)/2)<0, 0, (SUM(J68:J68)-J69)/2) -> 0 | L71: =IF(((SUM(L68:L68)-L69)/2)<0, 0, (SUM(L68:L68)-L69)/2) -> 0 | N71: =IF(((SUM(N68:N68)-N69)/2)<0, 0, (SUM(N68:N68)-N69)/2) -> 0 | P71: =IF(((SUM(P68:P68)-P69)/2)<0, 0, (SUM(P68:P68)-P69)/2) -> 0 | R71: =IF(((SUM(R68:R68)-R69)/2)<0, 0, (SUM(R68:R68)-R69)/2) -> 0
A72: Reduced UCC | B72: =B71+B67 -> 0 | D72: =D71+D67 -> 0 | F72: =F71+F67 -> 0 | H72: =H71+H67 -> 0 | J72: =J71+J67 -> 0 | L72: =L71+L67 -> 0 | N72: =N71+N67 -> 0 | P72: =P71+P67 -> 0 | R72: =R71+R67 -> 0
A73: CCA Rate Class | B73: ='3. Cost_of_Service_Parameters'!G66 -> 0 | D73: ='3. Cost_of_Service_Parameters'!I66 -> 0 | F73: ='3. Cost_of_Service_Parameters'!K66 -> 0 | H73: ='3. Cost_of_Service_Parameters'!M66 -> 0 | J73: ='3. Cost_of_Service_Parameters'!O66 -> 0 | L73: ='3. Cost_of_Service_Parameters'!Q66 -> 0 | N73: ='3. Cost_of_Service_Parameters'!S66 -> 0 | P73: ='3. Cost_of_Service_Parameters'!U66 -> 0 | R73: ='3. Cost_of_Service_Parameters'!W66 -> 0
A74: CCA Rate | B74: ='3. Cost_of_Service_Parameters'!G67 -> 0 | D74: ='3. Cost_of_Service_Parameters'!I67 -> 0 | F74: ='3. Cost_of_Service_Parameters'!K67 -> 0 | H74: ='3. Cost_of_Service_Parameters'!M67 -> 0 | J74: ='3. Cost_of_Service_Parameters'!O67 -> 0 | L74: ='3. Cost_of_Service_Parameters'!Q67 -> 0 | N74: ='3. Cost_of_Service_Parameters'!S67 -> 0 | P74: ='3. Cost_of_Service_Parameters'!U67 -> 0 | R74: ='3. Cost_of_Service_Parameters'!W67 -> 0
A75: CCA | B75: =B74*B72 -> 0 | D75: =D74*D72 -> 0 | F75: =F74*F72 -> 0 | H75: =H74*H72 -> 0 | J75: =J74*J72 -> 0 | L75: =L74*L72 -> 0 | N75: =N74*N72 -> 0 | P75: =P74*P72 -> 0 | R75: =R74*R72 -> 0
A76: Closing UCC | B76: =IF((B70-B75)<0, 0, B70-B75) -> 0 | D76: =IF((D70-D75)<0, 0, D70-D75) -> 0 | F76: =IF((F70-F75)<0, 0, F70-F75) -> 0 | H76: =IF((H70-H75)<0, 0, H70-H75) -> 0 | J76: =IF((J70-J75)<0, 0, J70-J75) -> 0 | L76: =IF((L70-L75)<0, 0, L70-L75) -> 0 | N76: =IF((N70-N75)<0, 0, N70-N75) -> 0 | P76: =IF((P70-P75)<0, 0, P70-P75) -> 0 | R76: =IF((R70-R75)<0, 0, R70-R75) -> 0

Sheet 7_Taxes_PILs
A18: PILs Calculation
C20: ='2. Smart_Meter_Costs'!G18& " " &'2. Smart_Meter_Costs'!G19 -> 2006 Audited Actual | E20: ='2. Smart_Meter_Costs'!I18& " " &'2. Smart_Meter_Costs'!I19 -> 2007 Audited Actual | G20: ='2. Smart_Meter_Costs'!K18& " " &'2. Smart_Meter_Costs'!K19 -> 2008 Audited Actual | I20: ='2. Smart_Meter_Costs'!M18& " " &'2. Smart_Meter_Costs'!M19 -> 2009 Audited Actual | K20: ='2. Smart_Meter_Costs'!O18& " " &'2. Smart_Meter_Costs'!O19 -> 2010 Audited Actual | M20: ='2. Smart_Meter_Costs'!Q18& " " &'2. Smart_Meter_Costs'!Q19 -> 2011 Audited Actual | O20: ='2. Smart_Meter_Costs'!S18& " " &'2. Smart_Meter_Costs'!S19 -> 2012 Audited Actual | Q20: ='2. Smart_Meter_Costs'!U18& " " &'2. Smart_Meter_Costs'!U19 -> 2013 Forecast | S20: ='2. Smart_Meter_Costs'!W18& " " &'2. Smart_Meter_Costs'!W19 -> 2014 Forecast
A22: INCOME TAX
B23: Net Income | C23: ='5. SM_Rev_Reqt'!G$66 -> 141.828705 | E23: ='5. SM_Rev_Reqt'!I$66 -> 976.2368925 | G23: ='5. SM_Rev_Reqt'!K$66 -> 2022.290549 | I23: ='5. SM_Rev_Reqt'!M$66 -> 45349.08545 | K23: ='5. SM_Rev_Reqt'!O$66 -> 93121.9336 | M23: ='5. SM_Rev_Reqt'!Q$66 -> 97123.67236 | O23: ='5. SM_Rev_Reqt'!S$66 -> 92485.75045 | Q23: ='5. SM_Rev_Reqt'!U$66 -> 95290.78016 | S23: ='5. SM_Rev_Reqt'!W$66 -> 95902.4218
B24: Amortization | C24: ='5. SM_Rev_Reqt'!G$64 -> 217.362 | E24: ='5. SM_Rev_Reqt'!I$64 -> 1431.128667 | G24: ='5. SM_Rev_Reqt'!K$64 -> 3414.796 | I24: ='5. SM_Rev_Reqt'!M$64 -> 81554.67733 | K24: ='5. SM_Rev_Reqt'!O$64 -> 172602.2663 | M24: ='5. SM_Rev_Reqt'!Q$64 -> 193041.0797 | O24: ='5. SM_Rev_Reqt'!S$64 -> 202333.4774 | Q24: ='5. SM_Rev_Reqt'!U$64 -> 221776.8738 | S24: ='5. SM_Rev_Reqt'!W$64 -> 238471.7154
B25: CCA - Smart Meters | C25: =-'6. UCC_Calculation'!B31 -> -260.8344 | E25: =-'6. UCC_Calculation'!D31 -> -1696.487648 | G25: =-'6. UCC_Calculation'!F31 -> -3941.169436 | I25: =-'6. UCC_Calculation'!H31 -> -93519.40748 | K25: =-'6. UCC_Calculation'!J31 -> -191040.0917 | M25: =-'6. UCC_Calculation'!L31 -> -196268.4103 | O25: =-'6. UCC_Calculation'!N31 -> -186027.4395 | Q25: =-'6. UCC_Calculation'!P31 -> -191848.5191 | S25: =-'6. UCC_Calculation'!R31 -> -195961.5159
B26: CCA - Computers | C26: =-'6. UCC_Calculation'!B46 -> 0 | E26: =-'6. UCC_Calculation'!D46 -> 0 | G26: =-'6. UCC_Calculation'!F46 -> 0 | I26: =-'6. UCC_Calculation'!H46 -> -16143.025 | K26: =-'6. UCC_Calculation'!J46 -> -17728.625 | M26: =-'6. UCC_Calculation'!L46 -> -16729.375 | O26: =-'6. UCC_Calculation'!N46 -> -21965.75 | Q26: =-'6. UCC_Calculation'!P46 -> -9209.19 | S26: =-'6. UCC_Calculation'!R46 -> -2387.215
B27: CCA - Applications Software | C27: =-'6. UCC_Calculation'!B75 -> 0 | E27: =-'6. UCC_Calculation'!D75 -> 0 | G27: =-'6. UCC_Calculation'!F75 -> 0 | I27: =-'6. UCC_Calculation'!H75 -> 0 | K27: =-'6. UCC_Calculation'!J75 -> 0 | M27: =-'6. UCC_Calculation'!L75 -> 0 | O27: =-'6. UCC_Calculation'!N75 -> 0 | Q27: =-'6. UCC_Calculation'!P75 -> 0 | S27: =-'6. UCC_Calculation'!R75 -> 0
B28: CCA - Other Equipment | C28: =-'6. UCC_Calculation'!B61 -> 0 | E28: =-'6. UCC_Calculation'!D61 -> 0 | G28: =-'6. UCC_Calculation'!F61 -> 0 | I28: =-'6. UCC_Calculation'!H61 -> 0 | K28: =-'6. UCC_Calculation'!J61 -> 0 | M28: =-'6. UCC_Calculation'!L61 -> 0 | O28: =-'6. UCC_Calculation'!N61 -> -3139.465 | Q28: =-'6. UCC_Calculation'!P61 -> -5651.037 | S28: =-'6. UCC_Calculation'!R61 -> -4520.8296
B29: Change in taxable income | C29: =SUM(C23:C28) -> 98.356305 | E29: 710.8779112 | G29: 1495.917113 | I29: 17241.3303 | K29: 56955.48325 | M29: 77166.96668 | O29: 83686.57337 | Q29: 110358.9079 | S29: =SUM(S23:S28) -> 131504.5767
B31: Tax Rate (from Sheet 3) | C31: ='3. Cost_of_Service_Parameters'!G40 -> 0.3612 | E31: ='3. Cost_of_Service_Parameters'!I40 -> 0.3612 | G31: ='3. Cost_of_Service_Parameters'!K40 -> 0.335 | I31: ='3. Cost_of_Service_Parameters'!M40 -> 0.33 | K31: ='3. Cost_of_Service_Parameters'!O40 -> 0.2872 | M31: ='3. Cost_of_Service_Parameters'!Q40 -> 0.2825 | O31: ='3. Cost_of_Service_Parameters'!S40 -> 0.2479 | Q31: ='3. Cost_of_Service_Parameters'!U40 -> 0.265 | S31: ='3. Cost_of_Service_Parameters'!W40 -> 0.265
B33: Income Taxes Payable | C33: =C29*C31 -> 35.52629737 | E33: 256.7691015 | G33: 501.1322329 | I33: 5689.639 | K33: 16357.61479 | M33: 21799.66809 | O33: 20745.90154 | Q33: =Q29*Q31 -> 29245.11059 | S33: =S29*S31 -> 34848.71284
A35: ONTARIO CAPITAL TAX
B36: Smart Meters | C36: ='4. SM_Assets_and_Rate_Base'!G35 -> 6303.498 | E36: ='4. SM_Assets_and_Rate_Base'!I35 -> 34764.50933 | G36: ='4. SM_Assets_and_Rate_Base'!K35 -> 60967.59333 | I36: ='4. SM_Assets_and_Rate_Base'!M35 -> 2200361.931 | K36: ='4. SM_Assets_and_Rate_Base'!O35 -> 2441869.505 | M36: ='4. SM_Assets_and_Rate_Base'!Q35 -> 2364401.27 | O36: ='4. SM_Assets_and_Rate_Base'!S35 -> 2207989.887 | Q36: ='4. SM_Assets_and_Rate_Base'!U35 -> 2489787.823 | S36: ='4. SM_Assets_and_Rate_Base'!W35 -> 2268846.403
B37: Computer Hardware | C37: ='4. SM_Assets_and_Rate_Base'!G54 -> 0 | E37: ='4. SM_Assets_and_Rate_Base'!I54 -> 0 | G37: ='4. SM_Assets_and_Rate_Base'!K54 -> 0 | I37: ='4. SM_Assets_and_Rate_Base'!M54 -> 2100.06 | K37: ='4. SM_Assets_and_Rate_Base'!O54 -> 3370.038 | M37: ='4. SM_Assets_and_Rate_Base'!Q54 -> 2517.434 | O37: ='4. SM_Assets_and_Rate_Base'!S54 -> 1664.83 | Q37: ='4. SM_Assets_and_Rate_Base'!U54 -> 5109.213 | S37: ='4. SM_Assets_and_Rate_Base'!W54 -> 3301.723
B38: Computer Software (Including Application Software) | C38: ='4. SM_Assets_and_Rate_Base'!G73 -> 0 | E38: ='4. SM_Assets_and_Rate_Base'!I73 -> 0 | G38: ='4. SM_Assets_and_Rate_Base'!K73 -> 0 | I38: ='4. SM_Assets_and_Rate_Base'!M73 -> 26957.385 | K38: ='4. SM_Assets_and_Rate_Base'!O73 -> 22084.277 | M38: ='4. SM_Assets_and_Rate_Base'!Q73 -> 43104.226 | O38: ='4. SM_Assets_and_Rate_Base'!S73 -> 43087.425 | Q38: ='4. SM_Assets_and_Rate_Base'!U73 -> 28062.279 | S38: ='4. SM_Assets_and_Rate_Base'!W73 -> 13037.133
B39: Tools & Equipment | C39: ='4. SM_Assets_and_Rate_Base'!G92 -> 0 | E39: ='4. SM_Assets_and_Rate_Base'!I92 -> 0 | G39: ='4. SM_Assets_and_Rate_Base'!K92 -> 0 | I39: ='4. SM_Assets_and_Rate_Base'!M92 -> 0 | K39: ='4. SM_Assets_and_Rate_Base'!O92 -> 0 | M39: ='4. SM_Assets_and_Rate_Base'!Q92 -> 0 | O39: ='4. SM_Assets_and_Rate_Base'!S92 -> 0 | Q39: ='4. SM_Assets_and_Rate_Base'!U92 -> 0 | S39: ='4. SM_Assets_and_Rate_Base'!W92 -> 0
B40: Other Equipment | C40: ='4. SM_Assets_and_Rate_Base'!G111 -> 0 | E40: ='4. SM_Assets_and_Rate_Base'!I111 -> 0 | G40: ='4. SM_Assets_and_Rate_Base'!K111 -> 0 | I40: ='4. SM_Assets_and_Rate_Base'!M111 -> 0 | K40: ='4. SM_Assets_and_Rate_Base'!O111 -> 0 | M40: ='4. SM_Assets_and_Rate_Base'!Q111 -> 0 | O40: ='4. SM_Assets_and_Rate_Base'!S111 -> 31045.82056 | Q40: ='4. SM_Assets_and_Rate_Base'!U111 -> 30348.16167 | S40: ='4. SM_Assets_and_Rate_Base'!W111 -> 29650.50278
B41: Rate Base | C41: =SUM(C36:C40) -> 6303.498 | E41: =SUM(E36:E40) -> 34764.50933 | G41: =SUM(G36:G40) -> 60967.59333 | I41: =SUM(I36:I40) -> 2229419.376 | K41: =SUM(K36:K40) -> 2467323.82 | M41: =SUM(M36:M40) -> 2410022.93 | O41: =SUM(O36:O40) -> 2283787.963 | Q41: =SUM(Q36:Q40) -> 2553307.477 | S41: =SUM(S36:S40) -> 2314835.762
B42: Less: Exemption
B43: Deemed Taxable Capital | C43: =C41-C42 -> 6303.498 | E43: 34764.50933 | G43: 60967.59333 | I43: 2229419.376 | K43: 2467323.82 | M43: 2410022.93 | O43: 2283787.963 | Q43: 2553307.477 | S43: =S41-S42 -> 2314835.762
B45: Ontario Capital Tax Rate (from Sheet 3) | C45: ='3. Cost_of_Service_Parameters'!G41 -> 0.003 | E45: ='3. Cost_of_Service_Parameters'!I41 -> 0.00225 | G45: ='3. Cost_of_Service_Parameters'!K41 -> 0.00225 | I45: ='3. Cost_of_Service_Parameters'!M41 -> 0.00225 | K45: ='3. Cost_of_Service_Parameters'!O41 -> 0.00075 | M45: ='3. Cost_of_Service_Parameters'!Q41 -> 0 | O45: ='3. Cost_of_Service_Parameters'!S41 -> 0 | Q45: ='3. Cost_of_Service_Parameters'!U41 -> 0 | S45: ='3. Cost_of_Service_Parameters'!W41 -> 0
B47: Net Amount (Taxable Capital x Rate) | C47: =C43*C45 -> 18.910494 | E47: 78.220146 | G47: 137.177085 | I47: 5016.193596 | K47: 1850.492865 | M47: 0 | O47: 0 | Q47: =Q43*Q45 -> 0 | S47: =S43*S45 -> 0
B50: Change in Income Taxes Payable | C50: =C33 -> 35.52629737 | E50: 256.7691015 | G50: 501.1322329 | I50: 5689.639 | K50: 16357.61479 | M50: 21799.66809 | O50: 20745.90154 | Q50: =Q33 -> 29245.11059 | S50: =S33 -> 34848.71284
B51: Change in OCT | C51: =C47 -> 18.910494 | E51: 78.220146 | G51: 137.177085 | I51: 5016.193596 | K51: 1850.492865 | M51: 0 | O51: 0 | Q51: =Q47 -> 0 | S51: =S47 -> 0
B52: PILs | C52: =SUM(C50:C51) -> 54.43679137 | E52: 334.9892475 | G52: 638.3093179 | I52: 10705.8326 | K52: 18208.10765 | M52: 21799.66809 | O52: 20745.90154 | Q52: 29245.11059 | S52: =SUM(S50:S51) -> 34848.71284
A55: Gross Up PILs
B56: Tax Rate | C56: =C31 -> 0.3612 | E56: =E31 -> 0.3612 | G56: 0.335 | I56: 0.33 | K56: 0.2872 | M56: 0.2825 | O56: 0.2479 | Q56: =Q31 -> 0.265 | S56: =S31 -> 0.265
B57: Change in Income Taxes Payable | C57: =C50/(1-C56) -> 55.6141161 | E57: 401.9553875 | G57: 753.5823051 | I57: 8491.998507 | K57: 22948.39336 | M57: 30382.81266 | O57: 27583.96694 | Q57: 39789.26611 | S57: =S50/(1-S56) -> 47413.21475
B58: Change in OCT | C58: =C51 -> 18.910494 | E58: 78.220146 | G58: 137.177085 | I58: 5016.193596 | K58: 1850.492865 | M58: 0 | O58: 0 | Q58: =Q51 -> 0 | S58: =S51 -> 0
B59: PILs | C59: =SUM(C57:C58) -> 74.5246101 | E59: 480.1755335 | G59: 890.7593901 | I59: 13508.1921 | K59: 24798.88623 | M59: 30382.81266 | O59: 27583.96694 | Q59: 39789.26611 | S59: =SUM(S57:S58) -> 47413.21475

Sheet 8. Funding_Adder_Revs
B13: This worksheet calculates the funding adder revenues.
J20: Account 1555 - Sub-account Funding Adder Revenues
B22: Interest Rates | C22: Approved Deferral and Variance Accounts | D22: CWIP | F22: Date | G22: Year | H22: Quarter | J22: Opening Balance (Principal) | K22: Funding Adder Revenues | L22: Interest Rate | M22: Interest | N22: Closing Balance | O22: Annual amounts | P22: Board Approved Smart Meter Funding Adder (from Tariff)
B24: 2006 Q1 | F24: 2006-01-01 | G24: =YEAR(F24) -> 2006 | H24: =IF(MONTH(F24)=0,"",IF(MONTH(F24)<4,"Q1",IF(MONTH(F24)<7,"Q2",IF(MONTH(F24)<10,"Q3","Q4")))) -> Q1 | I24: =CONCATENATE(G24," ",H24) -> 2006 Q1 | J24: 0 | L24: =VLOOKUP(I24,$B$22:$D$59,2) -> 0 | M24: =ROUND(J24*L24/12,2) -> 0 | N24: =J24+K24+M24 -> 0
B25: 2006 Q2 | C25: 0.0414 | D25: 0.0468 | F25: 2006-02-01 | G25: =YEAR(F25) -> 2006 | H25: =IF(MONTH(F25)=0,"",IF(MONTH(F25)<4,"Q1",IF(MONTH(F25)<7,"Q2",IF(MONTH(F25)<10,"Q3","Q4")))) -> Q1 | I25: =CONCATENATE(G25," ",H25) -> 2006 Q1 | J25: =J24+K24 -> 0 | L25: 0 | M25: =ROUND(J25*L25/12,2) -> 0 | N25: =J25+K25+M25 -> 0
B26: 2006 Q3 | C26: 0.0459 | D26: 0.0505 | F26: 2006-03-01 | G26: 2006 | H26: Q1 | I26: 2006 Q1 | J26: =J25+K25 -> 0 | L26: 0 | M26: 0 | N26: 0
B27: 2006 Q4 | C27: 0.0459 | D27: 0.0472 | F27: 2006-04-01 | G27: 2006 | H27: Q2 | I27: 2006 Q2 | J27: 0 | L27: 0.0414 | M27: 0 | N27: 0 | P27: 0.31
B28: 2007 Q1 | C28: 0.0459 | D28: 0.0472 | F28: 2006-05-01 | G28: 2006 | H28: Q2 | I28: 2006 Q2 | J28: 0 | K28: 220.52 | L28: 0.0414 | M28: 0 | N28: 220.52 | P28: 0.31
B29: 2007 Q2 | C29: 0.0459 | D29: 0.0472 | F29: 2006-06-01 | G29: 2006 | H29: Q2 | I29: 2006 Q2 | J29: 220.52 | K29: 6111.02 | L29: 0.0414 | M29: 0.76 | N29: 6332.3 | P29: 0.31
B30: 2007 Q3 | C30: 0.0459 | D30: 0.0518 | F30: 2006-07-01 | G30: 2006 | H30: Q3 | I30: 2006 Q3 | J30: 6331.54 | K30: 10232.86 | L30: 0.0459 | M30: 24.22 | N30: 16588.62 | P30: 0.31
B31: 2007 Q4 | C31: 0.0514 | D31: 0.0518 | F31: 2006-08-01 | G31: 2006 | H31: Q3 | I31: 2006 Q3 | J31: 16564.4 | K31: 9311.38 | L31: 0.0459 | M31: 63.36 | N31: 25939.14 | P31: 0.31
B32: 2008 Q1 | C32: 0.0514 | D32: 0.0518 | F32: 2006-09-01 | G32: 2006 | H32: Q3 | I32: 2006 Q3 | J32: 25875.78 | K32: 10091.99 | L32: 0.0459 | M32: 98.97 | N32: 36066.74 | P32: 0.31
B33: 2008 Q2 | C33: 0.0408 | D33: 0.0518 | F33: 2006-10-01 | G33: 2006 | H33: Q4 | I33: 2006 Q4 | J33: 35967.77 | K33: 8298.04 | L33: 0.0459 | M33: 137.58 | N33: 44403.39 | P33: 0.31
B34: 2008 Q3 | C34: 0.0335 | D34: 0.0543 | F34: 2006-11-01 | G34: 2006 | H34: Q4 | I34: 2006 Q4 | J34: 44265.81 | K34: 9358.41 | L34: 0.0459 | M34: 169.32 | N34: 53793.54 | P34: 0.31
B35: 2008 Q4 | C35: 0.0335 | D35: 0.0543 | F35: 2006-12-01 | G35: 2006 | H35: Q4 | I35: 2006 Q4 | J35: 53624.22 | K35: 9839.83 | L35: 0.0459 | M35: 205.11 | N35: 63669.16 | O35: =SUM(K24:K35)+SUM(M24:M35) -> 64163.37 | P35: 0.31
B36: 2009 Q1 | C36: 0.0245 | D36: 0.0661 | F36: 2007-01-01 | G36: 2007 | H36: Q1 | I36: 2007 Q1 | J36: 63464.05 | K36: 8603.18 | L36: 0.0459 | M36: 242.75 | N36: 72309.98 | P36: 0.31
B37: 2009 Q2 | C37: 0.01 | D37: 0.0661 | F37: 2007-02-01 | G37: 2007 | H37: Q1 | I37: 2007 Q1 | J37: 72067.23 | K37: 7467.87 | L37: 0.0459 | M37: 275.66 | N37: 79810.76 | P37: 0.31
B38: 2009 Q3 | C38: 0.0055 | D38: 0.0567 | F38: 2007-03-01 | G38: 2007 | H38: Q1 | I38: 2007 Q1 | J38: 79535.1 | K38: 8326.97 | L38: 0.0459 | M38: 304.22 | N38: 88166.29 | P38: 0.31
B39: 2009 Q4 | C39: 0.0055 | D39: 0.0466 | F39: 2007-04-01 | G39: 2007 | H39: Q2 | I39: 2007 Q2 | J39: 87862.07 | K39: 6873.71 | L39: 0.0459 | M39: 336.07 | N39: 95071.85 | P39: 0.31
B40: 2010 Q1 | C40: 0.0055 | D40: 0.0434 | F40: 2007-05-01 | G40: 2007 | H40: Q2 | I40: 2007 Q2 | J40: 94735.78 | K40: 7220.92 | L40: 0.0459 | M40: 362.36 | N40: 102319.06 | P40: 0.26
B41: 2010 Q2 | C41: 0.0055 | D41: 0.0434 | F41: 2007-06-01 | G41: 2007 | H41: Q2 | I41: 2007 Q2 | J41: 101956.7 | K41: 6910.76 | L41: 0.0459 | M41: 389.98 | N41: 109257.44 | P41: 0.26
B42: 2010 Q3 | C42: 0.0089 | D42: 0.0466 | F42: 2007-07-01 | G42: 2007 | H42: Q3 | I42: 2007 Q3 | J42: 108867.46 | K42: 5419.14 | L42: 0.0459 | M42: 416.42 | N42: 114703.02 | P42: 0.26
B43: 2010 Q4 | C43: 0.012 | D43: 0.0401 | F43: 2007-08-01 | G43: 2007 | H43: Q3 | I43: 2007 Q3 | J43: 114286.6 | K43: 7095.74 | L43: 0.0459 | M43: 437.15 | N43: 121819.49 | P43: 0.26
B44: 2011 Q1 | C44: 0.0147 | D44: 0.0429 | F44: 2007-09-01 | G44: 2007 | H44: Q3 | I44: 2007 Q3 | J44: 121382.34 | K44: 5657.08 | L44: 0.0459 | M44: 464.29 | N44: 127503.71 | P44: 0.26
B45: 2011 Q2 | C45: 0.0147 | D45: 0.0429 | F45: 2007-10-01 | G45: 2007 | H45: Q4 | I45: 2007 Q4 | J45: 127039.42 | K45: 5844.45 | L45: 0.0514 | M45: 544.15 | N45: 133428.02 | P45: 0.26
B46: 2011 Q3 | C46: 0.0147 | D46: 0.0429 | F46: 2007-11-01 | G46: 2007 | H46: Q4 | I46: 2007 Q4 | J46: 132883.87 | K46: 6624.3 | L46: 0.0514 | M46: 569.19 | N46: 140077.36 | P46: 0.26
B47: 2011 Q4 | C47: =C46 -> 0.0147 | D47: 0.0392 | F47: 2007-12-01 | G47: 2007 | H47: Q4 | I47: 2007 Q4 | J47: 139508.17 | K47: 5766.06 | L47: 0.0514 | M47: 597.56 | N47: 145871.79 | O47: =SUM(K36:K47)+SUM(M36:M47) -> 86749.98 | P47: 0.26
B48: 2012 Q1 | C48: 0.0147 | D48: 0.0392 | F48: 2008-01-01 | G48: 2008 | H48: Q1 | I48: 2008 Q1 | J48: 145274.23 | K48: 6058.72 | L48: 0.0514 | M48: 622.26 | N48: 151955.21 | P48: 0.26
B49: 2012 Q2 | C49: 0.0147 | D49: 0.0351 | F49: 2008-02-01 | G49: 2008 | H49: Q1 | I49: 2008 Q1 | J49: 151332.95 | K49: 7276.25 | L49: 0.0514 | M49: 648.21 | N49: 159257.41 | P49: 0.26
B50: 2012 Q3 | C50: 0.0147 | D50: 0.0351 | F50: 2008-03-01 | G50: 2008 | H50: Q1 | I50: 2008 Q1 | J50: 158609.2 | K50: 5450.77 | L50: 0.0514 | M50: 679.38 | N50: 164739.35 | P50: 0.26
B51: 2012 Q4 | C51: 0.0147 | D51: 0.0323 | F51: 2008-04-01 | G51: 2008 | H51: Q2 | I51: 2008 Q2 | J51: 164059.97 | K51: 6223.18 | L51: 0.0408 | M51: 557.8 | N51: 170840.95 | P51: 0.26
B52: 2013 Q1 | C52: 0.0147 | D52: 0.0323 | F52: 2008-05-01 | G52: 2008 | H52: Q2 | I52: 2008 Q2 | J52: 170283.15 | K52: 6824.95 | L52: 0.0408 | M52: 578.96 | N52: 177687.06 | P52: 0.26
B53: 2013 Q2 | C53: 0.0147 | D53: 0.0323 | F53: 2008-06-01 | G53: 2008 | H53: Q2 | I53: 2008 Q2 | J53: 177108.1 | K53: 5443.99 | L53: 0.0408 | M53: 602.17 | N53: 183154.26 | P53: 0.26
B54: 2013 Q3 | C54: 0.0147 | D54: 0.0323 | F54: 2008-07-01 | G54: 2008 | H54: Q3 | I54: 2008 Q3 | J54: 182552.09 | K54: 6234.01 | L54: 0.0335 | M54: 509.62 | N54: 189295.72 | P54: 0.26
B55: 2013 Q4 | C55: 0.0147 | D55: 0.0323 | F55: 2008-08-01 | G55: 2008 | H55: Q3 | I55: 2008 Q3 | J55: 188786.1 | K55: 6931.1 | L55: 0.0335 | M55: 527.03 | N55: 196244.23 | P55: 0.26
B56: 2014 Q1 | C56: 0.0147 | D56: 0.0323 | F56: 2008-09-01 | G56: 2008 | H56: Q3 | I56: 2008 Q3 | J56: 195717.2 | K56: 5584.31 | L56: =VLOOKUP(I56,$B$22:$D$59,2) -> 0.0335 | M56: 546.38 | N56: 201847.89 | P56: 0.26
B57: 2014 Q2 | C57: 0.0147 | D57: 0.0323 | F57: 2008-10-01 | G57: 2008 | H57: Q4 | I57: 2008 Q4 | J57: 201301.51 | K57: 6177.09 | L57: 0.0335 | M57: 561.97 | N57: 208040.57 | P57: 0.26
B58: 2014 Q3 | C58: 0.0147 | D58: 0.0323 | F58: 2008-11-01 | G58: 2008 | H58: Q4 | I58: 2008 Q4 | J58: 207478.6 | K58: 6241.48 | L58: 0.0335 | M58: 579.21 | N58: 214299.29 | P58: 0.26
B59: 2014 Q4 | C59: 0.0147 | D59: 0.0323 | F59: 2008-12-01 | G59: 2008 | H59: Q4 | I59: 2008 Q4 | J59: 213720.08 | K59: 6635.05 | L59: 0.0335 | M59: 596.64 | N59: 220951.77 | O59: =SUM(K48:K59)+SUM(M48:M59) -> 82090.53 | P59: 0.26
F60: 2009-01-01 | G60: 2009 | H60: Q1 | I60: 2009 Q1 | J60: 220355.13 | K60: 6509.95 | L60: 0.0245 | M60: 449.89 | N60: 227314.97 | P60: 0.26
F61: 2009-02-01 | G61: 2009 | H61: Q1 | I61: 2009 Q1 | J61: 226865.08 | K61: 6595.2 | L61: 0.0245 | M61: 463.18 | N61: 233923.46 | P61: 0.26
F62: 2009-03-01 | G62: 2009 | H62: Q1 | I62: 2009 Q1 | J62: 233460.28 | K62: 6273.91 | L62: 0.0245 | M62: 476.65 | N62: 240210.84 | P62: 0.26
F63: 2009-04-01 | G63: 2009 | H63: Q2 | I63: 2009 Q2 | J63: 239734.19 | K63: 6149.34 | L63: 0.01 | M63: 199.78 | N63: 246083.31 | P63: 0.26
F64: 2009-05-01 | G64: 2009 | H64: Q2 | I64: 2009 Q2 | J64: 245883.53 | K64: 7396.29 | L64: 0.01 | M64: 204.9 | N64: 253484.72 | P64: 1.47
F65: 2009-06-01 | G65: 2009 | H65: Q2 | I65: 2009 Q2 | J65: 253279.82 | K65: 28113.09 | L65: 0.01 | M65: 211.07 | N65: 281603.98 | P65: 1.47
F66: 2009-07-01 | G66: 2009 | H66: Q3 | I66: 2009 Q3 | J66: 281392.91 | K66: 42793.25 | L66: 0.0055 | M66: 128.97 | N66: 324315.13 | P66: 1.47
F67: 2009-08-01 | G67: 2009 | H67: Q3 | I67: 2009 Q3 | J67: 324186.16 | K67: 27452.38 | L67: 0.0055 | M67: 148.59 | N67: 351787.13 | P67: 1.47
F68: 2009-09-01 | G68: 2009 | H68: Q3 | I68: 2009 Q3 | J68: 351638.54 | K68: 39691.7 | L68: 0.0055 | M68: 161.17 | N68: 391491.41 | P68: 1.47
F69: 2009-10-01 | G69: 2009 | H69: Q4 | I69: 2009 Q4 | J69: 391330.24 | K69: 35451.07 | L69: 0.0055 | M69: 179.36 | N69: 426960.67 | P69: 1.47
F70: 2009-11-01 | G70: 2009 | H70: Q4 | I70: 2009 Q4 | J70: 426781.31 | K70: 34829.81 | L70: 0.0055 | M70: 195.61 | N70: 461806.73 | P70: 1.47
F71: 2009-12-01 | G71: 2009 | H71: Q4 | I71: 2009 Q4 | J71: 461611.12 | K71: 74670.39 | L71: 0.0055 | M71: 211.57 | N71: 536493.08 | O71: =SUM(K60:K71)+SUM(M60:M71) -> 318957.12 | P71: 1.47
F72: 2010-01-01 | G72: 2010 | H72: Q1 | I72: 2010 Q1 | J72: 536281.51 | K72: -1857.79 | L72: 0.0055 | M72: 245.8 | N72: 534669.52 | P72: 1.47
F73: 2010-02-01 | G73: 2010 | H73: Q1 | I73: 2010 Q1 | J73: 534423.72 | K73: 34764.01 | L73: 0.0055 | M73: 244.94 | N73: 569432.67 | P73: 1.47
F74: 2010-03-01 | G74: 2010 | H74: Q1 | I74: 2010 Q1 | J74: 569187.73 | K74: 33074.43 | L74: 0.0055 | M74: 260.88 | N74: 602523.04 | P74: 1.47
F75: 2010-04-01 | G75: 2010 | H75: Q2 | I75: 2010 Q2 | J75: 602262.16 | K75: 38537.04 | L75: 0.0055 | M75: 276.04 | N75: 641075.24 | P75: 1.47
F76: 2010-05-01 | G76: 2010 | H76: Q2 | I76: 2010 Q2 | J76: 640799.2 | K76: 30682.79 | L76: 0.0055 | M76: 293.7 | N76: 671775.69 | P76: 1.47
F77: 2010-06-01 | G77: 2010 | H77: Q2 | I77: 2010 Q2 | J77: 671481.99 | K77: 35167.31 | L77: 0.0055 | M77: 307.76 | N77: 706957.06 | P77: 1.47
F78: 2010-07-01 | G78: 2010 | H78: Q3 | I78: 2010 Q3 | J78: 706649.3 | K78: 35453.26 | L78: 0.0089 | M78: 524.1 | N78: 742626.66 | P78: 1.47
F79: 2010-08-01 | G79: 2010 | H79: Q3 | I79: 2010 Q3 | J79: 742102.56 | K79: 35725.83 | L79: 0.0089 | M79: 550.39 | N79: 778378.78 | P79: 1.47
F80: 2010-09-01 | G80: 2010 | H80: Q3 | I80: 2010 Q3 | J80: 777828.39 | K80: 35256.16 | L80: 0.0089 | M80: 576.89 | N80: 813661.44 | P80: 1.47
F81: 2010-10-01 | G81: 2010 | H81: Q4 | I81: 2010 Q4 | J81: 813084.55 | K81: 34118.34 | L81: 0.012 | M81: 813.08 | N81: 848015.97 | P81: 1.47
F82: 2010-11-01 | G82: 2010 | H82: Q4 | I82: 2010 Q4 | J82: 847202.89 | K82: 40885.64 | L82: 0.012 | M82: 847.2 | N82: 888935.73 | P82: 1.47
F83: 2010-12-01 | G83: 2010 | H83: Q4 | I83: 2010 Q4 | J83: 888088.53 | K83: 78346.92 | L83: 0.012 | M83: 888.09 | N83: 967323.54 | O83: =SUM(K72:K83)+SUM(M72:M83) -> 435982.81 | P83: 1.47
F84: 2011-01-01 | G84: 2011 | H84: Q1 | I84: 2011 Q1 | J84: 966435.45 | K84: 35291.73 | L84: 0.0147 | M84: 1183.88 | N84: 1002911.06 | P84: 1.47
F85: 2011-02-01 | G85: 2011 | H85: Q1 | I85: 2011 Q1 | J85: 1001727.18 | K85: 34899.16 | L85: 0.0147 | M85: 1227.12 | N85: 1037853.46 | P85: 1.47
F86: 2011-03-01 | G86: 2011 | H86: Q1 | I86: 2011 Q1 | J86: 1036626.34 | K86: 32078.82 | L86: 0.0147 | M86: 1269.87 | N86: 1069975.03 | P86: 1.47
F87: 2011-04-01 | G87: 2011 | H87: Q2 | I87: 2011 Q2 | J87: 1068705.16 | K87: 40335.59 | L87: 0.0147 | M87: 1309.16 | N87: 1110349.91 | P87: 1.47
F88: 2011-05-01 | G88: 2011 | H88: Q2 | I88: 2011 Q2 | J88: 1109040.75 | K88: 31928.99 | L88: =VLOOKUP(I88,$B$22:$D$59,2) -> 0.0147 | M88: 1358.57 | N88: 1142328.31 | P88: 1.47
F89: 2011-06-01 | G89: =YEAR(F89) -> 2011 | H89: =IF(MONTH(F89)=0,"",IF(MONTH(F89)<4,"Q1",IF(MONTH(F89)<7,"Q2",IF(MONTH(F89)<10,"Q3","Q4")))) -> Q2 | I89: =CONCATENATE(G89," ",H89) -> 2011 Q2 | J89: 1140969.74 | K89: 38568.47 | L89: 0.0147 | M89: =ROUND(J89*L89/12,2) -> 1397.69 | N89: =J89+K89+M89 -> 1180935.9 | P89: 1.47
F90: 2011-07-01 | G90: 2011 | H90: Q3 | I90: 2011 Q3 | J90: =J89+K89 -> 1179538.21 | K90: 33171.57 | L90: 0.0147 | M90: 1444.93 | N90: 1214154.71 | P90: 1.47
F91: 2011-08-01 | G91: 2011 | H91: Q3 | I91: 2011 Q3 | J91: 1212709.78 | K91: 32760.01 | L91: 0.0147 | M91: 1485.57 | N91: 1246955.36 | P91: 1.47
F92: 2011-09-01 | G92: 2011 | H92: Q3 | I92: 2011 Q3 | J92: 1245469.79 | K92: 35830.61 | L92: 0.0147 | M92: 1525.7 | N92: 1282826.1 | P92: 1.47
F93: 2011-10-01 | G93: 2011 | H93: Q4 | I93: 2011 Q4 | J93: 1281300.4 | K93: 34567.87 | L93: 0.0147 | M93: 1569.59 | N93: 1317437.86 | P93: 1.47
F94: 2011-11-01 | G94: 2011 | H94: Q4 | I94: 2011 Q4 | J94: 1315868.27 | K94: 35402 | L94: 0.0147 | M94: 1611.94 | N94: 1352882.21 | P94: 1.47
F95: 2011-12-01 | G95: 2011 | H95: Q4 | I95: 2011 Q4 | J95: 1351270.27 | K95: 35069.43 | L95: 0.0147 | M95: 1655.31 | N95: 1387995.01 | O95: =SUM(K84:K95)+SUM(M84:M95) -> 436943.58 | P95: 1.47
F96: 2012-01-01 | G96: 2012 | H96: Q1 | I96: 2012 Q1 | J96: 1386339.7 | K96: 35327.25 | L96: 0.0147 | M96: 1698.27 | N96: 1423365.22 | P96: 1.47
F97: 2012-02-01 | G97: 2012 | H97: Q1 | I97: 2012 Q1 | J97: 1421666.95 | K97: 35296.08 | L97: 0.0147 | M97: 1741.54 | N97: 1458704.57 | P97: 1.47
F98: 2012-03-01 | G98: 2012 | H98: Q1 | I98: 2012 Q1 | J98: 1456963.03 | K98: 34611.72 | L98: 0.0147 | M98: 1784.78 | N98: 1493359.53 | P98: 1.47
F99: 2012-04-01 | G99: 2012 | H99: Q2 | I99: 2012 Q2 | J99: 1491574.75 | K99: 35274.42 | L99: 0.0147 | M99: 1827.18 | N99: 1528676.35 | P99: 1.47
F100: 2012-05-01 | G100: 2012 | H100: Q2 | I100: 2012 Q2 | J100: 1526849.17 | K100: -29.87 | L100: 0.0147 | M100: 1870.39 | N100: 1528689.69 | P100: 0
F101: 2012-06-01 | G101: 2012 | H101: Q2 | I101: 2012 Q2 | J101: 1526819.3 | K101: 71.09 | L101: 0.0147 | M101: 1870.35 | N101: 1528760.74 | P101: 0
F102: 2012-07-01 | G102: 2012 | H102: Q3 | I102: 2012 Q3 | J102: 1526890.39 | K102: 11.86 | L102: 0.0147 | M102: 1870.44 | N102: 1528772.69 | P102: 0
F103: 2012-08-01 | G103: 2012 | H103: Q3 | I103: 2012 Q3 | J103: 1526902.25 | K103: 15.75 | L103: 0.0147 | M103: 1870.46 | N103: 1528788.46 | P103: 0
F104: 2012-09-01 | G104: 2012 | H104: Q3 | I104: 2012 Q3 | J104: 1526918 | K104: -48.46 | L104: 0.0147 | M104: 1870.47 | N104: 1528740.01 | P104: 0
F105: 2012-10-01 | G105: 2012 | H105: Q4 | I105: 2012 Q4 | J105: 1526869.54 | K105: -85.07 | L105: 0.0147 | M105: 1870.42 | N105: 1528654.89 | P105: 0
F106: 2012-11-01 | G106: 2012 | H106: Q4 | I106: 2012 Q4 | J106: 1526784.47 | K106: 48.99 | L106: 0.0147 | M106: 1870.31 | N106: 1528703.77 | P106: 0
F107: 2012-12-01 | G107: 2012 | H107: Q4 | I107: 2012 Q4 | J107: 1526833.46 | K107: -0.34 | L107: 0.0147 | M107: 1870.37 | N107: 1528703.49 | O107: =SUM(K96:K107)+SUM(M96:M107) -> 162508.4 | P107: 0
F108: 2013-01-01 | G108: 2013 | H108: Q1 | I108: 2013 Q1 | J108: 1526833.12 | K108: 1.47 | L108: 0.0147 | M108: =ROUND(J108*L108/12,2) -> 1870.37 | N108: =J108+K108+M108 -> 1528704.96 | P108: 0
F109: 2013-02-01 | G109: 2013 | H109: Q1 | I109: 2013 Q1 | J109: 1526834.59 | K109: -1.27 | L109: 0.0147 | M109: 1870.37 | N109: 1528703.69 | P109: 0
F110: 2013-03-01 | G110: 2013 | H110: Q1 | I110: 2013 Q1 | J110: 1526833.32 | K110: 16.11 | L110: 0.0147 | M110: 1870.37 | N110: 1528719.8 | P110: 0
F111: 2013-04-01 | G111: 2013 | H111: Q2 | I111: 2013 Q2 | J111: 1526849.43 | K111: 7.35 | L111: 0.0147 | M111: 1870.39 | N111: 1528727.17 | P111: 0
F112: 2013-05-01 | G112: 2013 | H112: Q2 | I112: 2013 Q2 | J112: 1526856.78 | K112: 0 | L112: 0.0147 | M112: 1870.4 | N112: 1528727.18 | P112: 0
F113: 2013-06-01 | G113: 2013 | H113: Q2 | I113: 2013 Q2 | J113: 1526856.78 | K113: 0 | L113: 0.0147 | M113: 1870.4 | N113: 1528727.18 | P113: 0
F114: 2013-07-01 | G114: 2013 | H114: Q3 | I114: 2013 Q3 | J114: 1526856.78 | K114: 0 | L114: 0.0147 | M114: 1870.4 | N114: 1528727.18 | P114: 0
F115: 2013-08-01 | G115: 2013 | H115: Q3 | I115: 2013 Q3 | J115: 1526856.78 | K115: 0 | L115: 0.0147 | M115: 1870.4 | N115: 1528727.18 | P115: 0
F116: 2013-09-01 | G116: 2013 | H116: Q3 | I116: 2013 Q3 | J116: 1526856.78 | K116: 0 | L116: 0.0147 | M116: 1870.4 | N116: 1528727.18 | P116: 0
F117: 2013-10-01 | G117: 2013 | H117: Q4 | I117: 2013 Q4 | J117: 1526856.78 | K117: 0 | L117: 0.0147 | M117: 1870.4 | N117: 1528727.18 | P117: 0
F118: 2013-11-01 | G118: 2013 | H118: Q4 | I118: 2013 Q4 | J118: 1526856.78 | K118: 0 | L118: 0.0147 | M118: 1870.4 | N118: 1528727.18 | P118: 0
F119: 2013-12-01 | G119: 2013 | H119: Q4 | I119: 2013 Q4 | J119: 1526856.78 | K119: 0 | L119: 0.0147 | M119: 1870.4 | N119: 1528727.18 | O119: =SUM(K108:K119)+SUM(M108:M119) -> 22468.36 | P119: 0
F120: 2014-01-01 | G120: =YEAR(F120) -> 2014 | H120: =IF(MONTH(F120)=0,"",IF(MONTH(F120)<4,"Q1",IF(MONTH(F120)<7,"Q2",IF(MONTH(F120)<10,"Q3","Q4")))) -> Q1 | I120: =CONCATENATE(G120," ",H120) -> 2014 Q1 | J120: =J119+K119 -> 1526856.78 | K120: 0 | L120: =VLOOKUP(I120,$B$22:$D$59,2) -> 0.0147 | M120: =ROUND(J120*L120/12,2) -> 1870.4 | N120: =J120+K120+M120 -> 1528727.18 | P120: 0
F121: 2014-02-01 | G121: 2014 | H121: Q1 | I121: 2014 Q1 | J121: 1526856.78 | K121: 0 | L121: 0.0147 | M121: 1870.4 | N121: 1528727.18 | P121: 0
F122: 2014-03-01 | G122: 2014 | H122: Q1 | I122: 2014 Q1 | J122: 1526856.78 | K122: 0 | L122: 0.0147 | M122: 1870.4 | N122: 1528727.18 | P122: 0
F123: 2014-04-01 | G123: 2014 | H123: Q2 | I123: 2014 Q2 | J123: 1526856.78 | K123: 0 | L123: 0.0147 | M123: 1870.4 | N123: 1528727.18 | P123: 0
F124: 2014-05-01 | G124: 2014 | H124: Q2 | I124: 2014 Q2 | J124: 1526856.78 | K124: 0 | L124: 0 | M124: 0 | N124: 1526856.78 | P124: 0
F125: 2014-06-01 | G125: 2014 | H125: Q2 | I125: 2014 Q2 | J125: 1526856.78 | K125: 0 | L125: 0 | M125: 0 | N125: 1526856.78 | P125: 0
F126: 2014-07-01 | G126: 2014 | H126: Q3 | I126: 2014 Q3 | J126: 1526856.78 | K126: 0 | L126: 0 | M126: 0 | N126: 1526856.78 | P126: 0
F127: 2014-08-01 | G127: 2014 | H127: Q3 | I127: 2014 Q3 | J127: 1526856.78 | K127: 0 | L127: 0 | M127: 0 | N127: 1526856.78 | P127: 0
F128: 2014-09-01 | G128: 2014 | H128: Q3 | I128: 2014 Q3 | J128: 1526856.78 | K128: 0 | L128: 0 | M128: 0 | N128: 1526856.78 | P128: 0
F129: 2014-10-01 | G129: 2014 | H129: Q4 | I129: 2014 Q4 | J129: 1526856.78 | K129: 0 | L129: 0 | M129: 0 | N129: 1526856.78 | P129: 0
F130: 2014-11-01 | G130: 2014 | H130: Q4 | I130: 2014 Q4 | J130: 1526856.78 | K130: 0 | L130: 0 | M130: 0 | N130: 1526856.78 | P130: 0
F131: 2014-12-01 | G131: 2014 | H131: Q4 | I131: 2014 Q4 | J131: 1526856.78 | K131: 0 | L131: 0 | M131: 0 | N131: 1526856.78 | O131: =SUM(K120:K131)+SUM(M120:M131) -> 7481.6 | P131: 0
F133: Total Funding Adder Revenues Collected | K133: =SUM(K24:K131) -> 1526856.78 | M133: =SUM(M24:M131) -> 90488.97 | N133: =K133+M133 -> 1617345.75 | O133: =SUM(O24:O131) -> 1617345.75

Sheet 8A. Opex_Interest_monthly
B13: This worksheet calculates the interest on OM&A and amortization/depreciation expense, based on monthly data.
J21: Account 1556 - Sub-accounts Operating Expenses, Amortization Expenses, Carrying Charges
B23: Prescribed Interest Rates | C23: Approved Deferral and Variance Accounts | D23: CWIP | F23: Date | G23: Year | H23: Quarter | J23: Opening Balance (Principal) | K23: OM&A Expenses | L23: Amortization / Depreciation Expense | M23: Closing Balance (Principal) | N23: (Annual) Interest Rate | O23: Interest (on opening balance) | P23: Cumulative Interest
B25: ='8. Funding_Adder_Revs'!B24 -> 2006 Q1 | C25: ='8. Funding_Adder_Revs'!C24 -> 0 | D25: ='8. Funding_Adder_Revs'!D24 -> 0 | F25: ='8. Funding_Adder_Revs'!F24 -> 2006-01-01 | G25: ='8. Funding_Adder_Revs'!G24 -> 2006 | H25: ='8. Funding_Adder_Revs'!H24 -> Q1 | J25: 0 | K25: 0 | L25: 18.11322222 | M25: =J25+K25+L25 -> 18.11322222 | N25: ='8. Funding_Adder_Revs'!L24 -> 0 | O25: =J25*N25/12 -> 0 | P25: =O25 -> 0
B26: ='8. Funding_Adder_Revs'!B25 -> 2006 Q2 | C26: ='8. Funding_Adder_Revs'!C25 -> 0.0414 | D26: ='8. Funding_Adder_Revs'!D25 -> 0.0468 | F26: ='8. Funding_Adder_Revs'!F25 -> 2006-02-01 | G26: ='8. Funding_Adder_Revs'!G25 -> 2006 | H26: ='8. Funding_Adder_Revs'!H25 -> Q1 | J26: =M25 -> 18.11322222 | K26: 0 | L26: 18.11322222 | M26: =J26+K26+L26 -> 36.22644444 | N26: ='8. Funding_Adder_Revs'!L25 -> 0 | O26: =J26*N26/12 -> 0 | P26: =O26+P25 -> 0
B27: ='8. Funding_Adder_Revs'!B26 -> 2006 Q3 | C27: ='8. Funding_Adder_Revs'!C26 -> 0.0459 | D27: ='8. Funding_Adder_Revs'!D26 -> 0.0505 | F27: ='8. Funding_Adder_Revs'!F26 -> 2006-03-01 | G27: ='8. Funding_Adder_Revs'!G26 -> 2006 | H27: ='8. Funding_Adder_Revs'!H26 -> Q1 | J27: =M26 -> 36.22644444 | K27: 0 | L27: 18.11322222 | M27: 54.33966667 | N27: ='8. Funding_Adder_Revs'!L26 -> 0 | O27: 0 | P27: =O27+P26 -> 0
B28: ='8. Funding_Adder_Revs'!B27 -> 2006 Q4 | C28: ='8. Funding_Adder_Revs'!C27 -> 0.0459 | D28: ='8. Funding_Adder_Revs'!D27 -> 0.0472 | F28: ='8. Funding_Adder_Revs'!F27 -> 2006-04-01 | G28: ='8. Funding_Adder_Revs'!G27 -> 2006 | H28: ='8. Funding_Adder_Revs'!H27 -> Q2 | J28: 54.33966667 | K28: 0 | L28: 18.11322222 | M28: 72.45288889 | N28: ='8. Funding_Adder_Revs'!L27 -> 0.0414 | O28: 0.18747185 | P28: 0.18747185
B29: ='8. Funding_Adder_Revs'!B28 -> 2007 Q1 | C29: ='8. Funding_Adder_Revs'!C28 -> 0.0459 | D29: ='8. Funding_Adder_Revs'!D28 -> 0.0472 | F29: ='8. Funding_Adder_Revs'!F28 -> 2006-05-01 | G29: ='8. Funding_Adder_Revs'!G28 -> 2006 | H29: ='8. Funding_Adder_Revs'!H28 -> Q2 | J29: 72.45288889 | K29: 0 | L29: 18.11322222 | M29: 90.56611111 | N29: ='8. Funding_Adder_Revs'!L28 -> 0.0414 | O29: 0.2499624667 | P29: 0.4374343167
B30: ='8. Funding_Adder_Revs'!B29 -> 2007 Q2 | C30: ='8. Funding_Adder_Revs'!C29 -> 0.0459 | D30: ='8. Funding_Adder_Revs'!D29 -> 0.0472 | F30: ='8. Funding_Adder_Revs'!F29 -> 2006-06-01 | G30: ='8. Funding_Adder_Revs'!G29 -> 2006 | H30: ='8. Funding_Adder_Revs'!H29 -> Q2 | J30: 90.56611111 | K30: 0 | L30: 18.11322222 | M30: 108.6793333 | N30: ='8. Funding_Adder_Revs'!L29 -> 0.0414 | O30: 0.3124530833 | P30: 0.7498874
B31: ='8. Funding_Adder_Revs'!B30 -> 2007 Q3 | C31: ='8. Funding_Adder_Revs'!C30 -> 0.0459 | D31: ='8. Funding_Adder_Revs'!D30 -> 0.0518 | F31: ='8. Funding_Adder_Revs'!F30 -> 2006-07-01 | G31: ='8. Funding_Adder_Revs'!G30 -> 2006 | H31: ='8. Funding_Adder_Revs'!H30 -> Q3 | J31: 108.6793333 | K31: 0 | L31: 18.11322222 | M31: 126.7925556 | N31: ='8. Funding_Adder_Revs'!L30 -> 0.0459 | O31: 0.41569845 | P31: 1.16558585
B32: ='8. Funding_Adder_Revs'!B31 -> 2007 Q4 | C32: ='8. Funding_Adder_Revs'!C31 -> 0.0514 | D32: ='8. Funding_Adder_Revs'!D31 -> 0.0518 | F32: ='8. Funding_Adder_Revs'!F31 -> 2006-08-01 | G32: ='8. Funding_Adder_Revs'!G31 -> 2006 | H32: ='8. Funding_Adder_Revs'!H31 -> Q3 | J32: 126.7925556 | K32: 0 | L32: 18.11322222 | M32: 144.9057778 | N32: ='8. Funding_Adder_Revs'!L31 -> 0.0459 | O32: 0.484981525 | P32: 1.650567375
B33: ='8. Funding_Adder_Revs'!B32 -> 2008 Q1 | C33: ='8. Funding_Adder_Revs'!C32 -> 0.0514 | D33: ='8. Funding_Adder_Revs'!D32 -> 0.0518 | F33: ='8. Funding_Adder_Revs'!F32 -> 2006-09-01 | G33: ='8. Funding_Adder_Revs'!G32 -> 2006 | H33: ='8. Funding_Adder_Revs'!H32 -> Q3 | J33: 144.9057778 | K33: 0 | L33: 18.11322222 | M33: 163.019 | N33: ='8. Funding_Adder_Revs'!L32 -> 0.0459 | O33: 0.5542646 | P33: 2.204831975
B34: ='8. Funding_Adder_Revs'!B33 -> 2008 Q2 | C34: ='8. Funding_Adder_Revs'!C33 -> 0.0408 | D34: ='8. Funding_Adder_Revs'!D33 -> 0.0518 | F34: ='8. Funding_Adder_Revs'!F33 -> 2006-10-01 | G34: ='8. Funding_Adder_Revs'!G33 -> 2006 | H34: ='8. Funding_Adder_Revs'!H33 -> Q4 | J34: 163.019 | K34: 0 | L34: 18.11322222 | M34: 181.1322222 | N34: ='8. Funding_Adder_Revs'!L33 -> 0.0459 | O34: 0.623547675 | P34: 2.82837965
B35: ='8. Funding_Adder_Revs'!B34 -> 2008 Q3 | C35: ='8. Funding_Adder_Revs'!C34 -> 0.0335 | D35: ='8. Funding_Adder_Revs'!D34 -> 0.0543 | F35: ='8. Funding_Adder_Revs'!F34 -> 2006-11-01 | G35: ='8. Funding_Adder_Revs'!G34 -> 2006 | H35: ='8. Funding_Adder_Revs'!H34 -> Q4 | J35: 181.1322222 | K35: 0 | L35: 18.11322222 | M35: 199.2454444 | N35: ='8. Funding_Adder_Revs'!L34 -> 0.0459 | O35: 0.69283075 | P35: 3.5212104
B36: ='8. Funding_Adder_Revs'!B35 -> 2008 Q4 | C36: ='8. Funding_Adder_Revs'!C35 -> 0.0335 | D36: ='8. Funding_Adder_Revs'!D35 -> 0.0543 | F36: ='8. Funding_Adder_Revs'!F35 -> 2006-12-01 | G36: ='8. Funding_Adder_Revs'!G35 -> 2006 | H36: ='8. Funding_Adder_Revs'!H35 -> Q4 | J36: 199.2454444 | K36: 0 | L36: 18.11322222 | M36: 217.3586667 | N36: ='8. Funding_Adder_Revs'!L35 -> 0.0459 | O36: 0.762113825 | P36: 4.283324225
B37: ='8. Funding_Adder_Revs'!B36 -> 2009 Q1 | C37: ='8. Funding_Adder_Revs'!C36 -> 0.0245 | D37: ='8. Funding_Adder_Revs'!D36 -> 0.0661 | F37: ='8. Funding_Adder_Revs'!F36 -> 2007-01-01 | G37: ='8. Funding_Adder_Revs'!G36 -> 2007 | H37: ='8. Funding_Adder_Revs'!H36 -> Q1 | J37: 217.3586667 | K37: 0 | L37: 119.2601667 | M37: 336.6188333 | N37: ='8. Funding_Adder_Revs'!L36 -> 0.0459 | O37: 0.8313969 | P37: 5.114721125
B38: ='8. Funding_Adder_Revs'!B37 -> 2009 Q2 | C38: ='8. Funding_Adder_Revs'!C37 -> 0.01 | D38: ='8. Funding_Adder_Revs'!D37 -> 0.0661 | F38: ='8. Funding_Adder_Revs'!F37 -> 2007-02-01 | G38: ='8. Funding_Adder_Revs'!G37 -> 2007 | H38: ='8. Funding_Adder_Revs'!H37 -> Q1 | J38: 336.6188333 | K38: 0 | L38: 119.2601667 | M38: 455.879 | N38: ='8. Funding_Adder_Revs'!L37 -> 0.0459 | O38: 1.287567038 | P38: 6.402288163
B39: ='8. Funding_Adder_Revs'!B38 -> 2009 Q3 | C39: ='8. Funding_Adder_Revs'!C38 -> 0.0055 | D39: ='8. Funding_Adder_Revs'!D38 -> 0.0567 | F39: ='8. Funding_Adder_Revs'!F38 -> 2007-03-01 | G39: ='8. Funding_Adder_Revs'!G38 -> 2007 | H39: ='8. Funding_Adder_Revs'!H38 -> Q1 | J39: 455.879 | K39: 0 | L39: 119.2601667 | M39: 575.1391667 | N39: ='8. Funding_Adder_Revs'!L38 -> 0.0459 | O39: 1.743737175 | P39: 8.146025338
B40: ='8. Funding_Adder_Revs'!B39 -> 2009 Q4 | C40: ='8. Funding_Adder_Revs'!C39 -> 0.0055 | D40: ='8. Funding_Adder_Revs'!D39 -> 0.0466 | F40: ='8. Funding_Adder_Revs'!F39 -> 2007-04-01 | G40: ='8. Funding_Adder_Revs'!G39 -> 2007 | H40: ='8. Funding_Adder_Revs'!H39 -> Q2 | J40: 575.1391667 | K40: 0 | L40: 119.2601667 | M40: 694.3993333 | N40: ='8. Funding_Adder_Revs'!L39 -> 0.0459 | O40: 2.199907313 | P40: 10.34593265
B41: ='8. Funding_Adder_Revs'!B40 -> 2010 Q1 | C41: ='8. Funding_Adder_Revs'!C40 -> 0.0055 | D41: ='8. Funding_Adder_Revs'!D40 -> 0.0434 | F41: ='8. Funding_Adder_Revs'!F40 -> 2007-05-01 | G41: ='8. Funding_Adder_Revs'!G40 -> 2007 | H41: ='8. Funding_Adder_Revs'!H40 -> Q2 | J41: 694.3993333 | K41: 0 | L41: 119.2601667 | M41: 813.6595 | N41: ='8. Funding_Adder_Revs'!L40 -> 0.0459 | O41: 2.65607745 | P41: 13.0020101
B42: ='8. Funding_Adder_Revs'!B41 -> 2010 Q2 | C42: ='8. Funding_Adder_Revs'!C41 -> 0.0055 | D42: ='8. Funding_Adder_Revs'!D41 -> 0.0434 | F42: ='8. Funding_Adder_Revs'!F41 -> 2007-06-01 | G42: ='8. Funding_Adder_Revs'!G41 -> 2007 | H42: ='8. Funding_Adder_Revs'!H41 -> Q2 | J42: 813.6595 | K42: 0 | L42: 119.2601667 | M42: 932.9196667 | N42: ='8. Funding_Adder_Revs'!L41 -> 0.0459 | O42: 3.112247588 | P42: 16.11425769
B43: ='8. Funding_Adder_Revs'!B42 -> 2010 Q3 | C43: ='8. Funding_Adder_Revs'!C42 -> 0.0089 | D43: ='8. Funding_Adder_Revs'!D42 -> 0.0466 | F43: ='8. Funding_Adder_Revs'!F42 -> 2007-07-01 | G43: ='8. Funding_Adder_Revs'!G42 -> 2007 | H43: ='8. Funding_Adder_Revs'!H42 -> Q3 | J43: 932.9196667 | K43: 4022.43 | L43: 119.2601667 | M43: 5074.609833 | N43: ='8. Funding_Adder_Revs'!L42 -> 0.0459 | O43: 3.568417725 | P43: 19.68267541
B44: ='8. Funding_Adder_Revs'!B43 -> 2010 Q4 | C44: ='8. Funding_Adder_Revs'!C43 -> 0.012 | D44: ='8. Funding_Adder_Revs'!D43 -> 0.0401 | F44: ='8. Funding_Adder_Revs'!F43 -> 2007-08-01 | G44: ='8. Funding_Adder_Revs'!G43 -> 2007 | H44: ='8. Funding_Adder_Revs'!H43 -> Q3 | J44: 5074.609833 | K44: 362.42 | L44: 119.2601667 | M44: 5556.29 | N44: ='8. Funding_Adder_Revs'!L43 -> 0.0459 | O44: 19.41038261 | P44: 39.09305803
B45: ='8. Funding_Adder_Revs'!B44 -> 2011 Q1 | C45: ='8. Funding_Adder_Revs'!C44 -> 0.0147 | D45: ='8. Funding_Adder_Revs'!D44 -> 0.0429 | F45: ='8. Funding_Adder_Revs'!F44 -> 2007-09-01 | G45: ='8. Funding_Adder_Revs'!G44 -> 2007 | H45: ='8. Funding_Adder_Revs'!H44 -> Q3 | J45: 5556.29 | K45: 1528.86 | L45: 119.2601667 | M45: 7204.410167 | N45: ='8. Funding_Adder_Revs'!L44 -> 0.0459 | O45: 21.25280925 | P45: 60.34586728
B46: ='8. Funding_Adder_Revs'!B45 -> 2011 Q2 | C46: ='8. Funding_Adder_Revs'!C45 -> 0.0147 | D46: ='8. Funding_Adder_Revs'!D45 -> 0.0429 | F46: ='8. Funding_Adder_Revs'!F45 -> 2007-10-01 | G46: ='8. Funding_Adder_Revs'!G45 -> 2007 | H46: ='8. Funding_Adder_Revs'!H45 -> Q4 | J46: 7204.410167 | K46: 528.97 | L46: 119.2601667 | M46: 7852.640333 | N46: ='8. Funding_Adder_Revs'!L45 -> 0.0514 | O46: 30.85889021 | P46: 91.20475749
B47: ='8. Funding_Adder_Revs'!B46 -> 2011 Q3 | C47: ='8. Funding_Adder_Revs'!C46 -> 0.0147 | D47: ='8. Funding_Adder_Revs'!D46 -> 0.0429 | F47: ='8. Funding_Adder_Revs'!F46 -> 2007-11-01 | G47: ='8. Funding_Adder_Revs'!G46 -> 2007 | H47: ='8. Funding_Adder_Revs'!H46 -> Q4 | J47: 7852.640333 | K47: 915.68 | L47: 119.2601667 | M47: 8887.5805 | N47: ='8. Funding_Adder_Revs'!L46 -> 0.0514 | O47: 33.63547609 | P47: 124.8402336
B48: ='8. Funding_Adder_Revs'!B47 -> 2011 Q4 | C48: ='8. Funding_Adder_Revs'!C47 -> 0.0147 | D48: ='8. Funding_Adder_Revs'!D47 -> 0.0392 | F48: ='8. Funding_Adder_Revs'!F47 -> 2007-12-01 | G48: ='8. Funding_Adder_Revs'!G47 -> 2007 | H48: ='8. Funding_Adder_Revs'!H47 -> Q4 | J48: 8887.5805 | K48: 375.97 | L48: 119.2601667 | M48: 9382.810667 | N48: ='8. Funding_Adder_Revs'!L47 -> 0.0514 | O48: 38.06846981 | P48: 162.9087034
B49: ='8. Funding_Adder_Revs'!B48 -> 2012 Q1 | C49: ='8. Funding_Adder_Revs'!C48 -> 0.0147 | D49: ='8. Funding_Adder_Revs'!D48 -> 0.0392 | F49: ='8. Funding_Adder_Revs'!F48 -> 2008-01-01 | G49: ='8. Funding_Adder_Revs'!G48 -> 2008 | H49: ='8. Funding_Adder_Revs'!H48 -> Q1 | J49: 9382.810667 | K49: 0 | L49: 284.5663333 | M49: 9667.377 | N49: ='8. Funding_Adder_Revs'!L48 -> 0.0514 | O49: 40.18970569 | P49: 203.0984091
B50: ='8. Funding_Adder_Revs'!B49 -> 2012 Q2 | C50: ='8. Funding_Adder_Revs'!C49 -> 0.0147 | D50: ='8. Funding_Adder_Revs'!D49 -> 0.0351 | F50: ='8. Funding_Adder_Revs'!F49 -> 2008-02-01 | G50: ='8. Funding_Adder_Revs'!G49 -> 2008 | H50: ='8. Funding_Adder_Revs'!H49 -> Q1 | J50: 9667.377 | K50: 111.1 | L50: 284.5663333 | M50: 10063.04333 | N50: ='8. Funding_Adder_Revs'!L49 -> 0.0514 | O50: 41.40859815 | P50: 244.5070072
B51: ='8. Funding_Adder_Revs'!B50 -> 2012 Q3 | C51: ='8. Funding_Adder_Revs'!C50 -> 0.0147 | D51: ='8. Funding_Adder_Revs'!D50 -> 0.0351 | F51: ='8. Funding_Adder_Revs'!F50 -> 2008-03-01 | G51: ='8. Funding_Adder_Revs'!G50 -> 2008 | H51: ='8. Funding_Adder_Revs'!H50 -> Q1 | J51: 10063.04333 | K51: 160.95 | L51: 284.5663333 | M51: 10508.55967 | N51: ='8. Funding_Adder_Revs'!L50 -> 0.0514 | O51: 43.10336894 | P51: 287.6103762
B52: ='8. Funding_Adder_Revs'!B51 -> 2012 Q4 | C52: ='8. Funding_Adder_Revs'!C51 -> 0.0147 | D52: ='8. Funding_Adder_Revs'!D51 -> 0.0323 | F52: ='8. Funding_Adder_Revs'!F51 -> 2008-04-01 | G52: ='8. Funding_Adder_Revs'!G51 -> 2008 | H52: ='8. Funding_Adder_Revs'!H51 -> Q2 | J52: 10508.55967 | K52: 0 | L52: 284.5663333 | M52: 10793.126 | N52: ='8. Funding_Adder_Revs'!L51 -> 0.0408 | O52: 35.72910287 | P52: 323.339479
B53: ='8. Funding_Adder_Revs'!B52 -> 2013 Q1 | C53: ='8. Funding_Adder_Revs'!C52 -> 0.0147 | D53: ='8. Funding_Adder_Revs'!D52 -> 0.0323 | F53: ='8. Funding_Adder_Revs'!F52 -> 2008-05-01 | G53: ='8. Funding_Adder_Revs'!G52 -> 2008 | H53: ='8. Funding_Adder_Revs'!H52 -> Q2 | J53: 10793.126 | K53: 0 | L53: 284.5663333 | M53: 11077.69233 | N53: ='8. Funding_Adder_Revs'!L52 -> 0.0408 | O53: 36.6966284 | P53: 360.0361074
B54: ='8. Funding_Adder_Revs'!B53 -> 2013 Q2 | C54: ='8. Funding_Adder_Revs'!C53 -> 0.0147 | D54: ='8. Funding_Adder_Revs'!D53 -> 0.0323 | F54: ='8. Funding_Adder_Revs'!F53 -> 2008-06-01 | G54: ='8. Funding_Adder_Revs'!G53 -> 2008 | H54: ='8. Funding_Adder_Revs'!H53 -> Q2 | J54: 11077.69233 | K54: 0 | L54: 284.5663333 | M54: 11362.25867 | N54: ='8. Funding_Adder_Revs'!L53 -> 0.0408 | O54: 37.66415393 | P54: 397.7002614
B55: ='8. Funding_Adder_Revs'!B54 -> 2013 Q3 | C55: ='8. Funding_Adder_Revs'!C54 -> 0.0147 | D55: ='8. Funding_Adder_Revs'!D54 -> 0.0323 | F55: ='8. Funding_Adder_Revs'!F54 -> 2008-07-01 | G55: ='8. Funding_Adder_Revs'!G54 -> 2008 | H55: ='8. Funding_Adder_Revs'!H54 -> Q3 | J55: 11362.25867 | K55: 1390.32 | L55: 284.5663333 | M55: 13037.145 | N55: ='8. Funding_Adder_Revs'!L54 -> 0.0335 | O55: 31.71963878 | P55: 429.4199002
B56: ='8. Funding_Adder_Revs'!B55 -> 2013 Q4 | C56: ='8. Funding_Adder_Revs'!C55 -> 0.0147 | D56: ='8. Funding_Adder_Revs'!D55 -> 0.0323 | F56: ='8. Funding_Adder_Revs'!F55 -> 2008-08-01 | G56: ='8. Funding_Adder_Revs'!G55 -> 2008 | H56: ='8. Funding_Adder_Revs'!H55 -> Q3 | J56: 13037.145 | K56: 0 | L56: 284.5663333 | M56: 13321.71133 | N56: ='8. Funding_Adder_Revs'!L55 -> 0.0335 | O56: 36.39536313 | P56: 465.8152633
B57: ='8. Funding_Adder_Revs'!B56 -> 2014 Q1 | C57: ='8. Funding_Adder_Revs'!C56 -> 0.0147 | D57: ='8. Funding_Adder_Revs'!D56 -> 0.0323 | F57: ='8. Funding_Adder_Revs'!F56 -> 2008-09-01 | G57: ='8. Funding_Adder_Revs'!G56 -> 2008 | H57: ='8. Funding_Adder_Revs'!H56 -> Q3 | J57: 13321.71133 | K57: 0 | L57: 284.5663333 | M57: 13606.27767 | N57: ='8. Funding_Adder_Revs'!L56 -> 0.0335 | O57: 37.18977747 | P57: 503.0050408
B58: ='8. Funding_Adder_Revs'!B57 -> 2014 Q2 | C58: ='8. Funding_Adder_Revs'!C57 -> 0.0147 | D58: ='8. Funding_Adder_Revs'!D57 -> 0.0323 | F58: ='8. Funding_Adder_Revs'!F57 -> 2008-10-01 | G58: ='8. Funding_Adder_Revs'!G57 -> 2008 | H58: ='8. Funding_Adder_Revs'!H57 -> Q4 | J58: 13606.27767 | K58: 0 | L58: 284.5663333 | M58: 13890.844 | N58: ='8. Funding_Adder_Revs'!L57 -> 0.0335 | O58: 37.98419182 | P58: 540.9892326
B59: ='8. Funding_Adder_Revs'!B58 -> 2014 Q3 | C59: ='8. Funding_Adder_Revs'!C58 -> 0.0147 | D59: ='8. Funding_Adder_Revs'!D58 -> 0.0323 | F59: ='8. Funding_Adder_Revs'!F58 -> 2008-11-01 | G59: ='8. Funding_Adder_Revs'!G58 -> 2008 | H59: ='8. Funding_Adder_Revs'!H58 -> Q4 | J59: 13890.844 | K59: 0 | L59: 284.5663333 | M59: 14175.41033 | N59: ='8. Funding_Adder_Revs'!L58 -> 0.0335 | O59: 38.77860617 | P59: 579.7678387
B60: ='8. Funding_Adder_Revs'!B59 -> 2014 Q4 | C60: ='8. Funding_Adder_Revs'!C59 -> 0.0147 | D60: ='8. Funding_Adder_Revs'!D59 -> 0.0323 | F60: ='8. Funding_Adder_Revs'!F59 -> 2008-12-01 | G60: ='8. Funding_Adder_Revs'!G59 -> 2008 | H60: ='8. Funding_Adder_Revs'!H59 -> Q4 | J60: 14175.41033 | K60: 0 | L60: 284.5663333 | M60: 14459.97667 | N60: ='8. Funding_Adder_Revs'!L59 -> 0.0335 | O60: 39.57302051 | P60: 619.3408593
F61: ='8. Funding_Adder_Revs'!F60 -> 2009-01-01 | G61: ='8. Funding_Adder_Revs'!G60 -> 2009 | H61: ='8. Funding_Adder_Revs'!H60 -> Q1 | J61: 14459.97667 | K61: 421.57 | L61: 366.84 | M61: 15248.38667 | N61: ='8. Funding_Adder_Revs'!L60 -> 0.0245 | O61: 29.52245236 | P61: 648.8633116
F62: ='8. Funding_Adder_Revs'!F61 -> 2009-02-01 | G62: ='8. Funding_Adder_Revs'!G61 -> 2009 | H62: ='8. Funding_Adder_Revs'!H61 -> Q1 | J62: 15248.38667 | K62: 5775.27 | L62: 366.84 | M62: 21390.49667 | N62: ='8. Funding_Adder_Revs'!L61 -> 0.0245 | O62: 31.13212278 | P62: 679.9954344
F63: ='8. Funding_Adder_Revs'!F62 -> 2009-03-01 | G63: ='8. Funding_Adder_Revs'!G62 -> 2009 | H63: ='8. Funding_Adder_Revs'!H62 -> Q1 | J63: 21390.49667 | K63: 1772.74 | L63: 366.84 | M63: 23530.07667 | N63: ='8. Funding_Adder_Revs'!L62 -> 0.0245 | O63: 43.67226403 | P63: 723.6676984
F64: ='8. Funding_Adder_Revs'!F63 -> 2009-04-01 | G64: ='8. Funding_Adder_Revs'!G63 -> 2009 | H64: ='8. Funding_Adder_Revs'!H63 -> Q2 | J64: 23530.07667 | K64: 20458.42 | L64: 366.84 | M64: 44355.33667 | N64: ='8. Funding_Adder_Revs'!L63 -> 0.01 | O64: 19.60839722 | P64: 743.2760956
F65: ='8. Funding_Adder_Revs'!F64 -> 2009-05-01 | G65: ='8. Funding_Adder_Revs'!G64 -> 2009 | H65: ='8. Funding_Adder_Revs'!H64 -> Q2 | J65: 44355.33667 | K65: 18689.13 | L65: 458.81 | M65: 63503.27667 | N65: ='8. Funding_Adder_Revs'!L64 -> 0.01 | O65: 36.96278056 | P65: 780.2388762
F66: ='8. Funding_Adder_Revs'!F65 -> 2009-06-01 | G66: ='8. Funding_Adder_Revs'!G65 -> 2009 | H66: ='8. Funding_Adder_Revs'!H65 -> Q2 | J66: 63503.27667 | K66: 25950.44 | L66: 1778.71 | M66: 91232.42667 | N66: ='8. Funding_Adder_Revs'!L65 -> 0.01 | O66: 52.91939722 | P66: 833.1582734
F67: ='8. Funding_Adder_Revs'!F66 -> 2009-07-01 | G67: ='8. Funding_Adder_Revs'!G66 -> 2009 | H67: ='8. Funding_Adder_Revs'!H66 -> Q3 | J67: 91232.42667 | K67: 21079.86 | L67: 1963.34 | M67: 114275.6267 | N67: ='8. Funding_Adder_Revs'!L66 -> 0.0055 | O67: 41.81486222 | P67: 874.9731356
F68: ='8. Funding_Adder_Revs'!F67 -> 2009-08-01 | G68: ='8. Funding_Adder_Revs'!G67 -> 2009 | H68: ='8. Funding_Adder_Revs'!H67 -> Q3 | J68: 114275.6267 | K68: 4849.14 | L68: 3963.96 | M68: 123088.7267 | N68: ='8. Funding_Adder_Revs'!L67 -> 0.0055 | O68: 52.37632889 | P68: 927.3494645
F69: ='8. Funding_Adder_Revs'!F68 -> 2009-09-01 | G69: ='8. Funding_Adder_Revs'!G68 -> 2009 | H69: ='8. Funding_Adder_Revs'!H68 -> Q3 | J69: 123088.7267 | K69: 4598.75 | L69: 6570.57 | M69: 134258.0467 | N69: ='8. Funding_Adder_Revs'!L68 -> 0.0055 | O69: 56.41566639 | P69: 983.7651309
F70: ='8. Funding_Adder_Revs'!F69 -> 2009-10-01 | G70: ='8. Funding_Adder_Revs'!G69 -> 2009 | H70: ='8. Funding_Adder_Revs'!H69 -> Q4 | J70: 134258.0467 | K70: 12130.78 | L70: 12640.45 | M70: 159029.2767 | N70: ='8. Funding_Adder_Revs'!L69 -> 0.0055 | O70: 61.53493806 | P70: 1045.300069
F71: ='8. Funding_Adder_Revs'!F70 -> 2009-11-01 | G71: ='8. Funding_Adder_Revs'!G70 -> 2009 | H71: ='8. Funding_Adder_Revs'!H70 -> Q4 | J71: 159029.2767 | K71: 3273.88 | L71: 22039.55 | M71: 184342.7067 | N71: ='8. Funding_Adder_Revs'!L70 -> 0.0055 | O71: 72.88841847 | P71: 1118.188487
F72: ='8. Funding_Adder_Revs'!F71 -> 2009-12-01 | G72: ='8. Funding_Adder_Revs'!G71 -> 2009 | H72: ='8. Funding_Adder_Revs'!H71 -> Q4 | J72: 184342.7067 | K72: 4324.86 | L72: 30671.92 | M72: 219339.4867 | N72: ='8. Funding_Adder_Revs'!L71 -> 0.0055 | O72: 84.49040722 | P72: 1202.678895
F73: ='8. Funding_Adder_Revs'!F72 -> 2010-01-01 | G73: ='8. Funding_Adder_Revs'!G72 -> 2010 | H73: ='8. Funding_Adder_Revs'!H72 -> Q1 | J73: 219339.4867 | K73: 11497.66 | L73: 13262.28 | M73: 244099.4267 | N73: ='8. Funding_Adder_Revs'!L72 -> 0.0055 | O73: 100.5305981 | P73: 1303.209493
F74: ='8. Funding_Adder_Revs'!F73 -> 2010-02-01 | G74: ='8. Funding_Adder_Revs'!G73 -> 2010 | H74: ='8. Funding_Adder_Revs'!H73 -> Q1 | J74: 244099.4267 | K74: 11.4 | L74: 13293.22 | M74: 257404.0467 | N74: ='8. Funding_Adder_Revs'!L73 -> 0.0055 | O74: 111.8789039 | P74: 1415.088397
F75: ='8. Funding_Adder_Revs'!F74 -> 2010-03-01 | G75: ='8. Funding_Adder_Revs'!G74 -> 2010 | H75: ='8. Funding_Adder_Revs'!H74 -> Q1 | J75: 257404.0467 | K75: 17291.69 | L75: 13299.05 | M75: 287994.7867 | N75: ='8. Funding_Adder_Revs'!L74 -> 0.0055 | O75: 117.9768547 | P75: 1533.065251
F76: ='8. Funding_Adder_Revs'!F75 -> 2010-04-01 | G76: ='8. Funding_Adder_Revs'!G75 -> 2010 | H76: ='8. Funding_Adder_Revs'!H75 -> Q2 | J76: 287994.7867 | K76: 5143.6 | L76: 13338.72 | M76: 306477.1067 | N76: ='8. Funding_Adder_Revs'!L75 -> 0.0055 | O76: 131.9976106 | P76: 1665.062862
F77: ='8. Funding_Adder_Revs'!F76 -> 2010-05-01 | G77: ='8. Funding_Adder_Revs'!G76 -> 2010 | H77: ='8. Funding_Adder_Revs'!H76 -> Q2 | J77: 306477.1067 | K77: 1965.11 | L77: 13498.87 | M77: 321941.0867 | N77: ='8. Funding_Adder_Revs'!L76 -> 0.0055 | O77: 140.4686739 | P77: 1805.531536
F78: ='8. Funding_Adder_Revs'!F77 -> 2010-06-01 | G78: ='8. Funding_Adder_Revs'!G77 -> 2010 | H78: ='8. Funding_Adder_Revs'!H77 -> Q2 | J78: 321941.0867 | K78: 19529.76 | L78: 14359.9 | M78: 355830.7467 | N78: ='8. Funding_Adder_Revs'!L77 -> 0.0055 | O78: 147.5563314 | P78: 1953.087867
F79: ='8. Funding_Adder_Revs'!F78 -> 2010-07-01 | G79: ='8. Funding_Adder_Revs'!G78 -> 2010 | H79: ='8. Funding_Adder_Revs'!H78 -> Q3 | J79: 355830.7467 | K79: -3676.51 | L79: 14622.81 | M79: 366777.0467 | N79: ='8. Funding_Adder_Revs'!L78 -> 0.0089 | O79: 263.9078038 | P79: 2216.995671
F80: ='8. Funding_Adder_Revs'!F79 -> 2010-08-01 | G80: ='8. Funding_Adder_Revs'!G79 -> 2010 | H80: ='8. Funding_Adder_Revs'!H79 -> Q3 | J80: 366777.0467 | K80: 37.44 | L80: 14529.43 | M80: 381343.9167 | N80: ='8. Funding_Adder_Revs'!L79 -> 0.0089 | O80: 272.0263096 | P80: 2489.021981
F81: ='8. Funding_Adder_Revs'!F80 -> 2010-09-01 | G81: ='8. Funding_Adder_Revs'!G80 -> 2010 | H81: ='8. Funding_Adder_Revs'!H80 -> Q3 | J81: 381343.9167 | K81: 17545 | L81: 15080.79 | M81: 413969.7067 | N81: ='8. Funding_Adder_Revs'!L80 -> 0.0089 | O81: 282.8300715 | P81: 2771.852052
F82: ='8. Funding_Adder_Revs'!F81 -> 2010-10-01 | G82: ='8. Funding_Adder_Revs'!G81 -> 2010 | H82: ='8. Funding_Adder_Revs'!H81 -> Q4 | J82: 413969.7067 | K82: -2542.53 | L82: 15283.41 | M82: 426710.5867 | N82: ='8. Funding_Adder_Revs'!L81 -> 0.012 | O82: 413.9697067 | P82: 3185.821759
F83: ='8. Funding_Adder_Revs'!F82 -> 2010-11-01 | G83: ='8. Funding_Adder_Revs'!G82 -> 2010 | H83: ='8. Funding_Adder_Revs'!H82 -> Q4 | J83: 426710.5867 | K83: 441 | L83: 15831.42 | M83: 442983.0067 | N83: ='8. Funding_Adder_Revs'!L82 -> 0.012 | O83: 426.7105867 | P83: 3612.532345
F84: ='8. Funding_Adder_Revs'!F83 -> 2010-12-01 | G84: ='8. Funding_Adder_Revs'!G83 -> 2010 | H84: ='8. Funding_Adder_Revs'!H83 -> Q4 | J84: 442983.0067 | K84: 33618.08 | L84: 16202.37 | M84: 492803.4567 | N84: ='8. Funding_Adder_Revs'!L83 -> 0.012 | O84: 442.9830067 | P84: 4055.515352
F85: ='8. Funding_Adder_Revs'!F84 -> 2011-01-01 | G85: ='8. Funding_Adder_Revs'!G84 -> 2011 | H85: ='8. Funding_Adder_Revs'!H84 -> Q1 | J85: 492803.4567 | K85: 18928.75 | L85: 15550.26 | M85: 527282.4667 | N85: ='8. Funding_Adder_Revs'!L84 -> 0.0147 | O85: 603.6842344 | P85: 4659.199586
F86: ='8. Funding_Adder_Revs'!F85 -> 2011-02-01 | G86: ='8. Funding_Adder_Revs'!G85 -> 2011 | H86: ='8. Funding_Adder_Revs'!H85 -> Q1 | J86: 527282.4667 | K86: 4144.45 | L86: 15573.53 | M86: 547000.4467 | N86: ='8. Funding_Adder_Revs'!L85 -> 0.0147 | O86: 645.9210217 | P86: 5305.120608
F87: ='8. Funding_Adder_Revs'!F86 -> 2011-03-01 | G87: ='8. Funding_Adder_Revs'!G86 -> 2011 | H87: ='8. Funding_Adder_Revs'!H86 -> Q1 | J87: 547000.4467 | K87: 1750 | L87: 15655.55 | M87: 564405.9967 | N87: ='8. Funding_Adder_Revs'!L86 -> 0.0147 | O87: 670.0755472 | P87: 5975.196155
F88: ='8. Funding_Adder_Revs'!F87 -> 2011-04-01 | G88: ='8. Funding_Adder_Revs'!G87 -> 2011 | H88: ='8. Funding_Adder_Revs'!H87 -> Q2 | J88: 564405.9967 | K88: 20197.28 | L88: 15818.62 | M88: 600421.8967 | N88: ='8. Funding_Adder_Revs'!L87 -> 0.0147 | O88: 691.3973459 | P88: 6666.593501
F89: ='8. Funding_Adder_Revs'!F88 -> 2011-05-01 | G89: ='8. Funding_Adder_Revs'!G88 -> 2011 | H89: ='8. Funding_Adder_Revs'!H88 -> Q2 | J89: 600421.8967 | K89: 18690.6 | L89: 15842.33 | M89: 634954.8267 | N89: ='8. Funding_Adder_Revs'!L88 -> 0.0147 | O89: 735.5168234 | P89: 7402.110325
F90: ='8. Funding_Adder_Revs'!F89 -> 2011-06-01 | G90: ='8. Funding_Adder_Revs'!G89 -> 2011 | H90: ='8. Funding_Adder_Revs'!H89 -> Q2 | J90: 634954.8267 | K90: 5114.36 | L90: 15946.52 | M90: =J90+K90+L90 -> 656015.7067 | N90: ='8. Funding_Adder_Revs'!L89 -> 0.0147 | O90: =J90*N90/12 -> 777.8196627 | P90: 8179.929987
F91: ='8. Funding_Adder_Revs'!F90 -> 2011-07-01 | G91: ='8. Funding_Adder_Revs'!G90 -> 2011 | H91: ='8. Funding_Adder_Revs'!H90 -> Q3 | J91: =M90 -> 656015.7067 | K91: 9122.06 | L91: 16094.06582 | M91: 681231.8325 | N91: ='8. Funding_Adder_Revs'!L90 -> 0.0147 | O91: 803.6192407 | P91: =O91+P90 -> 8983.549228
F92: ='8. Funding_Adder_Revs'!F91 -> 2011-08-01 | G92: ='8. Funding_Adder_Revs'!G91 -> 2011 | H92: ='8. Funding_Adder_Revs'!H91 -> Q3 | J92: 681231.8325 | K92: 5712.07 | L92: 16124.82958 | M92: 703068.7321 | N92: ='8. Funding_Adder_Revs'!L91 -> 0.0147 | O92: 834.5089948 | P92: 9818.058223
F93: ='8. Funding_Adder_Revs'!F92 -> 2011-09-01 | G93: ='8. Funding_Adder_Revs'!G92 -> 2011 | H93: ='8. Funding_Adder_Revs'!H92 -> Q3 | J93: 703068.7321 | K93: 24859.48 | L93: 16264.1554 | M93: 744192.3675 | N93: ='8. Funding_Adder_Revs'!L92 -> 0.0147 | O93: 861.2591968 | P93: 10679.31742
F94: ='8. Funding_Adder_Revs'!F93 -> 2011-10-01 | G94: ='8. Funding_Adder_Revs'!G93 -> 2011 | H94: ='8. Funding_Adder_Revs'!H93 -> Q4 | J94: 744192.3675 | K94: 20065.96 | L94: 16419.63 | M94: 780677.9575 | N94: ='8. Funding_Adder_Revs'!L93 -> 0.0147 | O94: 911.6356501 | P94: 11590.95307
F95: ='8. Funding_Adder_Revs'!F94 -> 2011-11-01 | G95: ='8. Funding_Adder_Revs'!G94 -> 2011 | H95: ='8. Funding_Adder_Revs'!H94 -> Q4 | J95: 780677.9575 | K95: 18982.43 | L95: 16717.03 | M95: 816377.4175 | N95: ='8. Funding_Adder_Revs'!L94 -> 0.0147 | O95: 956.3304979 | P95: 12547.28357
F96: ='8. Funding_Adder_Revs'!F95 -> 2011-12-01 | G96: ='8. Funding_Adder_Revs'!G95 -> 2011 | H96: ='8. Funding_Adder_Revs'!H95 -> Q4 | J96: 816377.4175 | K96: 28395.6 | L96: 17034.54 | M96: 861807.5575 | N96: ='8. Funding_Adder_Revs'!L95 -> 0.0147 | O96: 1000.062336 | P96: 13547.3459
F97: ='8. Funding_Adder_Revs'!F96 -> 2012-01-01 | G97: ='8. Funding_Adder_Revs'!G96 -> 2012 | H97: ='8. Funding_Adder_Revs'!H96 -> Q1 | J97: 861807.5575 | K97: 0 | L97: 16632.08 | M97: 878439.6375 | N97: ='8. Funding_Adder_Revs'!L96 -> 0.0147 | O97: 1055.714258 | P97: 14603.06016
F98: ='8. Funding_Adder_Revs'!F97 -> 2012-02-01 | G98: ='8. Funding_Adder_Revs'!G97 -> 2012 | H98: ='8. Funding_Adder_Revs'!H97 -> Q1 | J98: 878439.6375 | K98: 0 | L98: 16632.08 | M98: 895071.7175 | N98: ='8. Funding_Adder_Revs'!L97 -> 0.0147 | O98: 1076.088556 | P98: 15679.14872
F99: ='8. Funding_Adder_Revs'!F98 -> 2012-03-01 | G99: ='8. Funding_Adder_Revs'!G98 -> 2012 | H99: ='8. Funding_Adder_Revs'!H98 -> Q1 | J99: 895071.7175 | K99: 0 | L99: 16632.08 | M99: 911703.7975 | N99: ='8. Funding_Adder_Revs'!L98 -> 0.0147 | O99: 1096.462854 | P99: 16775.61157
F100: ='8. Funding_Adder_Revs'!F99 -> 2012-04-01 | G100: ='8. Funding_Adder_Revs'!G99 -> 2012 | H100: ='8. Funding_Adder_Revs'!H99 -> Q2 | J100: 911703.7975 | K100: 0 | L100: 16632.08 | M100: 928335.8775 | N100: ='8. Funding_Adder_Revs'!L99 -> 0.0147 | O100: 1116.837152 | P100: 17892.44872
F101: ='8. Funding_Adder_Revs'!F100 -> 2012-05-01 | G101: ='8. Funding_Adder_Revs'!G100 -> 2012 | H101: ='8. Funding_Adder_Revs'!H100 -> Q2 | J101: 928335.8775 | K101: 0 | L101: 16632.08 | M101: 944967.9575 | N101: ='8. Funding_Adder_Revs'!L100 -> 0.0147 | O101: 1137.21145 | P101: 19029.66017
F102: ='8. Funding_Adder_Revs'!F101 -> 2012-06-01 | G102: ='8. Funding_Adder_Revs'!G101 -> 2012 | H102: ='8. Funding_Adder_Revs'!H101 -> Q2 | J102: 944967.9575 | K102: 0 | L102: 16751.64705 | M102: 961719.6045 | N102: ='8. Funding_Adder_Revs'!L101 -> 0.0147 | O102: 1157.585748 | P102: 20187.24592
F103: ='8. Funding_Adder_Revs'!F102 -> 2012-07-01 | G103: ='8. Funding_Adder_Revs'!G102 -> 2012 | H103: ='8. Funding_Adder_Revs'!H102 -> Q3 | J103: 961719.6045 | K103: 2990.84 | L103: 16761.31 | M103: 981471.7545 | N103: ='8. Funding_Adder_Revs'!L102 -> 0.0147 | O103: 1178.106516 | P103: 21365.35244
F104: ='8. Funding_Adder_Revs'!F103 -> 2012-08-01 | G104: ='8. Funding_Adder_Revs'!G103 -> 2012 | H104: ='8. Funding_Adder_Revs'!H103 -> Q3 | J104: 981471.7545 | K104: 0 | L104: 16752.73793 | M104: 998224.4924 | N104: ='8. Funding_Adder_Revs'!L103 -> 0.0147 | O104: 1202.302899 | P104: 22567.65534
F105: ='8. Funding_Adder_Revs'!F104 -> 2012-09-01 | G105: ='8. Funding_Adder_Revs'!G104 -> 2012 | H105: ='8. Funding_Adder_Revs'!H104 -> Q3 | J105: 998224.4924 | K105: 0 | L105: 16771.92 | M105: 1014996.412 | N105: ='8. Funding_Adder_Revs'!L104 -> 0.0147 | O105: 1222.825003 | P105: 23790.48034
F106: ='8. Funding_Adder_Revs'!F105 -> 2012-10-01 | G106: ='8. Funding_Adder_Revs'!G105 -> 2012 | H106: ='8. Funding_Adder_Revs'!H105 -> Q4 | J106: 1014996.412 | K106: 0 | L106: 17033.08 | M106: 1032029.492 | N106: ='8. Funding_Adder_Revs'!L105 -> 0.0147 | O106: 1243.370605 | P106: 25033.85094
F107: ='8. Funding_Adder_Revs'!F106 -> 2012-11-01 | G107: ='8. Funding_Adder_Revs'!G106 -> 2012 | H107: ='8. Funding_Adder_Revs'!H106 -> Q4 | J107: 1032029.492 | K107: 0 | L107: 16767.45 | M107: 1048796.942 | N107: ='8. Funding_Adder_Revs'!L106 -> 0.0147 | O107: 1264.236128 | P107: 26298.08707
F108: ='8. Funding_Adder_Revs'!F107 -> 2012-12-01 | G108: ='8. Funding_Adder_Revs'!G107 -> 2012 | H108: ='8. Funding_Adder_Revs'!H107 -> Q4 | J108: 1048796.942 | K108: 0 | L108: 18340.1 | M108: 1067137.042 | N108: ='8. Funding_Adder_Revs'!L107 -> 0.0147 | O108: 1284.776254 | P108: 27582.86333
F109: ='8. Funding_Adder_Revs'!F108 -> 2013-01-01 | G109: ='8. Funding_Adder_Revs'!G108 -> 2013 | H109: ='8. Funding_Adder_Revs'!H108 -> Q1 | J109: =M108 -> 1067137.042 | K109: 0 | L109: 17091.03 | M109: =J109+K109+L109 -> 1084228.072 | N109: ='8. Funding_Adder_Revs'!L108 -> 0.0147 | O109: =J109*N109/12 -> 1307.242877 | P109: =O109+P108 -> 28890.1062
F110: ='8. Funding_Adder_Revs'!F109 -> 2013-02-01 | G110: ='8. Funding_Adder_Revs'!G109 -> 2013 | H110: ='8. Funding_Adder_Revs'!H109 -> Q1 | J110: 1084228.072 | K110: 0 | L110: 17091.03 | M110: 1101319.102 | N110: ='8. Funding_Adder_Revs'!L109 -> 0.0147 | O110: 1328.179389 | P110: 30218.28559
F111: ='8. Funding_Adder_Revs'!F110 -> 2013-03-01 | G111: ='8. Funding_Adder_Revs'!G110 -> 2013 | H111: ='8. Funding_Adder_Revs'!H110 -> Q1 | J111: 1101319.102 | K111: 0 | L111: 18735.4 | M111: 1120054.502 | N111: ='8. Funding_Adder_Revs'!L110 -> 0.0147 | O111: 1349.1159 | P111: 31567.40149
F112: ='8. Funding_Adder_Revs'!F111 -> 2013-04-01 | G112: ='8. Funding_Adder_Revs'!G111 -> 2013 | H112: ='8. Funding_Adder_Revs'!H111 -> Q2 | J112: 1120054.502 | K112: 0 | L112: 18745.8 | M112: 1138800.302 | N112: ='8. Funding_Adder_Revs'!L111 -> 0.0147 | O112: 1372.066765 | P112: 32939.46826
F113: ='8. Funding_Adder_Revs'!F112 -> 2013-05-01 | G113: ='8. Funding_Adder_Revs'!G112 -> 2013 | H113: ='8. Funding_Adder_Revs'!H112 -> Q2 | J113: 1138800.302 | K113: 0 | L113: 18753.24 | M113: 1157553.542 | N113: ='8. Funding_Adder_Revs'!L112 -> 0.0147 | O113: 1395.03037 | P113: 34334.49863
F114: ='8. Funding_Adder_Revs'!F113 -> 2013-06-01 | G114: ='8. Funding_Adder_Revs'!G113 -> 2013 | H114: ='8. Funding_Adder_Revs'!H113 -> Q2 | J114: 1157553.542 | K114: 0 | L114: 18753.26 | M114: 1176306.802 | N114: ='8. Funding_Adder_Revs'!L113 -> 0.0147 | O114: 1418.003089 | P114: 35752.50172
F115: ='8. Funding_Adder_Revs'!F114 -> 2013-07-01 | G115: ='8. Funding_Adder_Revs'!G114 -> 2013 | H115: ='8. Funding_Adder_Revs'!H114 -> Q3 | J115: 1176306.802 | K115: 0 | L115: 18769.57361 | M115: 1195076.376 | N115: ='8. Funding_Adder_Revs'!L114 -> 0.0147 | O115: 1440.975833 | P115: 37193.47755
F116: ='8. Funding_Adder_Revs'!F115 -> 2013-08-01 | G116: ='8. Funding_Adder_Revs'!G115 -> 2013 | H116: ='8. Funding_Adder_Revs'!H115 -> Q3 | J116: 1195076.376 | K116: 0 | L116: 18769.57361 | M116: 1213845.95 | N116: ='8. Funding_Adder_Revs'!L115 -> 0.0147 | O116: 1463.968561 | P116: 38657.44611
F117: ='8. Funding_Adder_Revs'!F116 -> 2013-09-01 | G117: ='8. Funding_Adder_Revs'!G116 -> 2013 | H117: ='8. Funding_Adder_Revs'!H116 -> Q3 | J117: 1213845.95 | K117: 0 | L117: 18769.57361 | M117: 1232615.523 | N117: ='8. Funding_Adder_Revs'!L116 -> 0.0147 | O117: 1486.961288 | P117: 40144.4074
F118: ='8. Funding_Adder_Revs'!F117 -> 2013-10-01 | G118: ='8. Funding_Adder_Revs'!G117 -> 2013 | H118: ='8. Funding_Adder_Revs'!H117 -> Q4 | J118: 1232615.523 | K118: 0 | L118: 18769.57361 | M118: 1251385.097 | N118: ='8. Funding_Adder_Revs'!L117 -> 0.0147 | O118: 1509.954016 | P118: 41654.36142
F119: ='8. Funding_Adder_Revs'!F118 -> 2013-11-01 | G119: ='8. Funding_Adder_Revs'!G118 -> 2013 | H119: ='8. Funding_Adder_Revs'!H118 -> Q4 | J119: 1251385.097 | K119: 0 | L119: 18769.57361 | M119: 1270154.67 | N119: ='8. Funding_Adder_Revs'!L118 -> 0.0147 | O119: 1532.946744 | P119: 43187.30816
F120: ='8. Funding_Adder_Revs'!F119 -> 2013-12-01 | G120: ='8. Funding_Adder_Revs'!G119 -> 2013 | H120: ='8. Funding_Adder_Revs'!H119 -> Q4 | J120: 1270154.67 | K120: 0 | L120: 18769.57361 | M120: 1288924.244 | N120: ='8. Funding_Adder_Revs'!L119 -> 0.0147 | O120: 1555.939471 | P120: 44743.24763
F121: ='8. Funding_Adder_Revs'!F120 -> 2014-01-01 | G121: ='8. Funding_Adder_Revs'!G120 -> 2014 | H121: ='8. Funding_Adder_Revs'!H120 -> Q1 | J121: =M120 -> 1288924.244 | K121: 0 | L121: 19841.67278 | M121: =J121+K121+L121 -> 1308765.917 | N121: ='8. Funding_Adder_Revs'!L120 -> 0.0147 | O121: =J121*N121/12 -> 1578.932199 | P121: =O121+P120 -> 46322.17983
F122: ='8. Funding_Adder_Revs'!F121 -> 2014-02-01 | G122: ='8. Funding_Adder_Revs'!G121 -> 2014 | H122: ='8. Funding_Adder_Revs'!H121 -> Q1 | J122: 1308765.917 | K122: 0 | L122: 19841.67278 | M122: 1328607.59 | N122: ='8. Funding_Adder_Revs'!L121 -> 0.0147 | O122: 1603.238248 | P122: 47925.41808
F123: ='8. Funding_Adder_Revs'!F122 -> 2014-03-01 | G123: ='8. Funding_Adder_Revs'!G122 -> 2014 | H123: ='8. Funding_Adder_Revs'!H122 -> Q1 | J123: 1328607.59 | K123: 0 | L123: 19841.67278 | M123: 1348449.262 | N123: ='8. Funding_Adder_Revs'!L122 -> 0.0147 | O123: 1627.544297 | P123: 49552.96238
F124: ='8. Funding_Adder_Revs'!F123 -> 2014-04-01 | G124: ='8. Funding_Adder_Revs'!G123 -> 2014 | H124: ='8. Funding_Adder_Revs'!H123 -> Q2 | J124: 1348449.262 | K124: 0 | L124: 19841.67278 | M124: 1368290.935 | N124: ='8. Funding_Adder_Revs'!L123 -> 0.0147 | O124: 1651.850346 | P124: 51204.81272
F125: ='8. Funding_Adder_Revs'!F124 -> 2014-05-01 | G125: ='8. Funding_Adder_Revs'!G124 -> 2014 | H125: ='8. Funding_Adder_Revs'!H124 -> Q2 | J125: 1368290.935 | K125: 0 | L125: 19841.67278 | M125: 1388132.608 | N125: ='8. Funding_Adder_Revs'!L124 -> 0 | O125: 0 | P125: 51204.81272
F126: ='8. Funding_Adder_Revs'!F125 -> 2014-06-01 | G126: ='8. Funding_Adder_Revs'!G125 -> 2014 | H126: ='8. Funding_Adder_Revs'!H125 -> Q2 | J126: 1388132.608 | K126: 0 | L126: 19841.67278 | M126: 1407974.281 | N126: ='8. Funding_Adder_Revs'!L125 -> 0 | O126: 0 | P126: 51204.81272
F127: ='8. Funding_Adder_Revs'!F126 -> 2014-07-01 | G127: ='8. Funding_Adder_Revs'!G126 -> 2014 | H127: ='8. Funding_Adder_Revs'!H126 -> Q3 | J127: 1407974.281 | K127: 0 | L127: 19841.67278 | M127: 1427815.954 | N127: ='8. Funding_Adder_Revs'!L126 -> 0 | O127: 0 | P127: 51204.81272
F128: ='8. Funding_Adder_Revs'!F127 -> 2014-08-01 | G128: ='8. Funding_Adder_Revs'!G127 -> 2014 | H128: ='8. Funding_Adder_Revs'!H127 -> Q3 | J128: 1427815.954 | K128: 0 | L128: 19841.67278 | M128: 1447657.626 | N128: ='8. Funding_Adder_Revs'!L127 -> 0 | O128: 0 | P128: 51204.81272
F129: ='8. Funding_Adder_Revs'!F128 -> 2014-09-01 | G129: ='8. Funding_Adder_Revs'!G128 -> 2014 | H129: ='8. Funding_Adder_Revs'!H128 -> Q3 | J129: 1447657.626 | K129: 0 | L129: 19841.67278 | M129: 1467499.299 | N129: ='8. Funding_Adder_Revs'!L128 -> 0 | O129: 0 | P129: 51204.81272
F130: ='8. Funding_Adder_Revs'!F129 -> 2014-10-01 | G130: ='8. Funding_Adder_Revs'!G129 -> 2014 | H130: ='8. Funding_Adder_Revs'!H129 -> Q4 | J130: 1467499.299 | K130: 0 | L130: 19841.67278 | M130: 1487340.972 | N130: ='8. Funding_Adder_Revs'!L129 -> 0 | O130: 0 | P130: 51204.81272
F131: ='8. Funding_Adder_Revs'!F130 -> 2014-11-01 | G131: ='8. Funding_Adder_Revs'!G130 -> 2014 | H131: ='8. Funding_Adder_Revs'!H130 -> Q4 | J131: 1487340.972 | K131: 0 | L131: 19841.67278 | M131: 1507182.645 | N131: ='8. Funding_Adder_Revs'!L130 -> 0 | O131: 0 | P131: 51204.81272
F132: ='8. Funding_Adder_Revs'!F131 -> 2014-12-01 | G132: ='8. Funding_Adder_Revs'!G131 -> 2014 | H132: ='8. Funding_Adder_Revs'!H131 -> Q4 | J132: 1507182.645 | K132: 0 | L132: 19841.67278 | M132: 1527024.317 | N132: ='8. Funding_Adder_Revs'!L131 -> 0 | O132: 0 | P132: 51204.81272
K134: =SUM(K25:K132) -> 412537.12 | L134: =SUM(L25:L132) -> 1114487.197 | M134: =K134+L134 -> 1527024.317 | O134: =SUM(O25:O132) -> 51204.81272 | P134: =P132 -> 51204.81272

Sheet 8B. Opex_Interest_annual
B13: This worksheet calculates the interest on OM&A and amortization/depreciation expense, in the absence of monthly data.
B21: Year | D21: OM&A | F21: Amortization Expense | H21: Cumulative OM&A and Amortization Expense | J21: Average Cumulative OM&A and Amortization Expense | L21: Average Annual Prescribed Interest Rate for Deferral and Variance Accounts (from Sheets 8A and 8B) | N21: Simple Interest on OM&A and Amortization Expenses
D22: (from Sheet 5) | F22: (from Sheet 5)
B23: 2006 | D23: ='5. SM_Rev_Reqt'!G50 -> 0 | F23: ='5. SM_Rev_Reqt'!G58 -> 217.362 | H23: =D23+F23 -> 217.362 | J23: =H23/2 -> 108.681 | L23: =AVERAGE('8A. Opex_Interest_monthly'!$C$26:$C$28,'8A. Opex_Interest_monthly'!$C$26) -> 0.04365 | N23: =J23*L23 -> 4.74392565
B24: 2007 | D24: ='5. SM_Rev_Reqt'!I50 -> 7734.33 | F24: ='5. SM_Rev_Reqt'!I58 -> 1431.128667 | H24: =H23+D24+F24 -> 9382.820667 | J24: =(H24+H23)/2 -> 4800.091333 | L24: =AVERAGE('8A. Opex_Interest_monthly'!$C$29:$C$32) -> 0.047275 | N24: 226.9243178
B25: 2008 | D25: ='5. SM_Rev_Reqt'!K50 -> 1662.37 | F25: ='5. SM_Rev_Reqt'!K58 -> 3414.796 | H25: 14459.98667 | J25: 11921.40367 | L25: =AVERAGE('8A. Opex_Interest_monthly'!$C$33:$C$36) -> 0.0398 | N25: 474.4718659
B26: 2009 | D26: ='5. SM_Rev_Reqt'!M50 -> 123324.84 | F26: ='5. SM_Rev_Reqt'!M58 -> 81554.67733 | H26: 219339.504 | J26: 116899.7453 | L26: =AVERAGE('8A. Opex_Interest_monthly'!$C$37:$C$40) -> 0.011375 | N26: 1329.734603
B27: 2010 | D27: ='5. SM_Rev_Reqt'!O50 -> 100861.7 | F27: ='5. SM_Rev_Reqt'!O58 -> 172602.2663 | H27: 492803.4703 | J27: 356071.4872 | L27: =AVERAGE('8A. Opex_Interest_monthly'!$C$41:$C$44) -> 0.007975 | N27: 2839.67011
B28: 2011 | D28: ='5. SM_Rev_Reqt'!Q50 -> 175963.01 | F28: ='5. SM_Rev_Reqt'!Q58 -> 193041.0797 | H28: 861807.56 | J28: 677305.5152 | L28: =AVERAGE('8A. Opex_Interest_monthly'!$C$45:$C$48) -> 0.0147 | N28: 9956.391073
B29: 2012 | D29: ='5. SM_Rev_Reqt'!S50 -> 2990.84 | F29: ='5. SM_Rev_Reqt'!S58 -> 202333.4774 | H29: 1067131.877 | J29: 964469.7187 | L29: =AVERAGE('8A. Opex_Interest_monthly'!N97:N108) -> 0.0147 | N29: 14177.70487
B30: 2013 | D30: ='5. SM_Rev_Reqt'!U50 -> 0 | F30: ='5. SM_Rev_Reqt'!U58 -> 221776.8738 | H30: 1288908.751 | J30: 1178020.314 | L30: =AVERAGE('8A. Opex_Interest_monthly'!N109:N120) -> 0.0147 | N30: 17316.89862
B31: 2014 | D31: ='5. SM_Rev_Reqt'!W50 -> 0 | F31: ='5. SM_Rev_Reqt'!W58 -> 238471.7154 | H31: =H30+D31+F31 -> 1527380.467 | J31: =(H31+H30)/2 -> 1408144.609 | L31: =AVERAGE('8A. Opex_Interest_monthly'!N121:N132) -> 0.0049 | N31: =J31*L31 -> 6899.908584
B33: Cumulative Interest to 2012 | N33: =SUM(N23:N29) -> 29009.64076
B34: Cumulative Interest to 2013 | N34: =SUM(N23:N30) -> 46326.53938
B35: Cumulative Interest to 2014 | N35: =SUM(N23:N31) -> 53226.44797

Sheet 9. SMFA_SMDR_SMIRR
B14: This worksheet calculates the Smart Meter Disposition Rider and the Smart Meter Incremental Revenue Requirement Rate Rider, if applicable. This worksheet also calculates any new Smart Meter Funding Adder that a distributor may wish to request. However, please note that in many 2011 IRM decisions, the Board noted that current funding adders will cease on April 30, 2011 and that the Board's expectation is that distributors will file for a final review of prudence at the earliest opportunity. The Board also noted that the SMFA is a tool designed to provide advance funding and to mitigate the anticipated rate impact of smart meter costs when recovery of those costs is approved by the Board. The Board observed that the SMFA was not intended to be compensatory (return on and of capital) on a cumulative basis over the term the SMFA was in effect. The SMFA was initially designed to fund future investment, and not fully fund prior capital investment. Distributors that seek a new SMFA should provide evidence to support its proposal. This would include documentation of where the distributor is with respect to its smart meter deployment program, and reasons as to why the distributor's circumstances are such that continuation of the SMFA is warranted. Press the "UPDATE WORKSHEET" button after choosing the applicable adders/riders.
B20: Check if applicable
E22: Smart Meter Funding Adder (SMFA)
C24: X | E24: Smart Meter Disposition Rider (SMDR) | G24: The SMDR is calculated based on costs to December 31, 2011
C26: X | E26: Smart Meter Incremental Revenue Requirement Rate Rider (SMIRR) | G26: The SMIRR is calculated based on the incremental revenue requirement associated with the recovery of capital related costs to December 31, 2012 and associated OM&A.
G28: 2006 | I28: 2007 | K28: 2008 | M28: 2009 | O28: 2010 | Q28: 2011 | S28: 2012 | U28: 2013 | W28: 2014 | Y28: Total
C30: Deferred and forecasted Smart Meter Incremental Revenue Requirement (from Sheet 5) | G30: ='5. SM_Rev_Reqt'!G70 -> 512.5090401 | I30: ='5. SM_Rev_Reqt'!I70 -> 11164.22492 | K30: ='5. SM_Rev_Reqt'!K70 -> 9272.491531 | M30: ='5. SM_Rev_Reqt'!M70 -> 296727.4691 | O30: ='5. SM_Rev_Reqt'!O70 -> 458990.3646 | Q30: ='5. SM_Rev_Reqt'!Q70 -> 567021.3748 | S30: ='5. SM_Rev_Reqt'!S70 -> 392537.7507 | U30: ='5. SM_Rev_Reqt'!U70 -> 426037.0591 | W30: ='5. SM_Rev_Reqt'!W70 -> 451411.5366 | Y30: =SUM(G30:U30) -> 2162263.244
C32: Interest on Deferred and forecasted OM&A and Amortization Expense (Sheet 8A/8B) | G32: =IF($C35="X",G35,IF($C37="X",G37,0)) -> 4.283324225 | I32: =IF($C35="X",I35,IF($C37="X",I37,0)) -> 158.6253792 | K32: =IF($C35="X",K35,IF($C37="X",K37,0)) -> 456.4321559 | M32: =IF($C35="X",M35,IF($C37="X",M37,0)) -> 583.3380354 | O32: =IF($C35="X",O35,IF($C37="X",O37,0)) -> 2852.836457 | Q32: =IF($C35="X",Q35,IF($C37="X",Q37,0)) -> 9491.830552 | S32: =IF($C35="X",S35,IF($C37="X",S37,0)) -> 14035.51742 | U32: =IF($C35="X",U35,IF($C37="X",U37,0)) -> 17160.3843 | Y32: =SUM(G32:U32) -> 44743.24763
C33: (Check one of the boxes below)
C35: X | E35: Sheet 8A (Interest calculated on monthly balances) | G35: =IF($C35="X",SUM('8A. Opex_Interest_monthly'!O25:O36),"") -> 4.283324225 | I35: =IF($C35="X",SUM('8A. Opex_Interest_monthly'!O37:O48),"") -> 158.6253792 | K35: =IF($C35="X",SUM('8A. Opex_Interest_monthly'!O49:O60),"") -> 456.4321559 | M35: =IF($C35="X",SUM('8A. Opex_Interest_monthly'!O61:O72),"") -> 583.3380354 | O35: =IF($C35="X",SUM('8A. Opex_Interest_monthly'!O73:O84),"") -> 2852.836457 | Q35: =IF($C35="X",SUM('8A. Opex_Interest_monthly'!O85:O96),"") -> 9491.830552 | S35: =IF($C35="X",SUM('8A. Opex_Interest_monthly'!O97:O108),"") -> 14035.51742 | U35: =IF($C35="X",SUM('8A. Opex_Interest_monthly'!O109:O120),"") -> 17160.3843 | W35: =IF($C35="X",SUM('8A. Opex_Interest_monthly'!O121:O132),"") -> 6461.565091 | Y35: =IF($C$35="X",SUM(G35:U35),"") -> 44743.24763
E37: Sheet 8B (Interest calculated on average annual balances) | G37: =IF($C37="X",'8B. Opex_Interest_annual'!N23,"") ->  | I37: =IF($C37="X",'8B. Opex_Interest_annual'!N24,"") ->  | K37: =IF($C37="X",'8B. Opex_Interest_annual'!N25,"") ->  | M37: =IF($C37="X",'8B. Opex_Interest_annual'!N26,"") ->  | O37: =IF($C37="X",'8B. Opex_Interest_annual'!N27,"") ->  | Q37: =IF($C37="X",'8B. Opex_Interest_annual'!N28,"") ->  | S37: =IF($C37="X",'8B. Opex_Interest_annual'!N29,"") ->  | U37: =IF($C37="X",'8B. Opex_Interest_annual'!N30,"") ->  | W37: =IF($C37="X",'8B. Opex_Interest_annual'!N31,"") ->  | Y37: =IF($C$37="X",SUM(G37:U37),"") -> 
C40: SMFA Revenues (from Sheet 8) | G40: =SUM('8. Funding_Adder_Revs'!K24:K35) -> 63464.05 | I40: =SUM('8. Funding_Adder_Revs'!K36:K47) -> 81810.18 | K40: =SUM('8. Funding_Adder_Revs'!K48:K59) -> 75080.9 | M40: =SUM('8. Funding_Adder_Revs'!K60:K71) -> 315926.38 | O40: =SUM('8. Funding_Adder_Revs'!K72:K83) -> 430153.94 | Q40: =SUM('8. Funding_Adder_Revs'!K84:K95) -> 419904.25 | S40: =SUM('8. Funding_Adder_Revs'!K96:K107) -> 140493.42 | U40: =SUM('8. Funding_Adder_Revs'!K108:K119) -> 23.66 | W40: =SUM('8. Funding_Adder_Revs'!K120:K131) -> 0 | Y40: =SUM(G40:W40) -> 1526856.78
C42: SMFA Interest (from Sheet 8) | G42: =SUM('8. Funding_Adder_Revs'!M24:M35) -> 699.32 | I42: =SUM('8. Funding_Adder_Revs'!M36:M47) -> 4939.8 | K42: =SUM('8. Funding_Adder_Revs'!M48:M59) -> 7009.63 | M42: =SUM('8. Funding_Adder_Revs'!M60:M71) -> 3030.74 | O42: =SUM('8. Funding_Adder_Revs'!M72:M83) -> 5828.87 | Q42: =SUM('8. Funding_Adder_Revs'!M84:M95) -> 17039.33 | S42: =SUM('8. Funding_Adder_Revs'!M96:M107) -> 22014.98 | U42: =SUM('8. Funding_Adder_Revs'!M108:M119) -> 22444.7 | W42: =SUM('8. Funding_Adder_Revs'!M120:M131) -> 7481.6 | Y42: =SUM(G42:W42) -> 90488.97
C44: Net Deferred Revenue Requirement | G44: =(G30+G32)-(G40+G42) -> -63646.57764 | I44: =(I30+I32)-(I40+I42) -> -75427.1297 | K44: =(K30+K32)-(K40+K42) -> -72361.60631 | M44: =(M30+M32)-(M40+M42) -> -21646.31291 | O44: =(O30+O32)-(O40+O42) -> 25860.39102 | Q44: =(Q30+Q32)-(Q40+Q42) -> 139569.6253 | S44: =(S30+S32)-(S40+S42) -> 244064.8681 | U44: =(U30+U32)-(U40+U42) -> 420729.0834 | W44: =(W30+W32)-(W40+W42) -> 443929.9366 | Y44: =(Y30+Y32)-(Y40+Y42) -> 589660.7413
C46: Number of Metered Customers (average for 2014 test year) | W46: 23921
D47: - Number of metered customers for which smart meter were deployed as part of program). Residential and GS < 50 kW customer classes and any other metered classes involved (e.g. GS 50 to 4999 kW for which interval meters were upgraded to utilize AMI and ODS assets)
C49: Calculation of Smart Meter Funding Adder (per metered customer per month)
D51: Net Deferred Revenues | F51: May 1, 2006 to December 31, 2013 | G51: =Y44 -> 589660.7413
D53: SMFA | F53: May 1, 2014 to April 30, 201X | G53: =IF(W46=0,"",ROUND(U44/(W46*12),2)) -> 1.47
D55: Check: Forecasted SMFA Revenues for 2014 test year | G55: =IF(W46=0,"",G53*W46*12) -> 421966.44
C57: Calculation of Smart Meter Disposition Rider (per metered customer per month)
D59: Years for collection or refunding | G59: 1
D61: Deferred Incremental Revenue Requirement from 2006 to December 31, 2013 | G61: =SUM(G30:U30)+SUM(G32:U32) -> 2207006.491
E62: plus Interest on OM&A and Amortization
D63: SMFA Revenues collected from 2006 to 2014 test year (inclusive) | G63: =Y40+SUM(G42:W42) -> 1617345.75
E64: Plus Simple Interest on SMFA Revenues
D65: Net Deferred Revenue Requirement | G65: =G61-G63 -> 589660.7413
D67: SMDR | F67: May 1, 2014 to April 30, 2015 | G67: =IF(W46=0,"",ROUND(G65/(W46*12*G59),2)) -> 2.05 | I67: =IF(ISERROR(G69/G65), "Error", IF(G69/G65>=95%, "Match", "Error")) -> Match
D69: Check: Forecasted SMDR Revenues | G69: =IF(ISERROR(G67*W46*12*G59), "", G67*W46*12*G59) -> 588456.6
C71: Calculation of Smart Meter Incremental Revenue Requirement Rate Rider (per metered customer per month)
D73: Incremental Revenue Requirement for 2014 | G73: =W30 -> 451411.5366
D75: SMIRR | G75: =IF(ISERROR(ROUND(G73/(W46*12),2)), "", ROUND(G73/(W46*12),2)) -> 1.57 | I75: =IF(ISERROR(G77/G73), "Error", IF(G77/G73>=95%, "Match", "Error")) -> Match
D77: Check: Forecasted SMIRR Revenues | G77: =IF(ISERROR(G75*W46*12), "", G75*W46*12) -> 450671.64

Sheet 10A. Cost_Alloc_SMDR
B13: This worksheet calculates the class-specific SMDRs according to accepted practice. A distributor may choose to use its own methodology, but should provide analogous support for its allocation and derivation of class-specific SMDRs and SMIRRs.
B20: Class-specific SMDRs
B22: Revenue Requirement for Historical Years | C22: 2006 | E22: 2007 | G22: 2008 | I22: 2009 | K22: 2010 | M22: 2011 | O22: 2012 | Q22: 2013 | S22: Total 2006 to 2013 | T22: Explanation / Allocator | V22: Residential | X22: GS < 50 kW | Z22: GS 50 to 4999 kW | AB22: Other (please specify) | AD22: Total
T23: Check Row if SMDR/SMIRR apply to class | V23: X | X23: X | AD23: =COUNTIF(V23:AB23,"X") -> 2
V24: % | X24: % | Z24: % | AB24: %
T25: Weighted Meter Cost - Capital | V25: 0.772926358 | X25: 0.227073642 | AD25: =V25+X25+Z25+AB25 -> 1
B26: Return on Capital | C26: ='5. SM_Rev_Reqt'!G47 -> 220.62243 | E26: ='5. SM_Rev_Reqt'!I47 -> 1518.590722 | G26: ='5. SM_Rev_Reqt'!K47 -> 3304.566141 | I26: ='5. SM_Rev_Reqt'!M47 -> 78339.75962 | K26: ='5. SM_Rev_Reqt'!O47 -> 160727.512 | M26: ='5. SM_Rev_Reqt'!Q47 -> 167634.4725 | O26: ='5. SM_Rev_Reqt'!S47 -> 159629.4663 | Q26: ='5. SM_Rev_Reqt'!U47 -> 164470.9191 | S26: =SUM(C26,E26,G26,I26,K26,M26,O26,Q26) -> 735845.9088 | T26: Allocated per class | V26: =S26*V25 -> 568754.6983 | X26: =S26*X25 -> 167091.2105 | Z26: =S26*Z25 -> 0 | AB26: =S26*AB25 -> 0
B28: Depreciation/Amortization expense and related interest | C28: ='5. SM_Rev_Reqt'!G58 -> 217.362 | E28: ='5. SM_Rev_Reqt'!I58 -> 1431.128667 | G28: ='5. SM_Rev_Reqt'!K58 -> 3414.796 | I28: ='5. SM_Rev_Reqt'!M58 -> 81554.67733 | K28: ='5. SM_Rev_Reqt'!O58 -> 172602.2663 | M28: ='5. SM_Rev_Reqt'!Q58 -> 193041.0797 | O28: ='5. SM_Rev_Reqt'!S58 -> 202333.4774 | Q28: ='5. SM_Rev_Reqt'!U58 -> 221776.8738
C29: =IF(C28+C32=0,0,'9. SMFA_SMDR_SMIRR'!G32*C28/(C28+C32)) -> 4.283324225 | E29: =IF(E28+E32=0,0,'9. SMFA_SMDR_SMIRR'!I32*E28/(E28+E32)) -> 24.76835428 | G29: =IF(G28+G32=0,0,'9. SMFA_SMDR_SMIRR'!K32*G28/(G28+G32)) -> 306.9867521 | I29: =IF(I28+I32=0,0,'9. SMFA_SMDR_SMIRR'!M32*I28/(I28+I32)) -> 232.2044969 | K29: =IF(K28+K32=0,0,'9. SMFA_SMDR_SMIRR'!O32*K28/(K28+K32)) -> 1800.62494 | M29: =IF(M28+M32=0,0,'9. SMFA_SMDR_SMIRR'!Q32*M28/(M28+M32)) -> 4965.563442 | O29: =IF(O28+O32=0,0,'9. SMFA_SMDR_SMIRR'!S32*O28/(O28+O32)) -> 13831.0702 | Q29: =IF(Q28+Q32=0,0,'9. SMFA_SMDR_SMIRR'!U32*Q28/(Q28+Q32)) -> 17160.3843 | T29: =T25 -> Weighted Meter Cost - Capital | V29: =V25 -> 0.772926358 | X29: =X25 -> 0.227073642 | Z29: =Z25 -> 0 | AB29: =AB25 -> 0 | AD29: =V29+X29+Z29+AB29 -> 1
C30: =C28+C29 -> 221.6453242 | E30: =E28+E29 -> 1455.897021 | G30: =G28+G29 -> 3721.782752 | I30: =I28+I29 -> 81786.88183 | K30: =K28+K29 -> 174402.8913 | M30: =M28+M29 -> 198006.6431 | O30: =O28+O29 -> 216164.5476 | Q30: =Q28+Q29 -> 238937.2581 | S30: =SUM(C30,E30,G30,I30,K30,M30,O30,Q30) -> 914697.5471 | T30: =T26 -> Allocated per class | V30: =S30*V29 -> 706993.8437 | X30: =S30*X29 -> 207703.7034 | Z30: =S30*Z29 -> 0 | AB30: =S30*AB29 -> 0
B32: Operating Expenses and related interest | C32: ='5. SM_Rev_Reqt'!G50 -> 0 | E32: ='5. SM_Rev_Reqt'!I50 -> 7734.33 | G32: ='5. SM_Rev_Reqt'!K50 -> 1662.37 | I32: ='5. SM_Rev_Reqt'!M50 -> 123324.84 | K32: ='5. SM_Rev_Reqt'!O50 -> 100861.7 | M32: ='5. SM_Rev_Reqt'!Q50 -> 175963.01 | O32: ='5. SM_Rev_Reqt'!S50 -> 2990.84 | Q32: ='5. SM_Rev_Reqt'!U50 -> 0 | T32: Number of Smart Meters installed by Class | V32: # | X32: # | Z32: # | AB32: #
C33: ='9. SMFA_SMDR_SMIRR'!G32 -> 4.283324225 | E33: ='9. SMFA_SMDR_SMIRR'!I32 -> 158.6253792 | G33: =IF((G28+G32)=0,0,'9. SMFA_SMDR_SMIRR'!K32*G32/(G28+G32)) -> 149.4454038 | I33: =IF((I28+I32)=0,0,'9. SMFA_SMDR_SMIRR'!M32*I32/(I28+I32)) -> 351.1335385 | K33: =IF((K28+K32)=0,0,'9. SMFA_SMDR_SMIRR'!O32*K32/(K28+K32)) -> 1052.211517 | M33: =IF((M28+M32)=0,0,'9. SMFA_SMDR_SMIRR'!Q32*M32/(M28+M32)) -> 4526.267109 | O33: =IF((O28+O32)=0,0,'9. SMFA_SMDR_SMIRR'!S32*O32/(O28+O32)) -> 204.447225 | Q33: =IF((Q28+Q32)=0,0,'9. SMFA_SMDR_SMIRR'!U32*Q32/(Q28+Q32)) -> 0 | V33: 21252 | X33: 2669
C34: =C32+C33 -> 4.283324225 | E34: =E32+E33 -> 7892.955379 | G34: =G32+G33 -> 1811.815404 | I34: =I32+I33 -> 123675.9735 | K34: =K32+K33 -> 101913.9115 | M34: =M32+M33 -> 180489.2771 | O34: =O32+O33 -> 3195.287225 | Q34: =Q32+Q33 -> 0 | S34: =SUM(C34,E34,G34,I34,K34,M34,O34,Q34) -> 418983.5035 | T34: Allocated per class | V34: =IF(SUM($V33,$X33,$Z33,$AB33)=0,0,$S34*V33/(SUM($V33,$X33,$Z33,$AB33))) -> 372235.1664 | X34: =IF(SUM($V33,$X33,$Z33,$AB33)=0,0,$S34*X33/(SUM($V33,$X33,$Z33,$AB33))) -> 46748.33706 | Z34: =IF(SUM($V33,$X33,$Z33,$AB33)=0,0,$S34*Z33/(SUM($V33,$X33,$Z33,$AB33))) -> 0 | AB34: =IF(SUM($V33,$X33,$Z33,$AB33)=0,0,$S34*AB33/(SUM($V33,$X33,$Z33,$AB33))) -> 0
B36: Revenue Requirement before Taxes/PILs | S36: =S26+S30+S34 -> 2069526.959 | V36: =V26+V30+V34 -> 1647983.708 | X36: =X26+X30+X34 -> 421543.2509 | Z36: =Z26+Z30+Z34 -> 0 | AB36: =AB26+AB30+AB34 -> 0 | AD36: =S36-SUM(V36,X36,Z36,AB36) -> 0
T38: Revenue Requirement before PILs | V38: =IF(V36=0,0,V36/SUM($V36,$X36,$Z36,$AB36)) -> 0.7963093696 | X38: =IF(X36=0,0,X36/SUM($V36,$X36,$Z36,$AB36)) -> 0.2036906304 | Z38: =IF(Z36=0,0,Z36/SUM($V36,$X36,$Z36,$AB36)) -> 0 | AB38: =IF(AB36=0,0,AB36/SUM($V36,$X36,$Z36,$AB36)) -> 0 | AD38: =V38+X38+Z38+AB38 -> 1
B40: Grossed-up Taxes/PILs | C40: ='5. SM_Rev_Reqt'!G68 -> 74.5246101 | E40: ='5. SM_Rev_Reqt'!I68 -> 480.1755335 | G40: ='5. SM_Rev_Reqt'!K68 -> 890.7593901 | I40: ='5. SM_Rev_Reqt'!M68 -> 13508.1921 | K40: ='5. SM_Rev_Reqt'!O68 -> 24798.88623 | M40: ='5. SM_Rev_Reqt'!Q68 -> 30382.81266 | O40: ='5. SM_Rev_Reqt'!S68 -> 27583.96694 | Q40: ='5. SM_Rev_Reqt'!U68 -> 39789.26611 | S40: =SUM(C40,E40,G40,I40,K40,M40,O40,Q40) -> 137508.5836 | V40: =S40*V38 -> 109499.3735 | X40: =S40*X38 -> 28009.21007 | Z40: =S40*Z38 -> 0 | AB40: =S40*AB38 -> 0
B42: Total Revenue Requirement plus interest on OM&A and depreciation expense | S42: =S36+S40 -> 2207035.543 | V42: =V36+V40 -> 1757483.082 | X42: =X36+X40 -> 449552.461 | Z42: =Z40+Z36 -> 0 | AB42: =AB40+AB36 -> 0
T43: Percentage of costs allocated to each class | V43: =IF(SUM($V42,$X42,$Z42,$AB42)=0,0,V42/(SUM($V42,$X42,$Z42,$AB42))) -> 0.7963093696 | X43: =IF(SUM($V42,$X42,$Z42,$AB42)=0,0,X42/(SUM($V42,$X42,$Z42,$AB42))) -> 0.2036906304 | Z43: =IF(SUM($V42,$X42,$Z42,$AB42)=0,0,Z42/(SUM($V42,$X42,$Z42,$AB42))) -> 0 | AB43: =IF(SUM($V42,$X42,$Z42,$AB42)=0,0,AB42/(SUM($V42,$X42,$Z42,$AB42))) -> 0
S44: =S42-'9. SMFA_SMDR_SMIRR'!G61 -> 29.0516785 | T44: Percentage of costs for classes with SMDR/SMIRR | V44: =IF(V23="X",V43,0) -> 0.7963093696 | X44: =IF(X23="X",X43,0) -> 0.2036906304 | Z44: =IF(Z23="X",Z43,0) -> 0 | AB44: =IF(AB23="X",AB43,0) -> 0
V45: =IF(SUM($V44,$X44,$Z44,$AB44)=0,0,V44/SUM($V44,$X44,$Z44,$AB44)) -> 0.7963093696 | X45: =IF(SUM($V44,$X44,$Z44,$AB44)=0,0,X44/SUM($V44,$X44,$Z44,$AB44)) -> 0.2036906304 | Z45: =IF(SUM($V44,$X44,$Z44,$AB44)=0,0,Z44/SUM($V44,$X44,$Z44,$AB44)) -> 0 | AB45: =IF(SUM($V44,$X44,$Z44,$AB44)=0,0,AB44/SUM($V44,$X44,$Z44,$AB44)) -> 0
V47: % | X47: % | Z47: % | AB47: %
O48: SMFA Revenues directly attributable to class | V48: 0.8667379991 | X48: 0.1119 | Z48: 0 | AB48: 0 | AD48: =V48+X48+Z48+AB48 -> 0.9786379991
O49: Residual SMFA Revenues (from other metered classes) attributed evenly | V49: =IF(V23="X",V48,0) -> 0.8667379991 | X49: =IF(X23="X",X48,0) -> 0.1119 | Z49: =IF(Z23="X",Z48,0) -> 0 | AB49: =IF(AB23="X",AB48,0) -> 0 | AD49: =V49+X49+Z49+AB49 -> 0.9786379991
V50: =IF(V23="X",(100%-$AD49)/$AD$23,0) -> 0.01068100045 | X50: =IF(X23="X",(100%-$AD49)/$AD$23,0) -> 0.01068100045 | Z50: =IF(Z23="X",(100%-$AD49)/$AD$23,0) -> 0 | AB50: =IF(AB23="X",(100%-$AD49)/$AD$23,0) -> 0
O51: Total | V51: =V48+V50 -> 0.8774189996 | X51: =X48+X50 -> 0.1225810004 | Z51: =Z48+Z50 -> 0 | AB51: =AB48+AB50 -> 0
B53: SMFA Revenues plus interest expense | S53: ='9. SMFA_SMDR_SMIRR'!G63 -> 1617345.75 | V53: =S53*V51 -> 1419089.89 | X53: =S53*X51 -> 198255.8601 | Z53: =S53*Z51 -> 0 | AB53: =S53*AB51 -> 0
B55: Net Deferred Revenue Requirement to be recovered via SMDR | S55: =S42-S53 -> 589689.793 | V55: =IF(V23="X",V42-V53,0) -> 338393.1921 | X55: =IF(X23="X",X42-X53,0) -> 251296.6009 | Z55: =IF(Z23="X",Z42-Z53,0) -> 0 | AB55: =IF(AB23="X",AB42-AB53,0) -> 0
B57: Average number of metered customers by class (2014), for customer classes with smart meters deployed | S57: Average number of customers (2014) | V57: =V33 -> 21252 | X57: =X33 -> 2669 | Z57: 0 | AB57: 0
B59: Number of Years for SMDR recovery | S59: 1 | T59: years | V59: =S59 -> 1 | X59: =S59 -> 1 | Z59: =S59 -> 1 | AB59: =S59 -> 1
B61: Smart Meter Disposition Rider ($/month per metered customer in the customer class) | V61: =IF(V23="X",IF(V57*V59=0,"",ROUND(V55/(V57*V59*12),2)),"") -> 1.33 | X61: =IF(X23="X",IF(X57*X59=0,"",ROUND(X55/(X57*X59*12),2)),"") -> 7.85 | Z61: =IF(Z23="X",IF(Z57*Z59=0,"",ROUND(Z55/(Z57*Z59*12),2)),"") ->  | AB61: =IF(AB23="X",IF(AB57*AB59=0,"",ROUND(AB55/(AB57*AB59*12),2)),"") -> 
B63: Estimated SMDR Revenues | S63: =V63+X63+Z63+AB63 -> 590601.72 | V63: =IF(V23="X",IF(V57=0,0,V61*V59*V57*12),0) -> 339181.92 | X63: =IF(X23="X",IF(X57=0,0,X61*X59*X57*12),0) -> 251419.8 | Z63: =IF(Z23="X",IF(Z57=0,0,Z61*Z59*Z57*12),0) -> 0 | AB63: =IF(AB23="X",IF(AB57=0,0,AB61*AB59*AB57*12),0) -> 0
S65: =S55-S63 -> -911.926989

Sheet 10B. Cost_Alloc_SMIRR
B13: This worksheet calculates the class-specific SMIRRs according to accepted practice. A distributor may choose to use its own methodology, but should provide analogous support for its allocation and derivation of class-specific SMDRs and SMIRRs.
B20: Class-specific SMDRs
B22: Revenue Requirement for 2013 | C22: 2006 | E22: 2007 | G22: 2008 | I22: 2009 | K22: 2010 | M22: 2011 | O22: 2012 | Q22: 2014 | R22: Explanation / Allocator | T22: Residential | V22: GS < 50 kW | X22: GS 50 to 4999 kW | Z22: ='10A. Cost_Alloc_SMDR'!AB22 -> Other (please specify) | AB22: Total
R23: Check Row if SMDR/SMIRR apply to class | T23: =IF('10A. Cost_Alloc_SMDR'!V23="X","X","") -> X | V23: =IF('10A. Cost_Alloc_SMDR'!X23="X","X","") -> X | X23: =IF('10A. Cost_Alloc_SMDR'!Z23="X","X","") ->  | Z23: =IF('10A. Cost_Alloc_SMDR'!AB23="X","X","") ->  | AB23: =COUNTIF(T23:Z23,"X") -> 2
T24: % | V24: % | X24: % | Z24: %
R25: Weighted Meter Cost - Capital | T25: ='10A. Cost_Alloc_SMDR'!V25 -> 0.772926358 | V25: ='10A. Cost_Alloc_SMDR'!X25 -> 0.227073642 | X25: ='10A. Cost_Alloc_SMDR'!Z25 -> 0 | Z25: ='10A. Cost_Alloc_SMDR'!AB25 -> 0 | AB25: =T25+V25+X25+Z25 -> 1
B26: Return on Capital | C26: ='5. SM_Rev_Reqt'!G47 -> 220.62243 | E26: ='5. SM_Rev_Reqt'!I47 -> 1518.590722 | G26: ='5. SM_Rev_Reqt'!K47 -> 3304.566141 | I26: ='5. SM_Rev_Reqt'!M47 -> 78339.75962 | K26: ='5. SM_Rev_Reqt'!O47 -> 160727.512 | M26: ='5. SM_Rev_Reqt'!Q47 -> 167634.4725 | O26: ='5. SM_Rev_Reqt'!S47 -> 159629.4663 | Q26: ='5. SM_Rev_Reqt'!W47 -> 165526.6064 | R26: Allocated per class | T26: =Q26*T25 -> 127939.877 | V26: =Q26*V25 -> 37586.72937 | X26: =Q26*X25 -> 0 | Z26: =Q26*Z25 -> 0
B28: Depreciation/Amortization expense | C28: ='5. SM_Rev_Reqt'!G58 -> 217.362 | E28: ='5. SM_Rev_Reqt'!I58 -> 1431.128667 | G28: ='5. SM_Rev_Reqt'!K58 -> 3414.796 | I28: ='5. SM_Rev_Reqt'!M58 -> 81554.67733 | K28: ='5. SM_Rev_Reqt'!O58 -> 172602.2663 | M28: ='5. SM_Rev_Reqt'!Q58 -> 193041.0797 | O28: ='5. SM_Rev_Reqt'!S58 -> 202333.4774
C29: =IF(C28+C32=0,0,'9. SMFA_SMDR_SMIRR'!G32*C28/(C28+C32)) -> 4.283324225 | E29: =IF(E28+E32=0,0,'9. SMFA_SMDR_SMIRR'!I32*E28/(E28+E32)) -> 24.76835428 | G29: =IF(G28+G32=0,0,'9. SMFA_SMDR_SMIRR'!K32*G28/(G28+G32)) -> 306.9867521 | I29: =IF(I28+I32=0,0,'9. SMFA_SMDR_SMIRR'!M32*I28/(I28+I32)) -> 232.2044969 | K29: =IF(K28+K32=0,0,'9. SMFA_SMDR_SMIRR'!O32*K28/(K28+K32)) -> 1800.62494 | M29: =IF(M28+M32=0,0,'9. SMFA_SMDR_SMIRR'!Q32*M28/(M28+M32)) -> 4965.563442 | O29: =IF(O28+O32=0,0,'9. SMFA_SMDR_SMIRR'!S32*O28/(O28+O32)) -> 13831.0702 | R29: =R25 -> Weighted Meter Cost - Capital | T29: =T25 -> 0.772926358 | V29: =V25 -> 0.227073642 | X29: =X25 -> 0 | Z29: =Z25 -> 0 | AB29: =T29+V29+X29+Z29 -> 1
C30: =C28+C29 -> 221.6453242 | E30: =E28+E29 -> 1455.897021 | G30: =G28+G29 -> 3721.782752 | I30: =I28+I29 -> 81786.88183 | K30: =K28+K29 -> 174402.8913 | M30: =M28+M29 -> 198006.6431 | O30: =O28+O29 -> 216164.5476 | Q30: ='5. SM_Rev_Reqt'!W58 -> 238471.7154 | R30: =R26 -> Allocated per class | T30: =Q30*T29 -> 184321.0745 | V30: =Q30*V29 -> 54150.64095 | X30: =Q30*X29 -> 0 | Z30: =Q30*Z29 -> 0
B32: Operating Expenses | C32: ='5. SM_Rev_Reqt'!G50 -> 0 | E32: ='5. SM_Rev_Reqt'!I50 -> 7734.33 | G32: ='5. SM_Rev_Reqt'!K50 -> 1662.37 | I32: ='5. SM_Rev_Reqt'!M50 -> 123324.84 | K32: ='5. SM_Rev_Reqt'!O50 -> 100861.7 | M32: ='5. SM_Rev_Reqt'!Q50 -> 175963.01 | O32: ='5. SM_Rev_Reqt'!S50 -> 2990.84 | Q32: ='5. SM_Rev_Reqt'!W50 -> 0 | R32: Number of Smart Meters installed by Class | T32: # | V32: # | X32: # | Z32: #
C33: ='9. SMFA_SMDR_SMIRR'!G32 -> 4.283324225 | E33: ='9. SMFA_SMDR_SMIRR'!I32 -> 158.6253792 | G33: ='9. SMFA_SMDR_SMIRR'!K32 -> 456.4321559 | I33: ='9. SMFA_SMDR_SMIRR'!M32 -> 583.3380354 | K33: ='9. SMFA_SMDR_SMIRR'!O32 -> 2852.836457 | M33: ='9. SMFA_SMDR_SMIRR'!Q32 -> 9491.830552 | O33: ='9. SMFA_SMDR_SMIRR'!S32 -> 14035.51742 | T33: ='10A. Cost_Alloc_SMDR'!V33 -> 21252 | V33: ='10A. Cost_Alloc_SMDR'!X33 -> 2669 | X33: ='10A. Cost_Alloc_SMDR'!Z33 -> 0 | Z33: ='10A. Cost_Alloc_SMDR'!AB33 -> 0
C34: =C32+C33 -> 4.283324225 | E34: =E32+E33 -> 7892.955379 | G34: =G32+G33 -> 2118.802156 | I34: =I32+I33 -> 123908.178 | K34: =K32+K33 -> 103714.5365 | M34: =M32+M33 -> 185454.8406 | O34: =O32+O33 -> 17026.35742 | Q34: =SUM(T34,V34,X34,Z34) -> 0 | R34: Allocated per class | T34: =IF(SUM($T33,$V33,$X33,$Z33)=0,0,$Q32*T33/(SUM($T33,$V33,$X33,$Z33))) -> 0 | V34: =IF(SUM($T33,$V33,$X33,$Z33)=0,0,$Q32*V33/(SUM($T33,$V33,$X33,$Z33))) -> 0 | X34: =IF(SUM($T33,$V33,$X33,$Z33)=0,0,$Q32*X33/(SUM($T33,$V33,$X33,$Z33))) -> 0 | Z34: =IF(SUM($T33,$V33,$X33,$Z33)=0,0,$Q32*Z33/(SUM($T33,$V33,$X33,$Z33))) -> 0
B36: Revenue Requirement before Taxes/PILs | Q36: =Q26+Q30+Q32 -> 403998.3218 | T36: =T26+T30+T34 -> 312260.9515 | V36: =V26+V30+V34 -> 91737.37031 | X36: =X26+X30+X34 -> 0 | Z36: =Z26+Z30+Z34 -> 0 | AB36: =Q36-SUM(T36,V36,X36,Z36) -> 0
R38: Revenue Requirement before PILs | T38: =IF(T36=0,0,T36/SUM($T36,$V36,$X36,$Z36)) -> 0.772926358 | V38: =IF(V36=0,0,V36/SUM($T36,$V36,$X36,$Z36)) -> 0.227073642 | X38: =IF(X36=0,0,X36/SUM($T36,$V36,$X36,$Z36)) -> 0 | Z38: =IF(Z36=0,0,Z36/SUM($T36,$V36,$X36,$Z36)) -> 0 | AB38: =T38+V38+X38+Z38 -> 1
B40: Grossed-up Taxes/PILs | C40: ='5. SM_Rev_Reqt'!G68 -> 74.5246101 | E40: ='5. SM_Rev_Reqt'!I68 -> 480.1755335 | G40: ='5. SM_Rev_Reqt'!K68 -> 890.7593901 | I40: ='5. SM_Rev_Reqt'!M68 -> 13508.1921 | K40: ='5. SM_Rev_Reqt'!O68 -> 24798.88623 | M40: ='5. SM_Rev_Reqt'!Q68 -> 30382.81266 | O40: ='5. SM_Rev_Reqt'!S68 -> 27583.96694 | Q40: ='5. SM_Rev_Reqt'!W68 -> 47413.21475 | T40: =Q40*T38 -> 36646.92339 | V40: =Q40*V38 -> 10766.29135 | X40: =Q40*X38 -> 0 | Z40: =Q40*Z38 -> 0
B42: Total Revenue Requirement for 2013 | Q42: =Q36+Q40 -> 451411.5366 | T42: =T36+T40 -> 348907.8749 | V42: =V36+V40 -> 102503.6617 | X42: =X40+X36 -> 0 | Z42: =Z40+Z36 -> 0
R43: Percentage of costs allocated to each class | T43: =IF(SUM($T42,$V42,$X42,$Z42)=0,0,T42/(SUM($T42,$V42,$X42,$Z42))) -> 0.772926358 | V43: =IF(SUM($T42,$V42,$X42,$Z42)=0,0,V42/(SUM($T42,$V42,$X42,$Z42))) -> 0.227073642 | X43: =IF(SUM($T42,$V42,$X42,$Z42)=0,0,X42/(SUM($T42,$V42,$X42,$Z42))) -> 0 | Z43: =IF(SUM($T42,$V42,$X42,$Z42)=0,0,Z42/(SUM($T42,$V42,$X42,$Z42))) -> 0
Q44: =Q42-'9. SMFA_SMDR_SMIRR'!G73 -> 0 | R44: Percentage of costs for classes with SMDR/SMIRR | T44: =IF(T23="X",T43,0) -> 0.772926358 | V44: =IF(V23="X",V43,0) -> 0.227073642 | X44: =IF(X23="X",X43,0) -> 0 | Z44: =IF(Z23="X",Z43,0) -> 0
T45: =IF(SUM($T44,$V44,$X44,$Z44)=0,0,T44/SUM($T44,$V44,$X44,$Z44)) -> 0.772926358 | V45: =IF(SUM($T44,$V44,$X44,$Z44)=0,0,V44/SUM($T44,$V44,$X44,$Z44)) -> 0.227073642 | X45: =IF(SUM($T44,$V44,$X44,$Z44)=0,0,X44/SUM($T44,$V44,$X44,$Z44)) -> 0 | Z45: =IF(SUM($T44,$V44,$X44,$Z44)=0,0,Z44/SUM($T44,$V44,$X44,$Z44)) -> 0
B48: Average number of metered customers by class (2013) | T48: ='10A. Cost_Alloc_SMDR'!V57 -> 21252 | V48: ='10A. Cost_Alloc_SMDR'!X57 -> 2669 | X48: ='10A. Cost_Alloc_SMDR'!Z57 -> 0 | Z48: ='10A. Cost_Alloc_SMDR'!AB57 -> 0
B50: The SMIRR is recovered as an annualized rate until the effective date of the distributor's next rebased rates resulting from a cost of service application | Q50: 1 | R50: year | T50: =Q50 -> 1 | V50: =Q50 -> 1 | X50: =Q50 -> 1 | Z50: =Q50 -> 1
B52: Smart Meter Incremental Revenue Requirement Rate Rider ($/month per metered customer in the customer class) | T52: =IF(T23="X",IF(T48*T50=0,"",ROUND(T42/(T48*T50*12),2)),"") -> 1.37 | V52: =IF(V23="X",IF(V48*V50=0,"",ROUND(V42/(V48*V50*12),2)),"") -> 3.2 | X52: =IF(X23="X",IF(X48*X50=0,"",ROUND(X42/(X48*X50*12),2)),"") ->  | Z52: =IF(Z23="X",IF(Z48*Z50=0,"",ROUND(Z42/(Z48*Z50*12),2)),"") -> 
B54: Estimated SMIRR Revenues | Q54: =T54+V54+X54+Z54 -> 451872.48 | T54: =IF(T23="X",IF(T48=0,0,T52*T50*T48*12),0) -> 349382.88 | V54: =IF(V23="X",IF(V48=0,0,V52*V50*V48*12),0) -> 102489.6 | X54: =IF(X23="X",IF(X48=0,0,X52*X50*X48*12),0) -> 0 | Z54: =IF(Z23="X",IF(Z48=0,0,Z52*Z50*Z48*12),0) -> 0
Q56: =Q54-Q42 -> 460.9434222
